Transaction Number,Service - Fund ,Service  - Function ,Service - Cost Centre,Expense Type ,Expense Description,Supplier Name,Supplier Post Code (first 4 digits),Payment Date,Amount �
42883275,Physical Support,Adults,Physical Support 18 - 64,3rd Party Payments,Carers,247 HOME CARE LTD,SN5 ,16/09/2022,151.44
43735264,Physical Support,Adults,Physical Support 18 - 64,3rd Party Payments,Personal Budget - Domiciliary care,247 HOME CARE LTD,SN5 ,26/09/2022,"1,140.18"
42374233,Physical Support,Adults,Physical Support 18 - 64,3rd Party Payments,Carers,247 HOME CARE LTD,SN5 ,09/09/2022,151.44
42374233,Physical Support,Adults,Physical Support 18 - 64,3rd Party Payments,Personal Budget - Domiciliary care,247 HOME CARE LTD,SN5 ,09/09/2022,"1,259.18"
43735264,Physical Support,Adults,Physical Support 18 - 64,3rd Party Payments,Carers,247 HOME CARE LTD,SN5 ,26/09/2022,151.44
41430272,Physical Support,Adults,Physical Support 18 - 64,3rd Party Payments,Personal Budget - Domiciliary care,247 HOME CARE LTD,SN5 ,02/09/2022,-3.80
43735264,Physical Support,Adults,Physical Support 18 - 64,3rd Party Payments,Personal Budget - Domiciliary care,247 HOME CARE LTD,SN5 ,26/09/2022,-3.80
42883275,Physical Support,Adults,Physical Support 18 - 64,3rd Party Payments,Personal Budget - Domiciliary care,247 HOME CARE LTD,SN5 ,16/09/2022,"1,140.18"
42883275,Physical Support,Adults,Physical Support 18 - 64,3rd Party Payments,Personal Budget - Domiciliary care,247 HOME CARE LTD,SN5 ,16/09/2022,-3.80
41430272,Physical Support,Adults,Physical Support 18 - 64,3rd Party Payments,Personal Budget - Domiciliary care,247 HOME CARE LTD,SN5 ,02/09/2022,"1,140.18"
42374233,Physical Support,Adults,Physical Support 18 - 64,3rd Party Payments,Personal Budget - Domiciliary care,247 HOME CARE LTD,SN5 ,09/09/2022,-3.80
41430272,Physical Support,Adults,Physical Support 18 - 64,3rd Party Payments,Carers,247 HOME CARE LTD,SN5 ,02/09/2022,151.44
42721233,Care Management & Safeguarding,Adults,Mental Capacity & DOL,3rd Party Payments,Contracts - Social Care,3D RECRUIT LTD,TN33,09/09/2022,"1,545.00"
44063234,Care Management & Safeguarding,Adults,Mental Capacity & DOL,3rd Party Payments,Contracts - Social Care,3D RECRUIT LTD,TN33,28/09/2022,618.00
42971233,Care Management & Safeguarding,Adults,Mental Capacity & DOL,3rd Party Payments,Contracts - Social Care,3D RECRUIT LTD,TN33,14/09/2022,927.00
44029234,Care Management & Safeguarding,Adults,Mental Capacity & DOL,3rd Party Payments,Contracts - Social Care,3D RECRUIT LTD,TN33,28/09/2022,"1,236.00"
42787233,School Transport,"Education, Inclusion and Skills",Special Educational Needs Transport,Transport Costs,Home to School Transport,4K TRAVEL,SN2 ,12/09/2022,"4,015.33"
42792233,School Transport,"Education, Inclusion and Skills",Special Educational Needs Transport,Employees,Temporary / Agency - by Accounts Payable,4K TRAVEL,SN2 ,12/09/2022,950.00
42788233,School Transport,"Education, Inclusion and Skills",Special Educational Needs Transport,Transport Costs,Home to School Transport,4K TRAVEL,SN2 ,12/09/2022,"2,483.33"
43608234,Highways Schemes,Strategic Planning and Highways,Wroughton Park and Ride,Capital,Contractor Payments,4WAY CONSULTING LTD,SK4 ,16/09/2022,"2,790.00"
44186234,Highways & Transport,Highways & Transport,Traffic Signalling,Premises Costs,Permanent Fixtures and Fittings,4WAY CONSULTING LTD,SK4 ,30/09/2022,668.10
43582233,Property Service Charged Properties,Property,Service Charged - Carriageworks,Premises Costs,Waste,707 LTD T/A CLICK WASTE,NG24,16/09/2022,618.31
43707233,Property Service Charged Properties,Property,Service Charged - Carriageworks,Premises Costs,Waste,707 LTD T/A CLICK WASTE,NG24,21/09/2022,"1,047.34"
43649234,Human Resources and Organisational Development,"People, Culture and Organisational Resilience",Organisational Development,Employees,Training,A PLUS SAFETY & TRAINING SERVICES LTD,SN3 ,21/09/2022,549.00
43650233,Human Resources and Organisational Development,"People, Culture and Organisational Resilience",Organisational Development,Employees,Training,A PLUS SAFETY & TRAINING SERVICES LTD,SN3 ,21/09/2022,549.00
43859233,Homeline,Special Services,Homeline,Supplies and Services,Equipment,A PLUS SAFETY & TRAINING SERVICES LTD,SN3 ,23/09/2022,860.00
43651242,Human Resources and Organisational Development,"People, Culture and Organisational Resilience",Organisational Development,Employees,Training,A PLUS SAFETY & TRAINING SERVICES LTD,SN3 ,21/09/2022,549.00
43827360,Homelessness and Travellers,Housing Services,Leased Private Managed Accommodation,Transfer Payments,Payment of Costs,REDACTED PERSONAL DATA,SN3 ,23/09/2022,800.00
43827350,Homelessness and Travellers,Housing Services,Leased Private Managed Accommodation,Transfer Payments,Payment of Costs,REDACTED PERSONAL DATA,SN3 ,23/09/2022,800.00
43422249,High Needs Block,DSG Skills and Attainment,SEN Resourcing Assessment Panel,3rd Party Payments,Top up funding - Academies and Free Schools Pre 16,ABBEY MEADS COMMUNITY PRIMARY SCHOOL,SN25,16/09/2022,"5,645.00"
42650233,Early Years Block,DSG Skills and Attainment,Free Nursery Education Commissioning - three & four  year olds,3rd Party Payments,Contracts - Child Care,ABBEY MEADS COMMUNITY PRIMARY SCHOOL,SN25,14/09/2022,"5,548.10"
43805251,Physical Support,Adults,Physical Support 18 - 64,3rd Party Payments,Personal Budget - Domiciliary care,ABICARE SERVICES LTD,BS32,23/09/2022,571.78
41735234,Physical Support,Adults,Physical Support 18 - 64,3rd Party Payments,Personal Budget - Domiciliary care,ABICARE SERVICES LTD,BS32,02/09/2022,571.78
43023233,Physical Support,Adults,Physical Support 18 - 64,3rd Party Payments,Personal Budget - Domiciliary care,ABICARE SERVICES LTD,BS32,14/09/2022,571.78
42553266,Physical Support,Adults,Physical Support 18 - 64,3rd Party Payments,Personal Budget - Domiciliary care,ABICARE SERVICES LTD,BS32,07/09/2022,598.48
43805253,Mental Health,Adults,Mental Health 65 and over,3rd Party Payments,Personal Budget - Domiciliary care,ABICARE SERVICES LTD (LIVE IN),SP2 ,23/09/2022,988.68
42553272,Physical Support,Adults,Physical Support 18 - 64,3rd Party Payments,Personal Budget - Domiciliary care,ABICARE SERVICES LTD (LIVE IN),SP2 ,07/09/2022,988.68
41738233,Physical Support,Adults,Physical Support 18 - 64,3rd Party Payments,Personal Budget - Domiciliary care,ABICARE SERVICES LTD (LIVE IN),SP2 ,02/09/2022,988.68
42553274,Mental Health,Adults,Mental Health 65 and over,3rd Party Payments,Personal Budget - Domiciliary care,ABICARE SERVICES LTD (LIVE IN),SP2 ,07/09/2022,"1,106.00"
43027233,Physical Support,Adults,Physical Support 18 - 64,3rd Party Payments,Personal Budget - Domiciliary care,ABICARE SERVICES LTD (LIVE IN),SP2 ,14/09/2022,988.68
41738235,Mental Health,Adults,Mental Health 65 and over,3rd Party Payments,Personal Budget - Domiciliary care,ABICARE SERVICES LTD (LIVE IN),SP2 ,02/09/2022,"1,106.00"
41737233,Mental Health,Adults,Mental Health 65 and over,3rd Party Payments,Personal Budget - Domiciliary care,ABICARE SERVICES LTD (LIVE IN),SP2 ,02/09/2022,988.68
43805255,Memory & Cognition,Adults,Support for Memory and Cognition 65 and over,3rd Party Payments,Personal Budget - Domiciliary care,ABICARE SERVICES LTD (LIVE IN),SP2 ,23/09/2022,"1,106.00"
42553273,Memory & Cognition,Adults,Support for Memory and Cognition 65 and over,3rd Party Payments,Personal Budget - Domiciliary care,ABICARE SERVICES LTD (LIVE IN),SP2 ,07/09/2022,"1,106.00"
43026233,Mental Health,Adults,Mental Health 65 and over,3rd Party Payments,Personal Budget - Domiciliary care,ABICARE SERVICES LTD (LIVE IN),SP2 ,14/09/2022,988.68
43805256,Mental Health,Adults,Mental Health 65 and over,3rd Party Payments,Personal Budget - Domiciliary care,ABICARE SERVICES LTD (LIVE IN),SP2 ,23/09/2022,"1,106.00"
43805254,Physical Support,Adults,Physical Support 18 - 64,3rd Party Payments,Personal Budget - Domiciliary care,ABICARE SERVICES LTD (LIVE IN),SP2 ,23/09/2022,988.68
43029233,Mental Health,Adults,Mental Health 65 and over,3rd Party Payments,Personal Budget - Domiciliary care,ABICARE SERVICES LTD (LIVE IN),SP2 ,14/09/2022,"1,106.00"
41738234,Memory & Cognition,Adults,Support for Memory and Cognition 65 and over,3rd Party Payments,Personal Budget - Domiciliary care,ABICARE SERVICES LTD (LIVE IN),SP2 ,02/09/2022,"1,106.00"
42553271,Mental Health,Adults,Mental Health 65 and over,3rd Party Payments,Personal Budget - Domiciliary care,ABICARE SERVICES LTD (LIVE IN),SP2 ,07/09/2022,988.68
43028233,Memory & Cognition,Adults,Support for Memory and Cognition 65 and over,3rd Party Payments,Personal Budget - Domiciliary care,ABICARE SERVICES LTD (LIVE IN),SP2 ,14/09/2022,"1,106.00"
42650234,Early Years Block,DSG Skills and Attainment,Free Nursery Education Commissioning - three & four  year olds,3rd Party Payments,Contracts - Child Care,REDACTED PERSONAL DATA,SN2 ,14/09/2022,592.20
43814233,Social Care,"Children, Families and Community Health Services",Placement Fostering Service,Supplies and Services,Service Charges,AC EDUCATION,AL2 ,23/09/2022,500.00
41904234,Streetsmart,Streetsmart,Waterside Fleet Hires,Transport Costs,Vehicle Hire / Contract,ACCESS HIRE NATIONWIDE,WF6 ,07/09/2022,"1,505.71"
41905233,Streetsmart,Streetsmart,Waterside Fleet Hires,Transport Costs,Vehicle Hire / Contract,ACCESS HIRE NATIONWIDE,WF6 ,07/09/2022,"1,306.43"
41903233,Streetsmart,Streetsmart,Waterside Fleet Hires,Transport Costs,Vehicle Hire / Contract,ACCESS HIRE NATIONWIDE,WF6 ,07/09/2022,"1,448.14"
43738234,Physical Support,Adults,Reablement Delivery,Supplies and Services,Telephone Charges,ACCESS UK LTD,CO7 ,23/09/2022,"4,033.41"
43511234,Physical Support,Adults,Physical Support 18 - 64,3rd Party Payments,Residential Care,ACCOMPLISH,B45 ,16/09/2022,"5,817.12"
43511234,Physical Support,Adults,Physical Support 18 - 64,Income,Client Contribution - Residential,ACCOMPLISH,B45 ,16/09/2022,-414.20
43602233,Human Resources and Organisational Development,"People, Culture and Organisational Resilience",Organisational Development,Employees,Training,ACHIEVING SUSTAINABLE CHANGE,CF23,16/09/2022,"2,250.00"
42499233,Disabled Children,"Children, Families and Community Health Services",ICES Paediatric,Supplies and Services,Equipment,ACTIVATE FOR KIDS LTD,SP2 ,07/09/2022,"5,851.72"
42500233,Disabled Children,"Children, Families and Community Health Services",ICES Paediatric,Supplies and Services,Equipment,ACTIVATE FOR KIDS LTD,SP2 ,07/09/2022,"2,240.15"
43431234,High Needs Block,DSG Skills and Attainment,SEN Resourcing Assessment Panel,3rd Party Payments,Top up funding - Academies and Free Schools Post 16,ACTIVATE LEARNING EDUCATION TRUST,OX1 ,16/09/2022,"2,372.83"
43425241,High Needs Block,DSG Skills and Attainment,SEN Resourcing Assessment Panel,3rd Party Payments,Top up funding - Academies and Free Schools Pre 16,ACTIVATE LEARNING EDUCATION TRUST,OX1 ,16/09/2022,570.42
44007252,Social Care,"Children, Families and Community Health Services",External Placements,3rd Party Payments,Independent Fostering Agency Placements,ACTIVE CARE SOLUTIONS LTD,B60 ,28/09/2022,"6,188.40"
44007251,Social Care,"Children, Families and Community Health Services",External Placements,3rd Party Payments,Independent Fostering Agency Placements,ACTIVE CARE SOLUTIONS LTD,B60 ,28/09/2022,"3,171.30"
44260330,Learning Disabilities,Adults,Learning Disability 26 - 64,Transfer Payments,Personal Budget - Direct Payments - Domiciliary Care,REDACTED PERSONAL DATA,SN4 ,30/09/2022,"1,146.29"
44260591,Learning Disabilities,Adults,Learning Disability 26 - 64,Transfer Payments,Personal Budget - Direct Payments - Domiciliary Care,REDACTED PERSONAL DATA,SN3 ,30/09/2022,"2,026.16"
43827375,Homelessness and Travellers,Housing Services,Leased Private Managed Accommodation,Transfer Payments,Payment of Costs,ADVANCE HOUSING & SUPPORT LTD,OX28,23/09/2022,"1,074.00"
43650234,Social Care,"Children, Families and Community Health Services",Fostering Service Team,Supplies and Services,Design & Printing Costs,ADVANCED PRINTING SERVICES UK LTD,SN2 ,21/09/2022,960.00
43650234,Social Care,"Children, Families and Community Health Services",Fostering Service Team,Supplies and Services,Design & Printing Costs,ADVANCED PRINTING SERVICES UK LTD,SN2 ,21/09/2022,120.00
43521239,Learning Disabilities,Adults,Learning Disability 65 and over,Income,Client Contribution - Supported Living,AGINCARE ENABLE LTD,DT5 ,16/09/2022,-953.20
43521239,Learning Disabilities,Adults,Learning Disability 65 and over,3rd Party Payments,Supported Lodgings,AGINCARE ENABLE LTD,DT5 ,16/09/2022,-280.63
43521239,Learning Disabilities,Adults,Learning Disability 65 and over,3rd Party Payments,Supported Lodgings,AGINCARE ENABLE LTD,DT5 ,16/09/2022,"5,277.00"
43521239,Learning Disabilities,Adults,Learning Disability 65 and over,Income,Client Contribution - Supported Living,AGINCARE ENABLE LTD,DT5 ,16/09/2022,-119.15
43521239,Learning Disabilities,Adults,Learning Disability 65 and over,Income,Client Contribution - Supported Living,AGINCARE ENABLE LTD,DT5 ,16/09/2022,"1,067.63"
43521239,Learning Disabilities,Adults,Learning Disability 65 and over,Income,Client Contribution - Supported Living,AGINCARE ENABLE LTD,DT5 ,16/09/2022,-476.60
43521239,Learning Disabilities,Adults,Learning Disability 65 and over,Income,Client Contribution - Supported Living,AGINCARE ENABLE LTD,DT5 ,16/09/2022,"-1,021.29"
43521239,Learning Disabilities,Adults,Learning Disability 65 and over,3rd Party Payments,Supported Lodgings,AGINCARE ENABLE LTD,DT5 ,16/09/2022,527.71
43521239,Learning Disabilities,Adults,Learning Disability 65 and over,3rd Party Payments,Supported Lodgings,AGINCARE ENABLE LTD,DT5 ,16/09/2022,94.47
43521239,Learning Disabilities,Adults,Learning Disability 65 and over,3rd Party Payments,Supported Lodgings,AGINCARE ENABLE LTD,DT5 ,16/09/2022,"12,503.57"
43521239,Learning Disabilities,Adults,Learning Disability 65 and over,Income,Client Contribution - Supported Living,AGINCARE ENABLE LTD,DT5 ,16/09/2022,"1,140.44"
43521239,Learning Disabilities,Adults,Learning Disability 65 and over,3rd Party Payments,Supported Lodgings,AGINCARE ENABLE LTD,DT5 ,16/09/2022,"2,462.60"
43521239,Learning Disabilities,Adults,Learning Disability 65 and over,3rd Party Payments,Supported Lodgings,AGINCARE ENABLE LTD,DT5 ,16/09/2022,"5,835.00"
43521239,Learning Disabilities,Adults,Learning Disability 65 and over,3rd Party Payments,Supported Lodgings,AGINCARE ENABLE LTD,DT5 ,16/09/2022,615.65
43521239,Learning Disabilities,Adults,Learning Disability 65 and over,Income,Client Contribution - Supported Living,AGINCARE ENABLE LTD,DT5 ,16/09/2022,51.06
43521239,Learning Disabilities,Adults,Learning Disability 65 and over,3rd Party Payments,Supported Lodgings,AGINCARE ENABLE LTD,DT5 ,16/09/2022,472.36
43521239,Learning Disabilities,Adults,Learning Disability 65 and over,3rd Party Payments,Supported Lodgings,AGINCARE ENABLE LTD,DT5 ,16/09/2022,"2,042.25"
43521239,Learning Disabilities,Adults,Learning Disability 65 and over,Income,Client Contribution - Supported Living,AGINCARE ENABLE LTD,DT5 ,16/09/2022,119.16
43521239,Learning Disabilities,Adults,Learning Disability 65 and over,3rd Party Payments,Supported Lodgings,AGINCARE ENABLE LTD,DT5 ,16/09/2022,"-1,403.17"
43521239,Learning Disabilities,Adults,Learning Disability 65 and over,3rd Party Payments,Supported Lodgings,AGINCARE ENABLE LTD,DT5 ,16/09/2022,"-12,938.37"
43521239,Learning Disabilities,Adults,Learning Disability 65 and over,Income,Client Contribution - Supported Living,AGINCARE ENABLE LTD,DT5 ,16/09/2022,-119.16
42830233,School Transport,"Education, Inclusion and Skills",Special Educational Needs Transport,Transport Costs,Home to School Transport,AKCESS LTD,SN2 ,14/09/2022,"63,666.67"
42789233,School Transport,"Education, Inclusion and Skills",Special Educational Needs Transport,Transport Costs,Home to School Transport,AKCESS LTD,SN2 ,12/09/2022,"92,589.19"
42788235,Physical Support,Adults,Physical Support 65 and over,Transport Costs,Home to Centre Transport,AKCESS LTD,SN2 ,12/09/2022,"5,208.33"
42786233,School Transport,"Education, Inclusion and Skills",Special Educational Needs Transport,Employees,Temporary / Agency - by Accounts Payable,AKCESS LTD,SN2 ,12/09/2022,"3,800.00"
42789233,School Transport,"Education, Inclusion and Skills",Mainstream School Transport,Transport Costs,Home to School Transport,AKCESS LTD,SN2 ,12/09/2022,"1,889.58"
42788235,Physical Support,Adults,Physical Support 65 and over,Transport Costs,Home to Centre Transport,AKCESS LTD,SN2 ,12/09/2022,"5,208.33"
42788235,Physical Support,Adults,Physical Support 65 and over,Transport Costs,Home to Centre Transport,AKCESS LTD,SN2 ,12/09/2022,"2,604.17"
42593233,Travel,Highways & Transport,Public Transport,3rd Party Payments,Contract Payments,AKCESS LTD,SN2 ,09/09/2022,"14,680.14"
42786233,School Transport,"Education, Inclusion and Skills",Special Educational Needs Transport,Employees,Temporary / Agency - by Accounts Payable,AKCESS LTD,SN2 ,12/09/2022,"1,995.00"
42217233,Travel,Highways & Transport,Public Transport,3rd Party Payments,Contract Payments,AKCESS LTD,SN2 ,07/09/2022,"14,680.14"
42785233,School Transport,"Education, Inclusion and Skills",Special Educational Needs Transport,Transport Costs,Home to School Transport,AKCESS LTD,SN2 ,12/09/2022,"17,690.83"
42788234,School Transport,"Education, Inclusion and Skills",Mainstream School Transport,Transport Costs,Home to School Transport,AKCESS LTD,SN2 ,12/09/2022,"2,580.83"
42788235,Learning Disabilities,Adults,Learning Disability 26 - 64,Transport Costs,Home to Centre Transport,AKCESS LTD,SN2 ,12/09/2022,"5,208.33"
42788235,Learning Disabilities,Adults,Learning Disability 26 - 64,Transport Costs,Home to Centre Transport,AKCESS LTD,SN2 ,12/09/2022,"18,229.17"
42332233,Town Centre,"Economy, Growth and Place",HAZ Streets and spaces,Capital,Professional Fees,ALAN BAXTER LIMITED,EC1M,07/09/2022,975.00
Corporate Card Transaction,Social Care,"Children, Families and Community Health Services",Unaccompanied Asylum Seeking Children (UASC),3rd Party Payments,Personal Needs,Albany Solicitors - Bris,,14/09/2022,720.00
43898283,Social Care,"Children, Families and Community Health Services",Placement Fostering Service,3rd Party Payments,Foster Care Basic Payments,REDACTED PERSONAL DATA,SN4 ,26/09/2022,520.20
42796284,Social Care,"Children, Families and Community Health Services",Placement Fostering Service,3rd Party Payments,Foster Care Basic Payments,REDACTED PERSONAL DATA,SN4 ,12/09/2022,520.20
42796284,Social Care,"Children, Families and Community Health Services",Placement Fostering Service,3rd Party Payments,Carers Skills Payments - Core,REDACTED PERSONAL DATA,SN4 ,12/09/2022,116.00
43898283,Social Care,"Children, Families and Community Health Services",Placement Fostering Service,3rd Party Payments,Carers Skills Payments - Core,REDACTED PERSONAL DATA,SN4 ,26/09/2022,116.00
43379233,Learning Disabilities,Adults,Learning Disability 26 - 64,3rd Party Payments,Supported Accommodation Scheme,REDACTED PERSONAL DATA,SN2 ,21/09/2022,"3,056.20"
44260609,Learning Disabilities,Adults,Learning Disability 26 - 64,Transfer Payments,Personal Budget - Direct Payments - Domiciliary Care,REDACTED PERSONAL DATA,SN25,30/09/2022,973.45
42061234,Early Years Block,DSG Skills and Attainment,Free Nursery Education Commissioning - three & four  year olds,3rd Party Payments,Contracts - Child Care,ALFRESCO CHILDCARE,SN6 ,07/09/2022,"1,707.91"
42649234,Early Years Block,DSG Skills and Attainment,Free Nursery Education Commissioning - two year olds,3rd Party Payments,Contracts - Child Care,ALFRESCO CHILDCARE,SN6 ,14/09/2022,"1,738.80"
43684233,Early Help,"Children, Families and Community Health Services","Holiday, Activities & Food Grant",3rd Party Payments,Contracts - Child Care,ALFRESCO CHILDCARE,SN6 ,21/09/2022,720.00
42649233,Early Years Block,DSG Skills and Attainment,Free Nursery Education Commissioning - three & four  year olds,3rd Party Payments,Contracts - Child Care,ALFRESCO CHILDCARE,SN6 ,14/09/2022,"12,880.36"
43407233,Learning Disabilities,Adults,Learning Disability 26 - 64,3rd Party Payments,Supported Accommodation Scheme,REDACTED PERSONAL DATA,SN1 ,21/09/2022,"3,056.20"
44094259,School Transport,"Education, Inclusion and Skills",Special Educational Needs Transport,Transport Costs,Home to School Transport,REDACTED PERSONAL DATA,SN5 ,28/09/2022,518.18
44110278,School Transport,"Education, Inclusion and Skills",Special Educational Needs Transport,Transport Costs,Home to School Transport,REDACTED PERSONAL DATA,SN5 ,28/09/2022,518.18
43408233,Learning Disabilities,Adults,Learning Disability 26 - 64,3rd Party Payments,Supported Accommodation Scheme,REDACTED PERSONAL DATA,SN2 ,21/09/2022,"2,134.20"
43408233,Learning Disabilities,Adults,Learning Disability 26 - 64,3rd Party Payments,Supported Accommodation Scheme,REDACTED PERSONAL DATA,SN2 ,21/09/2022,"2,088.80"
43408233,Learning Disabilities,Adults,Learning Disability 26 - 64,3rd Party Payments,Supported Accommodation Scheme,REDACTED PERSONAL DATA,SN2 ,21/09/2022,"2,481.75"
44260332,Learning Disabilities,Adults,Learning Disability 26 - 64,Transfer Payments,Personal Budget - Direct Payments - Domiciliary Care,REDACTED PERSONAL DATA,SN5 ,30/09/2022,"8,839.97"
42649238,Early Years Block,DSG Skills and Attainment,Free Nursery Education Commissioning - two year olds,3rd Party Payments,Contracts - Child Care,REDACTED PERSONAL DATA,SN25,14/09/2022,869.40
42649237,Early Years Block,DSG Skills and Attainment,Free Nursery Education Commissioning - three & four  year olds,3rd Party Payments,Contracts - Child Care,REDACTED PERSONAL DATA,SN25,14/09/2022,"3,948.00"
42650236,Early Years Block,DSG Skills and Attainment,Free Nursery Education Commissioning - three & four  year olds,3rd Party Payments,Contracts - Child Care,REDACTED PERSONAL DATA,SN1 ,14/09/2022,789.60
44260497,Learning Disabilities,Adults,Learning Disability 26 - 64,Transfer Payments,Personal Budget - Direct Payments - Domiciliary Care,REDACTED PERSONAL DATA,SN5 ,30/09/2022,"3,416.22"
43613233,Street Furniture & Lighting,Strategic Planning and Highways,LED Street Lighting,Capital,Contractor Payments,ALL TRAFFIC PRODUCTS LTD,WV13,16/09/2022,"2,472.00"
42567234,Highways & Transport,Highways & Transport,Rights of Way (ROW),Supplies and Services,Repairs & Maintenance,ALLBUILD BUILDING & LANDSCAPING SERVICES,SN25,09/09/2022,540.00
42634233,Environmental & Regulatory,Highways & Transport,Shaw Farm Landfill Site,Supplies and Services,Testing / Inspection,ALLBUILD BUILDING & LANDSCAPING SERVICES,SN25,09/09/2022,625.00
42633233,Environmental & Regulatory,Highways & Transport,Shaw Farm Landfill Site,Supplies and Services,Testing / Inspection,ALLBUILD BUILDING & LANDSCAPING SERVICES,SN25,09/09/2022,"1,600.00"
43833234,Homelessness and Travellers,Housing Services,Homelessness Prevention,Transfer Payments,Payment of Costs,ALLEN & HARRIS,SN1 ,23/09/2022,"1,634.00"
42473233,Treasury,Corporate Finance,Treasury,Supplies and Services,Bank Charges,ALLPAY-NET LIMITED,HR1 ,07/09/2022,"1,269.14"
43526233,Landlord Services,Supervision & Management,Estate Management Team,Supplies and Services,Contracts,ALLPAY-NET LIMITED,HR1 ,16/09/2022,"1,862.43"
42649239,Early Years Block,DSG Skills and Attainment,Free Nursery Education Commissioning - three & four  year olds,3rd Party Payments,Contracts - Child Care,ALPHA PRE-SCHOOL,SN5 ,14/09/2022,"5,061.42"
42649240,Early Years Block,DSG Skills and Attainment,Free Nursery Education Commissioning - two year olds,3rd Party Payments,Contracts - Child Care,ALPHA PRE-SCHOOL,SN5 ,14/09/2022,"3,477.60"
44239233,Local Transport Plan Funded,Strategic Planning and Highways,Minor Road Maintenance,Capital,Contractor Payments,ALUN GRIFFITHS (CONTRACTORS ) LTD,NP7 ,30/09/2022,"10,607.25"
42587233,"Volutary Sector, Equipment and Carers",Adults,Voluntary Sector Adults,3rd Party Payments,Contracts - Social Care,ALZHEIMERS SOCIETY,PL2 ,09/09/2022,"2,433.00"
Corporate Card Transaction,Social Care,"Children, Families and Community Health Services",Emergency Duty Service,Supplies and Services,Materials,Amber Cars,,26/09/2022,500.00
44007236,Social Care,"Children, Families and Community Health Services",External Placements,3rd Party Payments,Parent & Child Placements,AMBER FAMILY LTD,PR8 ,28/09/2022,"21,921.00"
44007250,Social Care,"Children, Families and Community Health Services",External Placements,3rd Party Payments,Residential Care,AMEGREEN CHILDREN'S SERVICES LTD,RG7 ,28/09/2022,"16,875.00"
41590235,Responsive Repairs,Repairs,Responsive Repairs,Premises Costs,Repairs - Buildings,AMELIO UTILITIES(GLOU) LTD T/A 3 COUNTIES DRAIN SERVICES,GL1 ,02/09/2022,191.02
43641235,Responsive Repairs,Repairs,Responsive Repairs,Premises Costs,Repairs - Buildings,AMELIO UTILITIES(GLOU) LTD T/A 3 COUNTIES DRAIN SERVICES,GL1 ,21/09/2022,191.02
41590235,Responsive Repairs,Repairs,Responsive Repairs,Premises Costs,Repairs - Buildings,AMELIO UTILITIES(GLOU) LTD T/A 3 COUNTIES DRAIN SERVICES,GL1 ,02/09/2022,319.88
43641235,Responsive Repairs,Repairs,Responsive Repairs,Premises Costs,Repairs - Buildings,AMELIO UTILITIES(GLOU) LTD T/A 3 COUNTIES DRAIN SERVICES,GL1 ,21/09/2022,127.35
43641235,Responsive Repairs,Repairs,Responsive Repairs,Premises Costs,Repairs - Buildings,AMELIO UTILITIES(GLOU) LTD T/A 3 COUNTIES DRAIN SERVICES,GL1 ,21/09/2022,287.29
41590235,Responsive Repairs,Repairs,Responsive Repairs,Premises Costs,Repairs - Buildings,AMELIO UTILITIES(GLOU) LTD T/A 3 COUNTIES DRAIN SERVICES,GL1 ,02/09/2022,127.35
43641235,Responsive Repairs,Repairs,Responsive Repairs,Premises Costs,Repairs - Buildings,AMELIO UTILITIES(GLOU) LTD T/A 3 COUNTIES DRAIN SERVICES,GL1 ,21/09/2022,159.94
41590235,Responsive Repairs,Repairs,Responsive Repairs,Premises Costs,Repairs - Buildings,AMELIO UTILITIES(GLOU) LTD T/A 3 COUNTIES DRAIN SERVICES,GL1 ,02/09/2022,254.70
41590235,Responsive Repairs,Repairs,Responsive Repairs,Premises Costs,Repairs - Buildings,AMELIO UTILITIES(GLOU) LTD T/A 3 COUNTIES DRAIN SERVICES,GL1 ,02/09/2022,159.94
43863233,Property Estates,Property,Estates - Corporate Property General,Premises Costs,Rents,AMEY TPT,EC4A,23/09/2022,"2,785.00"
43641234,Highways Inspections & Maintenance,Highway Operations and Car Parking,Streetlighting,3rd Party Payments,Contract Payments,AMR TRAFFIC MANAGEMENT LTD,OX13,21/09/2022,"1,320.00"
43641234,Highways Inspections & Maintenance,Highway Operations and Car Parking,Streetlighting,3rd Party Payments,Contract Payments,AMR TRAFFIC MANAGEMENT LTD,OX13,21/09/2022,65.00
43641269,Highways Inspections & Maintenance,Highway Operations and Car Parking,Streetlighting,Supplies and Services,Materials,AMR TRAFFIC MANAGEMENT LTD,OX13,21/09/2022,465.00
43641269,Highways Inspections & Maintenance,Highway Operations and Car Parking,Streetlighting,Supplies and Services,Materials,AMR TRAFFIC MANAGEMENT LTD,OX13,21/09/2022,930.00
43641254,Highways Inspections & Maintenance,Highway Operations and Car Parking,Highway Maintenance,3rd Party Payments,Contract Payments,AMR TRAFFIC MANAGEMENT LTD,OX13,21/09/2022,930.00
44110277,School Transport,"Education, Inclusion and Skills",Special Educational Needs Transport,Transport Costs,Home to School Transport,REDACTED PERSONAL DATA,SN2 ,28/09/2022,547.20
44260364,Mental Health,Adults,Mental Health 18-64,Transfer Payments,Personal Budget - Direct Payments - Domiciliary Care,REDACTED PERSONAL DATA,SN25,30/09/2022,555.51
43848234,Disabled Children,"Children, Families and Community Health Services",DCT Daytime Short Breaks,Transfer Payments,Personal Budget - Direct Payments - Other,REDACTED PERSONAL DATA,SN3 ,23/09/2022,"1,230.00"
42650241,Early Years Block,DSG Skills and Attainment,Free Nursery Education Commissioning - three & four  year olds,3rd Party Payments,Contracts - Child Care,REDACTED PERSONAL DATA,SN25,14/09/2022,625.10
42700233,Social Care,"Children, Families and Community Health Services",Legal Fees,Supplies and Services,Fees,REDACTED PERSONAL DATA,EC4Y,09/09/2022,"1,250.00"
42700233,Social Care,"Children, Families and Community Health Services",Legal Fees,Supplies and Services,Fees,REDACTED PERSONAL DATA,EC4Y,09/09/2022,"1,000.00"
43827245,Homelessness and Travellers,Housing Services,Leased Private Managed Accommodation,Transfer Payments,Payment of Costs,REDACTED PERSONAL DATA,SN26,23/09/2022,675.00
42063233,Social Care,"Children, Families and Community Health Services",CP & CIN Social Work - North,Employees,Recruitment,ANDY SEDGWICK CONSULTING LTD,HP10,07/09/2022,"50,000.00"
43440233,High Needs Block,DSG Skills and Attainment,SEN Resourcing Assessment Panel,3rd Party Payments,Top up funding - Maintained providers Pre 16,REDACTED PERSONAL DATA,SN25,21/09/2022,630.00
42649468,Early Years Block,DSG Skills and Attainment,Free Nursery Education Commissioning - two year olds,3rd Party Payments,Contracts - Child Care,REDACTED PERSONAL DATA,SN25,14/09/2022,"6,085.80"
42061246,Early Years Block,DSG Skills and Attainment,Free Nursery Education Commissioning - three & four  year olds,3rd Party Payments,Contracts - Child Care,REDACTED PERSONAL DATA,SN25,07/09/2022,-916.50
42649467,Early Years Block,DSG Skills and Attainment,Free Nursery Education Commissioning - three & four  year olds,3rd Party Payments,Contracts - Child Care,REDACTED PERSONAL DATA,SN25,14/09/2022,"87,391.66"
42061247,Early Years Block,DSG Skills and Attainment,Free Nursery Education Commissioning - two year olds,3rd Party Payments,Contracts - Child Care,REDACTED PERSONAL DATA,SN25,07/09/2022,"1,076.40"
42649469,Early Years Block,DSG Skills and Attainment,Free Nursery Education Commissioning - three & four  year olds,3rd Party Payments,Contracts - Child Care,REDACTED PERSONAL DATA,SN25,14/09/2022,627.38
43827363,Homelessness and Travellers,Housing Services,Leased Private Managed Accommodation,Transfer Payments,Payment of Costs,ANGELVIEW PROPERTIES LTD,ALBO,23/09/2022,548.51
43827362,Homelessness and Travellers,Housing Services,Leased Private Managed Accommodation,Transfer Payments,Payment of Costs,ANGELVIEW PROPERTIES LTD,ALBO,23/09/2022,548.45
44260593,Physical Support,Adults,Physical Support 18 - 64,Transfer Payments,Personal Budget - Direct Payments - Domiciliary Care,REDACTED PERSONAL DATA,SN25,30/09/2022,"2,397.79"
43781233,HRA Overheads,Supervision & Management,Admin / Management General,Premises Costs,Insurance - Premises,AON UK LIMITED,EC3V,23/09/2022,"3,246.78"
41740233,Supported Employment,Housing Services,Community Meals,Supplies and Services,Food,APETITO LIMITED,BA14,02/09/2022,"1,300.73"
41741233,Supported Employment,Housing Services,Community Meals,Supplies and Services,Food,APETITO LIMITED,BA14,02/09/2022,644.88
43755234,Supported Employment,Housing Services,Community Meals,Supplies and Services,Food,APETITO LIMITED,BA14,23/09/2022,639.76
43908235,Supported Employment,Housing Services,Community Meals,Supplies and Services,Food,APETITO LIMITED,BA14,28/09/2022,"1,228.33"
43755233,Supported Employment,Housing Services,Community Meals,Supplies and Services,Food,APETITO LIMITED,BA14,23/09/2022,"1,089.48"
43676233,,,Balance Sheet,Balance Sheet & Recharge,Resources Recharges,APOGEE CORPORATION LIMITED,EC2A,21/09/2022,"3,920.76"
42213233,,,Balance Sheet,Balance Sheet & Recharge,Resources Recharges,APOGEE CORPORATION LIMITED,EC2A,07/09/2022,"9,723.06"
43363233,,,Balance Sheet,Balance Sheet & Recharge,Resources Recharges,APOGEE CORPORATION LIMITED,EC2A,16/09/2022,"4,069.46"
43738233,,,Balance Sheet,Balance Sheet & Recharge,Resources Recharges,APOGEE CORPORATION LIMITED,EC2A,23/09/2022,"12,869.19"
43362233,,,Balance Sheet,Balance Sheet & Recharge,Resources Recharges,APOGEE CORPORATION LIMITED,EC2A,16/09/2022,"3,779.82"
42640233,Care Management & Safeguarding,Adults,Local Safeguarding Board,3rd Party Payments,Contract Payments,APOLLO EAGLE CONSULTING LTD,PO22,09/09/2022,"6,600.00"
44154233,Care Management & Safeguarding,Adults,Local Safeguarding Board,3rd Party Payments,Contract Payments,APOLLO EAGLE CONSULTING LTD,PO22,30/09/2022,"3,300.00"
42639233,Care Management & Safeguarding,Adults,Local Safeguarding Board,3rd Party Payments,Contract Payments,APOLLO EAGLE CONSULTING LTD,PO22,09/09/2022,"3,300.00"
43492238,Learning Disabilities,Adults,Learning Disability 26 - 64,3rd Party Payments,Residential Care,APPLEFORD LTD T/A DANESWOOD,BS25,16/09/2022,"20,190.92"
43492238,Learning Disabilities,Adults,Learning Disability 26 - 64,Income,Client Contribution - Residential,APPLEFORD LTD T/A DANESWOOD,BS25,16/09/2022,-397.00
42228233,Adults - Staffing and Supporting People,Adults,Blue Badges,Supplies and Services,Materials,APS GROUP,SK3 ,07/09/2022,"1,107.23"
42695233,Regeneration Schemes,Regeneration Schemes,Whitbourne House Demolition,Capital,Contractor Payments,ARBTECH CONSULTING LTD,CH4 ,09/09/2022,"5,389.00"
42649243,Early Years Block,DSG Skills and Attainment,Free Nursery Education Commissioning - three & four  year olds,3rd Party Payments,Contracts - Child Care,REDACTED PERSONAL DATA,SN2 ,14/09/2022,"4,053.68"
43438233,High Needs Block,DSG Skills and Attainment,SEN Resourcing Assessment Panel,3rd Party Payments,Top up funding - Maintained providers Pre 16,REDACTED PERSONAL DATA,SN2 ,21/09/2022,"11,503.66"
43817233,Early Years Block,DSG Skills and Attainment,Free Nursery Education Commissioning - three & four  year olds,3rd Party Payments,Contracts - Child Care,REDACTED PERSONAL DATA,SN2 ,23/09/2022,"11,503.66"
41723233,Environmental & Regulatory,Highways & Transport,Shaw Farm Landfill Site,Supplies and Services,Testing / Inspection,ARCTIC SERVICES,SN4 ,02/09/2022,"1,860.00"
42853234,Town Centre,"Economy, Growth and Place",Heritage Action Zone (HAZ),Supplies and Services,Consultants,ARTSITE LIMITED,SN1 ,14/09/2022,"5,000.00"
42922234,Town Centre,"Economy, Growth and Place",Towns Fund,Supplies and Services,Fees,ARTSITE LIMITED,SN1 ,14/09/2022,"8,182.00"
Corporate Card Transaction,Community Health & Wellbeing,Public Health,Swindon Circles,Supplies and Services,Food,Asda Superstore,,09/09/2022,"1,100.00"
42740233,Homelessness and Travellers,Housing Services,Leased Private Managed Accommodation,Transfer Payments,Payment of Costs,ASCENT------------,SN2 ,09/09/2022,650.00
43492239,Mental Health,Adults,Mental Health 18-64,Income,Client Contribution - Residential,ASH VIEW HOUSE,BS15,16/09/2022,-394.20
43492239,Mental Health,Adults,Mental Health 18-64,3rd Party Payments,Residential Care,ASH VIEW HOUSE,BS15,16/09/2022,"7,476.36"
42979233,Traded Services,"Education, Inclusion and Skills",Plas Pencelli Outdoor Education Centre,Supplies and Services,Materials,ASHBURNHAM BAKERY,LD3 ,14/09/2022,508.87
43455233,Physical Support,Adults,Physical Support 65 and over,Income,Client Contribution - Residential,ASHBURY LODGE,SN3 ,16/09/2022,-730.76
43455233,Physical Support,Adults,Physical Support 65 and over,3rd Party Payments,Residential Care,ASHBURY LODGE,SN3 ,16/09/2022,"3,840.18"
43455233,Physical Support,Adults,Physical Support 65 and over,Income,Client Contribution - Residential,ASHBURY LODGE,SN3 ,16/09/2022,-627.80
43455233,Physical Support,Adults,Physical Support 65 and over,Income,Client Contribution - Residential,ASHBURY LODGE,SN3 ,16/09/2022,-587.40
43455233,Physical Support,Adults,Physical Support 65 and over,3rd Party Payments,Residential Care,ASHBURY LODGE,SN3 ,16/09/2022,"8,868.99"
43455233,Care Management & Safeguarding,Adults,Community Response Hub,3rd Party Payments,Residential Care,ASHBURY LODGE,SN3 ,16/09/2022,"9,514.29"
43455233,Physical Support,Adults,Physical Support 65 and over,Income,Client Contribution - Residential,ASHBURY LODGE,SN3 ,16/09/2022,-941.70
43455233,Mental Health,Adults,Mental Health 65 and over,3rd Party Payments,Residential Care,ASHBURY LODGE,SN3 ,16/09/2022,"7,954.66"
43455233,Care Management & Safeguarding,Adults,Community Response Hub,3rd Party Payments,Residential Care,ASHBURY LODGE,SN3 ,16/09/2022,"12,800.60"
43455233,Care Management & Safeguarding,Adults,Community Response Hub,3rd Party Payments,Residential Care,ASHBURY LODGE,SN3 ,16/09/2022,"2,560.12"
43455233,Mental Health,Adults,Mental Health 65 and over,3rd Party Payments,Residential Care,ASHBURY LODGE,SN3 ,16/09/2022,"2,668.72"
43455233,Physical Support,Adults,Physical Support 65 and over,3rd Party Payments,Residential Care,ASHBURY LODGE,SN3 ,16/09/2022,"4,845.94"
43455233,Care Management & Safeguarding,Adults,Community Response Hub,3rd Party Payments,Residential Care,ASHBURY LODGE,SN3 ,16/09/2022,"6,674.60"
43455233,Physical Support,Adults,Physical Support 65 and over,3rd Party Payments,Residential Care,ASHBURY LODGE,SN3 ,16/09/2022,"7,084.00"
43455233,Physical Support,Adults,Physical Support 65 and over,3rd Party Payments,Residential Care,ASHBURY LODGE,SN3 ,16/09/2022,"3,864.00"
43455233,Mental Health,Adults,Mental Health 65 and over,Income,Client Contribution - Residential,ASHBURY LODGE,SN3 ,16/09/2022,-805.32
43455233,Physical Support,Adults,Physical Support 18 - 64,Income,Client Contribution - Residential,ASHBURY LODGE,SN3 ,16/09/2022,-350.20
43455233,Physical Support,Adults,Physical Support 65 and over,Income,Client Contribution - Residential,ASHBURY LODGE,SN3 ,16/09/2022,44.84
43455233,Physical Support,Adults,Physical Support 65 and over,Income,Client Contribution - Residential,ASHBURY LODGE,SN3 ,16/09/2022,-608.80
43455233,Physical Support,Adults,Physical Support 65 and over,Income,Client Contribution - Residential,ASHBURY LODGE,SN3 ,16/09/2022,-595.40
43455233,Physical Support,Adults,Physical Support 65 and over,3rd Party Payments,Residential Care,ASHBURY LODGE,SN3 ,16/09/2022,"-4,347.00"
43455233,Physical Support,Adults,Physical Support 65 and over,3rd Party Payments,Residential Care,ASHBURY LODGE,SN3 ,16/09/2022,"2,668.72"
43455233,Physical Support,Adults,Physical Support 65 and over,3rd Party Payments,Residential Care,ASHBURY LODGE,SN3 ,16/09/2022,"2,384.04"
43455233,Physical Support,Adults,Physical Support 18 - 64,3rd Party Payments,Residential Care,ASHBURY LODGE,SN3 ,16/09/2022,"2,668.72"
43455233,Physical Support,Adults,Physical Support 65 and over,Income,Client Contribution - Residential,ASHBURY LODGE,SN3 ,16/09/2022,"-1,032.64"
43455233,Physical Support,Adults,Physical Support 65 and over,Income,Client Contribution - Residential,ASHBURY LODGE,SN3 ,16/09/2022,-875.20
43455233,Physical Support,Adults,Physical Support 65 and over,Income,Client Contribution - Residential,ASHBURY LODGE,SN3 ,16/09/2022,-610.00
43455233,Physical Support,Adults,Physical Support 65 and over,Income,Client Contribution - Residential,ASHBURY LODGE,SN3 ,16/09/2022,"-1,188.34"
43455233,Physical Support,Adults,Physical Support 65 and over,Income,Client Contribution - Residential,ASHBURY LODGE,SN3 ,16/09/2022,"-2,174.88"
43455233,Physical Support,Adults,Physical Support 65 and over,3rd Party Payments,Residential Care,ASHBURY LODGE,SN3 ,16/09/2022,"-1,920.09"
43455233,Care Management & Safeguarding,Adults,Community Response Hub,3rd Party Payments,Residential Care,ASHBURY LODGE,SN3 ,16/09/2022,"3,600.00"
43455233,Physical Support,Adults,Physical Support 65 and over,Income,Client Contribution - Residential,ASHBURY LODGE,SN3 ,16/09/2022,470.85
43455233,Mental Health,Adults,Mental Health 65 and over,3rd Party Payments,Residential Care,ASHBURY LODGE,SN3 ,16/09/2022,"2,560.12"
43455233,Physical Support,Adults,Physical Support 65 and over,3rd Party Payments,Residential Care,ASHBURY LODGE,SN3 ,16/09/2022,"-5,718.69"
43455233,Physical Support,Adults,Physical Support 65 and over,3rd Party Payments,Residential Care,ASHBURY LODGE,SN3 ,16/09/2022,"2,560.12"
43454233,Physical Support,Adults,Physical Support 65 and over,Income,Client Contribution - Nursing,ASHGROVE HOUSE NURSING HOME,SN5 ,16/09/2022,955.96
43454233,Physical Support,Adults,Physical Support 65 and over,3rd Party Payments,Nursing Care,ASHGROVE HOUSE NURSING HOME,SN5 ,16/09/2022,"-3,765.48"
43454233,Physical Support,Adults,Physical Support 65 and over,3rd Party Payments,Nursing Care,ASHGROVE HOUSE NURSING HOME,SN5 ,16/09/2022,"43,909.71"
42659235,Public Health,Public Health,Sexual Health & Health Protection Budget,3rd Party Payments,Contract Payments,ASHINGTON HOUSE SURGERY,SN5 ,09/09/2022,750.00
44260614,Physical Support,Adults,Physical Support 18 - 64,Transfer Payments,Personal Budget - Direct Payments - Domiciliary Care,REDACTED PERSONAL DATA,SN25,30/09/2022,"1,510.97"
44174233,Libraries,"Education, Inclusion and Skills",Library Delivery,Supplies and Services,Materials,ASKEWS AND HOLTS LIBRARY SERVICES LIMITED,PR1 ,30/09/2022,714.38
42169233,Libraries,"Education, Inclusion and Skills",Library Delivery,Supplies and Services,Materials,ASKEWS AND HOLTS LIBRARY SERVICES LIMITED,PR1 ,07/09/2022,673.44
44174234,Libraries,"Education, Inclusion and Skills",Library Delivery,Supplies and Services,Materials,ASKEWS AND HOLTS LIBRARY SERVICES LIMITED,PR1 ,30/09/2022,"1,504.85"
44173233,Libraries,"Education, Inclusion and Skills",Library Delivery,Supplies and Services,Materials,ASKEWS AND HOLTS LIBRARY SERVICES LIMITED,PR1 ,30/09/2022,748.37
44172233,Libraries,"Education, Inclusion and Skills",Library Delivery,Supplies and Services,Materials,ASKEWS AND HOLTS LIBRARY SERVICES LIMITED,PR1 ,30/09/2022,"2,407.52"
44193233,Libraries,"Education, Inclusion and Skills",Library Delivery,Supplies and Services,Materials,ASKEWS AND HOLTS LIBRARY SERVICES LIMITED,PR1 ,30/09/2022,"2,289.44"
43478233,Learning Disabilities,Adults,Learning Disability 26 - 64,Income,Client Contribution - Residential,ASPECTS & MILESTONES TRUST,BS16,16/09/2022,-425.60
43478233,Learning Disabilities,Adults,Learning Disability 26 - 64,3rd Party Payments,Residential Care,ASPECTS & MILESTONES TRUST,BS16,16/09/2022,"6,426.36"
43494239,Learning Disabilities,Adults,Learning Disability 26 - 64,Income,Client Contribution - Residential,ASPECTS 2 LTD,B70 ,16/09/2022,-414.20
43494239,Mental Health,Adults,Mental Health 65 and over,3rd Party Payments,Supported Lodgings,ASPECTS 2 LTD,B70 ,16/09/2022,"3,052.80"
43494239,Physical Support,Adults,Physical Support 18 - 64,3rd Party Payments,Supported Lodgings,ASPECTS 2 LTD,B70 ,16/09/2022,"3,931.20"
43494239,Learning Disabilities,Adults,Learning Disability 26 - 64,3rd Party Payments,Residential Care,ASPECTS 2 LTD,B70 ,16/09/2022,"8,284.52"
43506235,Learning Disabilities,Adults,Learning Disability 65 and over,3rd Party Payments,Residential Care,ASTON CARE LIMITED,RG30,16/09/2022,"43,654.19"
43506235,Learning Disabilities,Adults,Learning Disability 26 - 64,Income,Client Contribution - Residential,ASTON CARE LIMITED,RG30,16/09/2022,"-1,033.20"
43506235,Learning Disabilities,Adults,Learning Disability 26 - 64,3rd Party Payments,Residential Care,ASTON CARE LIMITED,RG30,16/09/2022,"6,350.24"
43507233,Learning Disabilities,Adults,Learning Disability 26 - 64,3rd Party Payments,Residential Care,ASTON CARE LIMITED,RG30,16/09/2022,"9,182.84"
43506235,Learning Disabilities,Adults,Learning Disability 65 and over,3rd Party Payments,Residential Care,ASTON CARE LIMITED,RG30,16/09/2022,"28,000.09"
43506235,Learning Disabilities,Adults,Learning Disability 65 and over,3rd Party Payments,Residential Care,ASTON CARE LIMITED,RG30,16/09/2022,"6,607.12"
43506235,Learning Disabilities,Adults,Learning Disability 26 - 64,Income,Client Contribution - Residential,ASTON CARE LIMITED,RG30,16/09/2022,-214.07
43506235,Learning Disabilities,Adults,Learning Disability 26 - 64,Income,Client Contribution - Residential,ASTON CARE LIMITED,RG30,16/09/2022,-594.36
43506235,Learning Disabilities,Adults,Learning Disability 26 - 64,Income,Client Contribution - Residential,ASTON CARE LIMITED,RG30,16/09/2022,-371.44
43506235,Learning Disabilities,Adults,Learning Disability 26 - 64,Income,Client Contribution - Residential,ASTON CARE LIMITED,RG30,16/09/2022,-143.49
43506235,Learning Disabilities,Adults,Learning Disability 26 - 64,Income,Client Contribution - Residential,ASTON CARE LIMITED,RG30,16/09/2022,729.00
43506235,Learning Disabilities,Adults,Learning Disability 26 - 64,3rd Party Payments,Residential Care,ASTON CARE LIMITED,RG30,16/09/2022,"6,909.40"
43506235,Learning Disabilities,Adults,Learning Disability 26 - 64,3rd Party Payments,Residential Care,ASTON CARE LIMITED,RG30,16/09/2022,"9,104.80"
43506235,Learning Disabilities,Adults,Learning Disability 26 - 64,Income,Client Contribution - Residential,ASTON CARE LIMITED,RG30,16/09/2022,-349.00
43507233,Learning Disabilities,Adults,Learning Disability 26 - 64,Income,Client Contribution - Residential,ASTON CARE LIMITED,RG30,16/09/2022,-262.40
43647243,Early Help,"Children, Families and Community Health Services","Holiday, Activities & Food Grant",3rd Party Payments,Contracts - Child Care,ATBSHOP LTD,SN2 ,21/09/2022,640.00
43684234,Early Help,"Children, Families and Community Health Services","Holiday, Activities & Food Grant",3rd Party Payments,Contracts - Child Care,ATBSHOP LTD,SN2 ,21/09/2022,"9,324.00"
41977233,NEV,"Economy, Growth and Place",White Hart Junction,Capital,Professional Fees,ATKINS LTD,WR5 ,02/09/2022,"7,033.45"
42873234,Highways & Transport,Highways & Transport,Project Delivery,Supplies and Services,Services,ATKINS LTD,WR5 ,14/09/2022,"30,163.10"
41770233,Streetsmart,Streetsmart,Lydiard House - Maintenance,Capital,Contractor Payments,ATLANTIC FIRE LTD,N18 ,02/09/2022,"3,800.00"
44260690,Physical Support,Adults,Physical Support 65 and over,Transfer Payments,Personal Budget - Direct Payments - Domiciliary Care,REDACTED PERSONAL DATA,SP11,30/09/2022,"3,943.39"
43521238,Mental Health,Adults,Mental Health 18-64,3rd Party Payments,Residential Care,AURA CARE LIVING CIRENCESTER LTD,GL7 ,16/09/2022,"6,720.00"
43521238,Physical Support,Adults,Physical Support 65 and over,3rd Party Payments,Nursing Care,AURA CARE LIVING CIRENCESTER LTD,GL7 ,16/09/2022,"5,000.00"
43521238,Care Management & Safeguarding,Adults,Community Response Hub,3rd Party Payments,Residential Care,AURA CARE LIVING CIRENCESTER LTD,GL7 ,16/09/2022,"4,400.00"
43521238,Physical Support,Adults,Physical Support 65 and over,Income,Client Contribution - Nursing,AURA CARE LIVING CIRENCESTER LTD,GL7 ,16/09/2022,-627.80
43521238,Mental Health,Adults,Mental Health 18-64,3rd Party Payments,Residential Care,AURA CARE LIVING CIRENCESTER LTD,GL7 ,16/09/2022,"4,600.00"
43521238,Mental Health,Adults,Mental Health 65 and over,3rd Party Payments,Residential Care,AURA CARE LIVING CIRENCESTER LTD,GL7 ,16/09/2022,"5,600.00"
43521238,Physical Support,Adults,Physical Support 65 and over,3rd Party Payments,Nursing Care,AURA CARE LIVING CIRENCESTER LTD,GL7 ,16/09/2022,"3,300.00"
43521238,Physical Support,Adults,Physical Support 65 and over,3rd Party Payments,Nursing Care,AURA CARE LIVING CIRENCESTER LTD,GL7 ,16/09/2022,"4,400.00"
43521238,Physical Support,Adults,Physical Support 65 and over,Income,Client Contribution - Nursing,AURA CARE LIVING CIRENCESTER LTD,GL7 ,16/09/2022,-396.40
43512235,Learning Disabilities,Adults,Learning Disability 65 and over,Income,Client Contribution - Residential,AUTONOMY LIFE LIMITED,SN12,16/09/2022,-528.80
43512235,Learning Disabilities,Adults,Learning Disability 65 and over,3rd Party Payments,Residential Care,AUTONOMY LIFE LIMITED,SN12,16/09/2022,"9,312.84"
43355233,Social Care,"Children, Families and Community Health Services",Unaccompanied Asylum Seeking Children (UASC),3rd Party Payments,Supported Lodgings,AVISANT CONSULTING LTD,EC1V,16/09/2022,"1,660.71"
43678233,Property Regeneration,Property,Regeneration Schemes,Supplies and Services,Fees,AVISON YOUNG (UK) LTD,B1 2,21/09/2022,"31,250.00"
42848235,Sheltered Accomodation,Special Services,Elizabeth House,Premises Costs,Maintenance - Buildings,AVIUM,SN25,14/09/2022,"3,305.00"
42848235,Sheltered Accomodation,Special Services,Elizabeth House,Premises Costs,Maintenance - Buildings,AVIUM,SN25,14/09/2022,"1,780.00"
43465234,Learning Disabilities,Adults,Learning Disability 26 - 64,Income,Client Contribution - Residential,AVON AUTISTIC FOUNDATION LTD,BS11,16/09/2022,-414.20
43465234,Learning Disabilities,Adults,Learning Disability 26 - 64,3rd Party Payments,Residential Care,AVON AUTISTIC FOUNDATION LTD,BS11,16/09/2022,"5,075.96"
43466233,Learning Disabilities,Adults,Learning Disability 26 - 64,Income,Client Contribution - Residential,AVON AUTISTIC FOUNDATION LTD,BS11,16/09/2022,-414.20
43466233,Learning Disabilities,Adults,Learning Disability 26 - 64,3rd Party Payments,Residential Care,AVON AUTISTIC FOUNDATION LTD,BS11,16/09/2022,"7,100.28"
43827403,Homelessness and Travellers,Housing Services,Leased Private Managed Accommodation,Transfer Payments,Payment of Costs,AVONPARK PROPERTIES LTD,SN3 ,23/09/2022,550.00
43827298,Homelessness and Travellers,Housing Services,Leased Private Managed Accommodation,Transfer Payments,Payment of Costs,AVONPARK PROPERTIES LTD,SN3 ,23/09/2022,650.00
43827297,Homelessness and Travellers,Housing Services,Leased Private Managed Accommodation,Transfer Payments,Payment of Costs,AVONPARK PROPERTIES LTD,SN3 ,23/09/2022,615.00
44272233,ASC Finance Services Teams,ASC Finance Services,Financial Assessment and Benefits Team,Supplies and Services,Equipment,BACK CARE SOLUTIONS LTD,PR5 ,30/09/2022,432.00
43679233,Town Centre,"Economy, Growth and Place","No 7, 9 & 11 Carriage works @ Railway Village",Capital,Consultants,BAILEY PARTNERSHIP (CONSULTANTS) LLP,PL1 ,21/09/2022,"1,500.00"
43793233,Town Centre,"Economy, Growth and Place","No 7, 9 & 11 Carriage works @ Railway Village",Capital,Consultants,BAILEY PARTNERSHIP (CONSULTANTS) LLP,PL1 ,23/09/2022,"1,500.00"
42941234,Senior Management Team,"Children, Families and Community Health Services",Senior Management Team - Non Staffing,Employees,Temporary / Agency - by Accounts Payable,REDACTED PERSONAL DATA,BS1 ,14/09/2022,"2,500.00"
43111233,Senior Management Team,"Children, Families and Community Health Services",Senior Management Team - Non Staffing,Employees,Temporary / Agency - by Accounts Payable,REDACTED PERSONAL DATA,BS1 ,16/09/2022,"1,562.50"
44083233,Senior Management Team,"Children, Families and Community Health Services",Senior Management Team - Non Staffing,Employees,Temporary / Agency - by Accounts Payable,REDACTED PERSONAL DATA,BS1 ,28/09/2022,"3,125.00"
43839233,Senior Management Team,"Children, Families and Community Health Services",Senior Management Team - Non Staffing,Employees,Temporary / Agency - by Accounts Payable,REDACTED PERSONAL DATA,BS1 ,23/09/2022,"3,125.00"
44072233,Licencing,Regulatory Services,Taxis & Private Hire,Supplies and Services,Testing / Inspection,BANSAL MOTORS,SN2 ,28/09/2022,"3,015.00"
43510234,Physical Support,Adults,Physical Support 65 and over,Income,Client Contribution - Nursing,BARCHESTER HEALTHCARE HOMES,GL7 ,16/09/2022,57.85
43510234,Physical Support,Adults,Physical Support 65 and over,Income,Client Contribution - Nursing,BARCHESTER HEALTHCARE HOMES,GL7 ,16/09/2022,"1,417.36"
43510234,Physical Support,Adults,Physical Support 65 and over,3rd Party Payments,Nursing Care,BARCHESTER HEALTHCARE HOMES,GL7 ,16/09/2022,"-5,976.25"
43510234,Memory & Cognition,Adults,Support for Memory and Cognition 65 and over,3rd Party Payments,Nursing Care,BARCHESTER HEALTHCARE HOMES,GL7 ,16/09/2022,"6,271.84"
42649246,Early Years Block,DSG Skills and Attainment,Free Nursery Education Commissioning - three & four  year olds,3rd Party Payments,Contracts - Child Care,BARN OWL PRE-SCHOOL,SN4 ,14/09/2022,"20,996.94"
43441233,Libraries,"Education, Inclusion and Skills",Library Shop,Supplies and Services,Goods for resale,BARNES COACHES LTD,SN3 ,28/09/2022,"1,247.92"
41960233,Libraries,"Education, Inclusion and Skills",Library Shop,Supplies and Services,Goods for resale,BARNES COACHES LTD,SN3 ,02/09/2022,88.85
41960233,Libraries,"Education, Inclusion and Skills",Library Shop,Supplies and Services,Goods for resale,BARNES COACHES LTD,SN3 ,02/09/2022,944.86
43441233,Libraries,"Education, Inclusion and Skills",Library Shop,Supplies and Services,Goods for resale,BARNES COACHES LTD,SN3 ,28/09/2022,114.18
44144233,Physical Support,Adults,Physical Support 18 - 64,Supplies and Services,Services,BASCS LTD,SN2 ,30/09/2022,"2,083.33"
43493233,Physical Support,Adults,Physical Support 65 and over,3rd Party Payments,Nursing Care,BASSETT HOUSE CARE HOME,SN4 ,16/09/2022,"3,018.40"
43493233,Physical Support,Adults,Physical Support 65 and over,Income,Client Contribution - Nursing,BASSETT HOUSE CARE HOME,SN4 ,16/09/2022,-879.52
Corporate Card Transaction,Digital & Business Change,Digital & Business Change,IT Operations,Supplies and Services,Equipment,Buyitdirect Co Uk,,19/09/2022,"1,047.27"
43650235,Streetsmart,Streetsmart,Waterside Fleet Workshops,Supplies and Services,Materials,BBL BATTERIES,BS2 ,21/09/2022,188.60
43650235,Streetsmart,Streetsmart,Waterside Fleet Workshops,Supplies and Services,Materials,BBL BATTERIES,BS2 ,21/09/2022,238.40
42853233,Social Care,"Children, Families and Community Health Services",Childrens Placement Team,Supplies and Services,Fees,BCP COUNCIL,BH2 ,14/09/2022,"2,067.45"
43606270,Schools - Primary,DSG Skills and Attainment,Primary School Budgets,3rd Party Payments,Mainstream Delegated Funding,BEECHCROFT INFANT SCHOOL,SN2 ,16/09/2022,"97,491.00"
43606249,DSG Other Funding,DSG Skills and Attainment,DFE Additional Grants,3rd Party Payments,Payment of Pupil Premium to school,BEECHCROFT INFANT SCHOOL,SN2 ,16/09/2022,"8,128.00"
41814234,DSG Other Funding,DSG Skills and Attainment,DFE Additional Grants,Supplies and Services,Payments to Educational Bodies,BEECHCROFT INFANT SCHOOL,SN2 ,07/09/2022,788.05
43421236,High Needs Block,DSG Skills and Attainment,SEN Resourcing Assessment Panel,3rd Party Payments,Top up funding - Maintained providers Pre 16,BEECHCROFT INFANT SCHOOL,SN2 ,16/09/2022,"3,302.50"
43492236,Learning Disabilities,Adults,Learning Disability 26 - 64,Income,Client Contribution - Residential,BEECHWOOD COURT LTD,CF10,16/09/2022,-322.56
43492236,Learning Disabilities,Adults,Learning Disability 26 - 64,3rd Party Payments,Residential Care,BEECHWOOD COURT LTD,CF10,16/09/2022,"18,598.72"
43492236,Learning Disabilities,Adults,Learning Disability 26 - 64,3rd Party Payments,Residential Care,BEECHWOOD COURT LTD,CF10,16/09/2022,"26,739.16"
42784233,Parking & Bus lanes,Highway Operations and Car Parking,Car Parking,Supplies and Services,Materials,BEMROSE BOOTH PARAGON LTD,HU7 ,12/09/2022,"2,312.00"
43311233,Local Transport Plan Funded,Strategic Planning and Highways,Local Safety Schemes,Capital,Contractor Payments,BERNARD GEOMATICS LTD,SN2 ,16/09/2022,"1,269.00"
43907237,Disabled Children,"Children, Families and Community Health Services",Aiming High for Disabled Children,Supplies and Services,Services,BEST - BE A BETTER YOU,SN3 ,26/09/2022,600.00
42649249,Early Years Block,DSG Skills and Attainment,Free Nursery Education Commissioning - three & four  year olds,3rd Party Payments,Contracts - Child Care,REDACTED PERSONAL DATA,SN4 ,14/09/2022,"6,958.35"
42061235,Early Years Block,DSG Skills and Attainment,Free Nursery Education Commissioning - three & four  year olds,3rd Party Payments,Contracts - Child Care,REDACTED PERSONAL DATA,SN4 ,07/09/2022,"1,833.00"
44087233,Libraries,"Education, Inclusion and Skills",Library Delivery,Supplies and Services,Services,BIBLIOTHECA LTD,SK8 ,28/09/2022,"7,150.00"
42595233,Learning Disabilities,Adults,LD Day Services (OK4U),Premises Costs,Waste,BIFFA WASTE SERVICES LTD,HP12,09/09/2022,951.21
43606261,Schools - Primary,DSG Skills and Attainment,Primary School Budgets,3rd Party Payments,Mainstream Delegated Funding,BISHOPSTONE C E PRIMARY SCHOOL,SN6 ,16/09/2022,"26,319.00"
43606240,DSG Other Funding,DSG Skills and Attainment,DFE Additional Grants,3rd Party Payments,Payment of Pupil Premium to school,BISHOPSTONE C E PRIMARY SCHOOL,SN6 ,16/09/2022,914.00
42564233,Streetsmart,Streetsmart,Waterside Fleet Hires,Transport Costs,Vehicle Hire / Contract,BLAKEDALE LTD,PR7 ,07/09/2022,805.00
42974235,Heritage,Culture & Heritage & Art,Theatre Concept Design,Capital,Professional Fees,BLUE HORIZON VENTURES LIMITED,KT8 ,14/09/2022,"3,325.00"
42812247,Learning Disabilities,Adults,Learning Disability 26 - 64,3rd Party Payments,Personal Budget - Domiciliary care,BLUEBIRD CARE (SWINDON),SN25,14/09/2022,607.20
42812253,Physical Support,Adults,Physical Support 18 - 64,3rd Party Payments,Personal Budget - Domiciliary care,BLUEBIRD CARE (SWINDON),SN25,14/09/2022,688.16
42812245,Learning Disabilities,Adults,Learning Disability 26 - 64,3rd Party Payments,Personal Budget - Domiciliary care,BLUEBIRD CARE (SWINDON),SN25,14/09/2022,647.68
42812246,Learning Disabilities,Adults,Learning Disability 26 - 64,3rd Party Payments,Personal Budget - Domiciliary care,BLUEBIRD CARE (SWINDON),SN25,14/09/2022,"1,411.74"
42812248,Physical Support,Adults,Physical Support 65 and over,3rd Party Payments,Personal Budget - Domiciliary care,BLUEBIRD CARE (SWINDON),SN25,14/09/2022,910.80
42812255,Physical Support,Adults,Physical Support 65 and over,3rd Party Payments,Carers,BLUEBIRD CARE (SWINDON),SN25,14/09/2022,728.64
42812254,Physical Support,Adults,Physical Support 65 and over,3rd Party Payments,Personal Budget - Domiciliary care,BLUEBIRD CARE (SWINDON),SN25,14/09/2022,"1,558.48"
42812251,Learning Disabilities,Adults,Learning Disability 26 - 64,3rd Party Payments,Personal Budget - Domiciliary care,BLUEBIRD CARE (SWINDON),SN25,14/09/2022,789.36
42812250,Learning Disabilities,Adults,Learning Disability 26 - 64,3rd Party Payments,Personal Budget - Domiciliary care,BLUEBIRD CARE (SWINDON),SN25,14/09/2022,"1,153.68"
42649254,Early Years Block,DSG Skills and Attainment,Free Nursery Education Commissioning - three & four  year olds,3rd Party Payments,Contracts - Child Care,REDACTED PERSONAL DATA,SN3 ,14/09/2022,"15,681.75"
42649255,Early Years Block,DSG Skills and Attainment,Free Nursery Education Commissioning - two year olds,3rd Party Payments,Contracts - Child Care,REDACTED PERSONAL DATA,SN3 ,14/09/2022,"1,738.80"
43501233,Mental Health,Adults,Mental Health 65 and over,3rd Party Payments,Residential Care,BOLEALLER HOUSE LTD,EX15,16/09/2022,"4,719.32"
42825233,Physical Support,Adults,Fessey House,Supplies and Services,Food,BOOKER LIMITED,CH5 ,14/09/2022,437.55
42825233,Physical Support,Adults,Fessey House,Supplies and Services,Food,BOOKER LIMITED,CH5 ,14/09/2022,85.85
43919233,Physical Support,Adults,Fessey House,Supplies and Services,Food,BOOKER LIMITED,CH5 ,26/09/2022,137.77
43919233,Physical Support,Adults,Fessey House,Supplies and Services,Food,BOOKER LIMITED,CH5 ,26/09/2022,339.20
44180233,Social Care,"Children, Families and Community Health Services",Assessment and Child Protection Team,3rd Party Payments,S17 Emergency Payments,BOSTICO INTERNATIONAL COMPANY,BH1 ,30/09/2022,497.25
42664234,Customer Strategy & Operations,"People, Culture and Organisational Resilience",Cemeteries & Crematoria,Supplies and Services,Materials,BOSWELL BROS (SALISBURY) LTD,SP4 ,09/09/2022,735.45
42664233,Customer Strategy & Operations,"People, Culture and Organisational Resilience",Cemeteries & Crematoria,Supplies and Services,Materials,BOSWELL BROS (SALISBURY) LTD,SP4 ,09/09/2022,459.45
43475234,Physical Support,Adults,Physical Support 18 - 64,Income,Client Contribution - Nursing,BOTHWELLS LTD,HA6 ,16/09/2022,-425.60
43475234,Physical Support,Adults,Physical Support 18 - 64,Income,Client Contribution - Nursing,BOTHWELLS LTD,HA6 ,16/09/2022,-414.20
43475234,Physical Support,Adults,Physical Support 65 and over,3rd Party Payments,Nursing Care,BOTHWELLS LTD,HA6 ,16/09/2022,-130.63
43475234,Physical Support,Adults,Physical Support 65 and over,3rd Party Payments,Nursing Care,BOTHWELLS LTD,HA6 ,16/09/2022,-91.43
43475234,Physical Support,Adults,Physical Support 65 and over,3rd Party Payments,Nursing Care,BOTHWELLS LTD,HA6 ,16/09/2022,"11,794.84"
43475234,Physical Support,Adults,Physical Support 65 and over,Income,Client Contribution - Nursing,BOTHWELLS LTD,HA6 ,16/09/2022,-648.28
43475234,Physical Support,Adults,Physical Support 65 and over,Income,Client Contribution - Nursing,BOTHWELLS LTD,HA6 ,16/09/2022,"-6,932.06"
43475234,Physical Support,Adults,Physical Support 65 and over,3rd Party Payments,Nursing Care,BOTHWELLS LTD,HA6 ,16/09/2022,"24,104.57"
43475234,Physical Support,Adults,Physical Support 65 and over,Income,Client Contribution - Nursing,BOTHWELLS LTD,HA6 ,16/09/2022,"3,086.68"
43475234,Physical Support,Adults,Physical Support 65 and over,Income,Client Contribution - Nursing,BOTHWELLS LTD,HA6 ,16/09/2022,-38.51
43475234,Physical Support,Adults,Physical Support 65 and over,Income,Client Contribution - Nursing,BOTHWELLS LTD,HA6 ,16/09/2022,-608.80
43475234,Physical Support,Adults,Physical Support 65 and over,3rd Party Payments,Nursing Care,BOTHWELLS LTD,HA6 ,16/09/2022,133.91
43475234,Physical Support,Adults,Physical Support 65 and over,3rd Party Payments,Nursing Care,BOTHWELLS LTD,HA6 ,16/09/2022,"2,560.12"
43475234,Physical Support,Adults,Physical Support 65 and over,3rd Party Payments,Nursing Care,BOTHWELLS LTD,HA6 ,16/09/2022,"2,920.32"
43475234,Physical Support,Adults,Physical Support 65 and over,Income,Client Contribution - Nursing,BOTHWELLS LTD,HA6 ,16/09/2022,-781.40
43475234,Learning Disabilities,Adults,Learning Disability 26 - 64,3rd Party Payments,Nursing Care,BOTHWELLS LTD,HA6 ,16/09/2022,"4,079.08"
43475234,Physical Support,Adults,Physical Support 18 - 64,3rd Party Payments,Nursing Care,BOTHWELLS LTD,HA6 ,16/09/2022,"2,560.12"
43475234,Physical Support,Adults,Physical Support 65 and over,3rd Party Payments,Nursing Care,BOTHWELLS LTD,HA6 ,16/09/2022,"3,565.88"
43475234,Physical Support,Adults,Physical Support 65 and over,3rd Party Payments,Nursing Care,BOTHWELLS LTD,HA6 ,16/09/2022,91.43
43475234,Physical Support,Adults,Physical Support 65 and over,Income,Client Contribution - Nursing,BOTHWELLS LTD,HA6 ,16/09/2022,"-4,604.68"
43475234,Physical Support,Adults,Physical Support 65 and over,Income,Client Contribution - Nursing,BOTHWELLS LTD,HA6 ,16/09/2022,-659.80
43475234,Physical Support,Adults,Physical Support 65 and over,Income,Client Contribution - Nursing,BOTHWELLS LTD,HA6 ,16/09/2022,-909.16
43475234,Physical Support,Adults,Physical Support 65 and over,Income,Client Contribution - Nursing,BOTHWELLS LTD,HA6 ,16/09/2022,"-4,939.04"
43475234,Physical Support,Adults,Physical Support 18 - 64,3rd Party Payments,Nursing Care,BOTHWELLS LTD,HA6 ,16/09/2022,"2,384.04"
43475234,Physical Support,Adults,Physical Support 65 and over,3rd Party Payments,Nursing Care,BOTHWELLS LTD,HA6 ,16/09/2022,"3,733.20"
43475234,Physical Support,Adults,Physical Support 65 and over,Income,Client Contribution - Nursing,BOTHWELLS LTD,HA6 ,16/09/2022,"-1,501.95"
42728233,Property Estates,Property,Investment Properties,Supplies and Services,Fees,BPE SOLICITORS LLP,GL50,09/09/2022,"1,500.00"
43804233,Property Management,Property,Property Assets,Supplies and Services,Fees,BPE SOLICITORS LLP,GL50,23/09/2022,"1,000.00"
42649258,Early Years Block,DSG Skills and Attainment,Free Nursery Education Commissioning - three & four  year olds,3rd Party Payments,Contracts - Child Care,BRAMBLE HOUSE DAY NURSERY LTD,SN2 ,14/09/2022,"28,623.00"
42649259,Early Years Block,DSG Skills and Attainment,Free Nursery Education Commissioning - two year olds,3rd Party Payments,Contracts - Child Care,BRAMBLE HOUSE DAY NURSERY LTD,SN2 ,14/09/2022,"5,216.40"
42539241,Social Care,"Children, Families and Community Health Services",External Placements,3rd Party Payments,Residential Care,BRANAS ISAF LIMITED,EN6 ,07/09/2022,"23,785.80"
42715237,Streetsmart,Streetsmart,Waterside Fleet Hires,Transport Costs,Vehicle Hire / Contract,BRANDON HIRE STATION LIMITED,BS2 ,09/09/2022,515.00
42903235,Streetsmart,Streetsmart,Waterside Fleet Hires,Transport Costs,Vehicle Hire / Contract,BRANDON HIRE STATION LIMITED,BS2 ,14/09/2022,"1,065.00"
42715235,Streetsmart,Streetsmart,Waterside Fleet Hires,Transport Costs,Vehicle Hire / Contract,BRANDON HIRE STATION LIMITED,BS2 ,09/09/2022,473.31
42392233,Planned Maintenance Programme,HRA Capital Financing,Roofs,Capital,Contractor Payments,BREYER GROUP PLC,RM3 ,07/09/2022,"8,400.62"
42392233,Planned Maintenance Programme,HRA Capital Financing,Roofs,Capital,Contractor Payments,BREYER GROUP PLC,RM3 ,07/09/2022,"7,656.26"
42392233,Planned Maintenance Programme,HRA Capital Financing,Roofs,Capital,Contractor Payments,BREYER GROUP PLC,RM3 ,07/09/2022,"7,949.64"
42392233,Planned Maintenance Programme,HRA Capital Financing,Roofs,Capital,Contractor Payments,BREYER GROUP PLC,RM3 ,07/09/2022,"7,434.37"
42392233,Planned Maintenance Programme,HRA Capital Financing,Roofs,Capital,Contractor Payments,BREYER GROUP PLC,RM3 ,07/09/2022,"7,783.75"
42392233,Planned Maintenance Programme,HRA Capital Financing,Roofs,Capital,Contractor Payments,BREYER GROUP PLC,RM3 ,07/09/2022,"7,250.58"
42392233,Planned Maintenance Programme,HRA Capital Financing,Roofs,Capital,Contractor Payments,BREYER GROUP PLC,RM3 ,07/09/2022,"7,280.33"
42650247,Early Years Block,DSG Skills and Attainment,Free Nursery Education Commissioning - three & four  year olds,3rd Party Payments,Contracts - Child Care,BRIDLEWOOD PRIMARY SCHOOL,SN25,14/09/2022,"4,778.55"
43420243,High Needs Block,DSG Skills and Attainment,SEN Resourcing Assessment Panel,3rd Party Payments,Top up funding - Maintained providers Pre 16,BRIDLEWOOD PRIMARY SCHOOL,SN25,16/09/2022,"3,032.92"
43606245,DSG Other Funding,DSG Skills and Attainment,DFE Additional Grants,3rd Party Payments,Payment of Pupil Premium to school,BRIDLEWOOD PRIMARY SCHOOL,SN25,16/09/2022,"4,187.00"
43606266,Schools - Primary,DSG Skills and Attainment,Primary School Budgets,3rd Party Payments,Mainstream Delegated Funding,BRIDLEWOOD PRIMARY SCHOOL,SN25,16/09/2022,"75,277.00"
42797236,Streetsmart,Streetsmart,Grounds Maintenance,Supplies and Services,Materials,BRISTOL CITY COUNCIL,BS1 ,12/09/2022,105.00
42797236,Streetsmart,Streetsmart,Grounds Maintenance,Supplies and Services,Materials,BRISTOL CITY COUNCIL,BS1 ,12/09/2022,225.00
42797236,Streetsmart,Streetsmart,Grounds Maintenance,Supplies and Services,Materials,BRISTOL CITY COUNCIL,BS1 ,12/09/2022,93.00
42797236,Streetsmart,Streetsmart,Grounds Maintenance,Supplies and Services,Materials,BRISTOL CITY COUNCIL,BS1 ,12/09/2022,"8,846.85"
42797236,Streetsmart,Streetsmart,Grounds Maintenance,Supplies and Services,Materials,BRISTOL CITY COUNCIL,BS1 ,12/09/2022,114.00
42797236,Streetsmart,Streetsmart,Grounds Maintenance,Supplies and Services,Materials,BRISTOL CITY COUNCIL,BS1 ,12/09/2022,250.00
42797236,Streetsmart,Streetsmart,Grounds Maintenance,Supplies and Services,Materials,BRISTOL CITY COUNCIL,BS1 ,12/09/2022,240.00
42797236,Streetsmart,Streetsmart,Grounds Maintenance,Supplies and Services,Materials,BRISTOL CITY COUNCIL,BS1 ,12/09/2022,57.00
41742233,Responsive Repairs,Repairs,Responsive Repairs,3rd Party Payments,Contract Payments,BRISTOL FIRE,BS37,02/09/2022,798.60
44155233,Property Management,Property,Corporate Repairs & Maintenance Programme,Premises Costs,Maintenance - Buildings,BRISTOL FIRE,BS37,30/09/2022,"6,861.75"
41979233,Homelessness and Travellers,Housing Services,ASC Rental Properties,Premises Costs,Electricity,BRITISH GAS TRADING LTD,NN4 ,02/09/2022,"1,593.41"
41965233,Homelessness and Travellers,Housing Services,ASC Rental Properties,Premises Costs,Electricity,BRITISH GAS TRADING LTD,NN4 ,02/09/2022,717.75
42875237,Revenues & Benefits,Revenues & Benefits,Swindon Emergency Assistance Fund,Supplies and Services,Materials,BRITISH HEART FOUNDATION,NW1 ,14/09/2022,524.00
44223237,,,Balance Sheet,Balance Sheet & Recharge,Mobile phone invoices,BRITISH TELECOMMUNICATIONS PLC,NE82,30/09/2022,"22,958.46"
42798233,Corporate,Corporate Finance,Corporate Financial Management,Supplies and Services,Fees,BROADSTONE CONSULTANTS & ACTUARIES LTD,BS1 ,12/09/2022,"14,047.50"
43907233,Corporate,Corporate Finance,Corporate Financial Management,Supplies and Services,Fees,BROADSTONE CONSULTANTS & ACTUARIES LTD,BS1 ,26/09/2022,"18,603.75"
43432246,High Needs Block,DSG Skills and Attainment,Post 16 - New Responsibilties,3rd Party Payments,Independent Service Provider- Post 16,BRUNEL EDUCATION,SN25,16/09/2022,"112,422.67"
43424239,High Needs Block,DSG Skills and Attainment,SEN Resourcing Assessment Panel,3rd Party Payments,Top up funding - Academies and Free Schools Pre 16,REDACTED PERSONAL DATA,SN25,16/09/2022,"3,062.50"
43425239,High Needs Block,DSG Skills and Attainment,SEN Resourcing Assessment Panel,3rd Party Payments,Top up funding - Academies and Free Schools Pre 16,REDACTED PERSONAL DATA,SN25,16/09/2022,"134,079.70"
42799233,SEND Funds,Skills & Attainment,Education High Needs Provision,Capital,Contractor Payments,REDACTED PERSONAL DATA,SN25,12/09/2022,"5,000.00"
43567235,High Needs Block,DSG Skills and Attainment,Advisory Teacher Services,Supplies and Services,Payments to Educational Bodies,REDACTED PERSONAL DATA,SN25,16/09/2022,"7,250.00"
43568233,High Needs Block,DSG Skills and Attainment,Advisory Teacher Services,Supplies and Services,Payments to Educational Bodies,REDACTED PERSONAL DATA,SN25,16/09/2022,"11,317.00"
43425243,High Needs Block,DSG Skills and Attainment,SEN Resourcing Assessment Panel,3rd Party Payments,Top up funding - Academies and Free Schools Pre 16,REDACTED PERSONAL DATA,SN25,16/09/2022,"17,708.67"
43430238,High Needs Block,DSG Skills and Attainment,SEN Resourcing Assessment Panel,3rd Party Payments,Top up funding - Academies and Free Schools Pre 16,REDACTED PERSONAL DATA,SN25,16/09/2022,"21,503.03"
43430245,High Needs Block,DSG Skills and Attainment,SEN Resourcing Assessment Panel,3rd Party Payments,Top up funding - Academies and Free Schools Post 16,REDACTED PERSONAL DATA,SN25,16/09/2022,"46,684.96"
43425242,High Needs Block,DSG Skills and Attainment,SEN Resourcing Assessment Panel,3rd Party Payments,Top up funding - Academies and Free Schools Pre 16,REDACTED PERSONAL DATA,SN25,16/09/2022,"148,461.61"
42799234,SEND Funds,Skills & Attainment,Education High Needs Provision,Capital,Contractor Payments,REDACTED PERSONAL DATA,SN25,12/09/2022,"3,489.00"
43429235,High Needs Block,DSG Skills and Attainment,SEN Resourcing Assessment Panel,3rd Party Payments,Top up funding - Academies and Free Schools Pre 16,REDACTED PERSONAL DATA,SN25,16/09/2022,"9,352.85"
43427238,High Needs Block,DSG Skills and Attainment,SEN Resourcing Assessment Panel,3rd Party Payments,Top up funding - Academies and Free Schools Pre 16,REDACTED PERSONAL DATA,SN25,16/09/2022,"45,667.41"
43425238,High Needs Block,DSG Skills and Attainment,SEN Resourcing Assessment Panel,3rd Party Payments,Top up funding - Academies and Free Schools Pre 16,REDACTED PERSONAL DATA,SN25,16/09/2022,"81,295.86"
43425237,High Needs Block,DSG Skills and Attainment,SEN Resourcing Assessment Panel,3rd Party Payments,Top up funding - Academies and Free Schools Pre 16,REDACTED PERSONAL DATA,SN25,16/09/2022,"115,400.59"
44208234,Landscaping & Open Space,Culture & Heritage & Art,GWCF - Trees for Climate,Capital,Contractor Payments,BRUNEL SURVEYS LTD,CM20,30/09/2022,610.00
42840233,Property Service Charged Properties,Property,Service Charged - Kendrick Close,Premises Costs,Repairs - Grounds,BRUNEL SURVEYS LTD,CM20,14/09/2022,"5,064.90"
42337233,Property & Assets,Property & Assets,General Enhancement Works Corporate Buildings,Capital,Contractor Payments,BRUNEL SURVEYS LTD,CM20,07/09/2022,750.00
41893233,NEV,"Economy, Growth and Place",Southern Connector Road,Capital,Consultants,BRUTON KNOWLES,GL2 ,02/09/2022,915.45
41894240,NEV,"Economy, Growth and Place",Southern Connector Road,Capital,Consultants,BRUTON KNOWLES,GL2 ,02/09/2022,"1,982.55"
43616233,NEV,"Economy, Growth and Place",Southern Connector Road,Capital,Consultants,BRUTON KNOWLES,GL2 ,16/09/2022,"1,202.95"
41900233,NEV,"Economy, Growth and Place",Southern Connector Road,Capital,Consultants,BRUTON KNOWLES,GL2 ,02/09/2022,"1,137.65"
43032234,Supported Employment,Housing Services,EW - Timber,Supplies and Services,Materials,BSW TIMBER LIMITED,TD4 ,14/09/2022,"12,286.03"
43032235,Supported Employment,Housing Services,EW - Timber,Supplies and Services,Materials,BSW TIMBER LIMITED,TD4 ,14/09/2022,"13,164.89"
43617233,NEV,"Economy, Growth and Place",Southern Connector Road,Capital,Contractor Payments,BUCKINGHAM GROUP CONTRACTING LIMITED,MK18,16/09/2022,"56,462.97"
43791233,NEV,"Economy, Growth and Place",Southern Connector Road,Capital,Contractor Payments,BUCKINGHAM GROUP CONTRACTING LIMITED,MK18,23/09/2022,"571,476.08"
42951234,Schools Maintenance,Skills & Attainment,Condition Works,Capital,Contractor Payments,BUILDTECH SW LIMITED,GL53,14/09/2022,"1,088.88"
42972233,Schools Maintenance,Skills & Attainment,Condition Works,Capital,Professional Fees,BUILDTECH SW LIMITED,GL53,14/09/2022,"3,450.21"
42951234,Schools Maintenance,Skills & Attainment,Condition Works,Capital,Contractor Payments,BUILDTECH SW LIMITED,GL53,14/09/2022,828.02
42950233,Schools Maintenance,Skills & Attainment,Condition Works,Capital,Professional Fees,BUILDTECH SW LIMITED,GL53,14/09/2022,"1,782.11"
42950233,Schools Maintenance,Skills & Attainment,Condition Works,Capital,Professional Fees,BUILDTECH SW LIMITED,GL53,14/09/2022,"3,786.98"
43800234,Neighbourhood Wardens,Special Services,Neighbourhood Wardens,Supplies and Services,Hire / Rental,BUNZL CLEANING & HYGIENE SUPPLIES,SL3 ,23/09/2022,560.15
42649263,Early Years Block,DSG Skills and Attainment,Free Nursery Education Commissioning - two year olds,3rd Party Payments,Contracts - Child Care,"BUSY BEES, BROOME MANOR",SN3 ,14/09/2022,869.40
42649262,Early Years Block,DSG Skills and Attainment,Free Nursery Education Commissioning - three & four  year olds,3rd Party Payments,Contracts - Child Care,"BUSY BEES, BROOME MANOR",SN3 ,14/09/2022,"42,687.75"
42061236,Early Years Block,DSG Skills and Attainment,Free Nursery Education Commissioning - two year olds,3rd Party Payments,Contracts - Child Care,"BUSY BEES, PEATMOOR",SN5 ,07/09/2022,"1,573.20"
42649267,Early Years Block,DSG Skills and Attainment,Free Nursery Education Commissioning - two year olds,3rd Party Payments,Contracts - Child Care,"BUSY BEES, PEATMOOR",SN5 ,14/09/2022,"4,926.60"
42649266,Early Years Block,DSG Skills and Attainment,Free Nursery Education Commissioning - three & four  year olds,3rd Party Payments,Contracts - Child Care,"BUSY BEES, PEATMOOR",SN5 ,14/09/2022,"32,077.50"
42649270,Early Years Block,DSG Skills and Attainment,Free Nursery Education Commissioning - three & four  year olds,3rd Party Payments,Contracts - Child Care,"BUSY BEES, ST ANDREWS RIDGE",SN25,14/09/2022,"49,533.30"
42649271,Early Years Block,DSG Skills and Attainment,Free Nursery Education Commissioning - two year olds,3rd Party Payments,Contracts - Child Care,"BUSY BEES, ST ANDREWS RIDGE",SN25,14/09/2022,"5,796.00"
44218233,Town Centre,"Economy, Growth and Place",Towns Fund,Supplies and Services,Fees,BUTLER SIGNS,RG20,30/09/2022,654.80
44219233,Town Centre,"Economy, Growth and Place",Towns Fund,Supplies and Services,Fees,BUTLER SIGNS,RG20,30/09/2022,"1,818.80"
42924233,Town Centre,"Economy, Growth and Place",Heritage Action Zone (HAZ),Supplies and Services,Consultants,BWA EUROPE LIMITED,BR1 ,14/09/2022,"3,750.00"
Corporate Card Transaction,Social Care,"Children, Families and Community Health Services",Assessment and Child Protection Team,Employees,Training,C2e827400590g Ukvi,,30/08/2022,"5,199.00"
Corporate Card Transaction,Social Care,"Children, Families and Community Health Services",CP & CIN Social Work - South,Employees,Training,C2e827400604l Ukvi,,30/08/2022,"5,199.00"
Corporate Card Transaction,Social Care,"Children, Families and Community Health Services",Children Looked After,Employees,Training,C2e827400607b Ukvi,,30/08/2022,"5,199.00"
Corporate Card Transaction,Social Care,"Children, Families and Community Health Services",CP & CIN Social Work - North,Employees,Recruitment,C2e828100243l Ukvi,,05/09/2022,"5,199.00"
Corporate Card Transaction,Disabled Children,"Children, Families and Community Health Services",Disabled Children Team,Employees,Recruitment,C2e828100250j Ukvi,,05/09/2022,"5,199.00"
Corporate Card Transaction,Social Care,"Children, Families and Community Health Services",Children Looked After,Employees,Recruitment,C2e828100256m Ukvi,,05/09/2022,"5,199.00"
Corporate Card Transaction,Social Care,"Children, Families and Community Health Services",CP & CIN Social Work - South,Employees,Recruitment,C2e828100260u Ukvi,,05/09/2022,"5,199.00"
43483234,Learning Disabilities,Adults,Learning Disability 65 and over,Income,Client Contribution - Residential,C.H.O.I.C.E LTD,RG12,16/09/2022,-550.84
43483234,Learning Disabilities,Adults,Learning Disability 65 and over,Income,Client Contribution - Residential,C.H.O.I.C.E LTD,RG12,16/09/2022,-636.32
43482233,Learning Disabilities,Adults,Learning Disability 26 - 64,3rd Party Payments,Residential Care,C.H.O.I.C.E LTD,RG12,16/09/2022,"10,940.40"
43484233,Learning Disabilities,Adults,Learning Disability 26 - 64,3rd Party Payments,Residential Care,C.H.O.I.C.E LTD,RG12,16/09/2022,"10,934.04"
43483234,Learning Disabilities,Adults,Learning Disability 26 - 64,3rd Party Payments,Residential Care,C.H.O.I.C.E LTD,RG12,16/09/2022,"6,825.52"
43480233,Learning Disabilities,Adults,Learning Disability 26 - 64,3rd Party Payments,Residential Care,C.H.O.I.C.E LTD,RG12,16/09/2022,"9,147.40"
43483234,Learning Disabilities,Adults,Learning Disability 26 - 64,Income,Client Contribution - Residential,C.H.O.I.C.E LTD,RG12,16/09/2022,-391.00
43481233,Learning Disabilities,Adults,Learning Disability 26 - 64,Income,Client Contribution - Residential,C.H.O.I.C.E LTD,RG12,16/09/2022,-423.00
43484233,Physical Support,Adults,Physical Support 18 - 64,3rd Party Payments,Residential Care,C.H.O.I.C.E LTD,RG12,16/09/2022,"10,222.80"
43483233,Learning Disabilities,Adults,Learning Disability 65 and over,3rd Party Payments,Residential Care,C.H.O.I.C.E LTD,RG12,16/09/2022,"8,898.76"
43483234,Learning Disabilities,Adults,Learning Disability 65 and over,3rd Party Payments,Residential Care,C.H.O.I.C.E LTD,RG12,16/09/2022,"8,340.72"
43484233,Learning Disabilities,Adults,Learning Disability 26 - 64,Income,Client Contribution - Residential,C.H.O.I.C.E LTD,RG12,16/09/2022,-795.90
43482233,Learning Disabilities,Adults,Learning Disability 26 - 64,Income,Client Contribution - Residential,C.H.O.I.C.E LTD,RG12,16/09/2022,-415.00
43484233,Learning Disabilities,Adults,Learning Disability 26 - 64,Income,Client Contribution - Residential,C.H.O.I.C.E LTD,RG12,16/09/2022,-207.60
43483233,Learning Disabilities,Adults,Learning Disability 65 and over,Income,Client Contribution - Residential,C.H.O.I.C.E LTD,RG12,16/09/2022,-607.60
43481233,Learning Disabilities,Adults,Learning Disability 26 - 64,3rd Party Payments,Residential Care,C.H.O.I.C.E LTD,RG12,16/09/2022,"6,668.68"
43484233,Learning Disabilities,Adults,Learning Disability 26 - 64,3rd Party Payments,Residential Care,C.H.O.I.C.E LTD,RG12,16/09/2022,"11,677.40"
43483233,Learning Disabilities,Adults,Learning Disability 26 - 64,Income,Client Contribution - Residential,C.H.O.I.C.E LTD,RG12,16/09/2022,-595.32
43484233,Learning Disabilities,Adults,Learning Disability 26 - 64,Income,Client Contribution - Residential,C.H.O.I.C.E LTD,RG12,16/09/2022,724.85
43484233,Learning Disabilities,Adults,Learning Disability 26 - 64,Income,Client Contribution - Residential,C.H.O.I.C.E LTD,RG12,16/09/2022,-454.80
43480233,Learning Disabilities,Adults,Learning Disability 26 - 64,Income,Client Contribution - Residential,C.H.O.I.C.E LTD,RG12,16/09/2022,-298.20
43481233,Learning Disabilities,Adults,Learning Disability 26 - 64,3rd Party Payments,Residential Care,C.H.O.I.C.E LTD,RG12,16/09/2022,"6,691.00"
43484233,Physical Support,Adults,Physical Support 18 - 64,Income,Client Contribution - Residential,C.H.O.I.C.E LTD,RG12,16/09/2022,-414.20
43483234,Learning Disabilities,Adults,Learning Disability 65 and over,3rd Party Payments,Residential Care,C.H.O.I.C.E LTD,RG12,16/09/2022,"9,474.20"
43483233,Learning Disabilities,Adults,Learning Disability 65 and over,3rd Party Payments,Residential Care,C.H.O.I.C.E LTD,RG12,16/09/2022,"8,447.72"
42723234,High Needs Block,DSG Skills and Attainment,Out of Borough School Fees,3rd Party Payments,Other Local Authority Mainstream Schools- Pre 16,REDACTED PERSONAL DATA,BS15,09/09/2022,"13,998.00"
42536233,Social Care,"Children, Families and Community Health Services",External Placements,3rd Party Payments,Residential Care,CALCOT SERVICES FOR CHILDREN LTD,RG7 ,07/09/2022,"28,414.20"
42537233,Social Care,"Children, Families and Community Health Services",External Placements,3rd Party Payments,Residential Care,CALCOT SERVICES FOR CHILDREN LTD,RG7 ,07/09/2022,"28,928.40"
44260536,Learning Disabilities,Adults,Learning Disability 26 - 64,Transfer Payments,Personal Budget - Direct Payments - Domiciliary Care,REDACTED PERSONAL DATA,SP11,30/09/2022,"1,844.32"
44260626,Learning Disabilities,Adults,Learning Disability 26 - 64,Transfer Payments,Personal Budget - Direct Payments - Domiciliary Care,REDACTED PERSONAL DATA,SP11,30/09/2022,631.33
44042233,Lydiard Park,Streetsmart,Lydiard : Hotel Operations,Premises Costs,Gas,CALOR GAS LTD,CV34,28/09/2022,"3,313.00"
42539236,Social Care,"Children, Families and Community Health Services",External Placements,3rd Party Payments,Residential Care,CAMBIAN CHILDCARE LTD,EN6 ,07/09/2022,"23,691.30"
42539235,Social Care,"Children, Families and Community Health Services",External Placements,3rd Party Payments,Residential Care,CAMBIAN CHILDCARE LTD,EN6 ,07/09/2022,"25,427.10"
44260277,Physical Support,Adults,Physical Support 18 - 64,Transfer Payments,Personal Budget - Direct Payments - Domiciliary Care,REDACTED PERSONAL DATA,SN25,30/09/2022,832.29
42736235,Planned Maintenance Programme,HRA Capital Financing,Bathrooms,Capital,Contractor Payments,CANTILLON GROUP LTD,SN25,09/09/2022,"2,158.85"
42736235,Void Repairs,Supervision & Management,Void Property Repairs,3rd Party Payments,Contract Payments,CANTILLON GROUP LTD,SN25,09/09/2022,"3,910.55"
42736235,Void Repairs,Supervision & Management,Void Property Repairs,3rd Party Payments,Contract Payments,CANTILLON GROUP LTD,SN25,09/09/2022,"5,144.93"
42736235,Void Repairs,Supervision & Management,Void Property Repairs,3rd Party Payments,Contract Payments,CANTILLON GROUP LTD,SN25,09/09/2022,"4,821.07"
42736235,Void Repairs,Supervision & Management,Void Property Repairs,3rd Party Payments,Contract Payments,CANTILLON GROUP LTD,SN25,09/09/2022,"1,358.50"
42736235,Void Repairs,Supervision & Management,Void Property Repairs,3rd Party Payments,Contract Payments,CANTILLON GROUP LTD,SN25,09/09/2022,"3,291.37"
42736235,Void Repairs,Supervision & Management,Void Property Repairs,3rd Party Payments,Contract Payments,CANTILLON GROUP LTD,SN25,09/09/2022,"2,728.16"
42736235,Planned Maintenance Programme,HRA Capital Financing,Kitchens,Capital,Contractor Payments,CANTILLON GROUP LTD,SN25,09/09/2022,"3,013.58"
42736235,Void Repairs,Supervision & Management,Void Property Repairs,3rd Party Payments,Contract Payments,CANTILLON GROUP LTD,SN25,09/09/2022,"5,235.56"
42736235,Void Repairs,Supervision & Management,Void Property Repairs,3rd Party Payments,Contract Payments,CANTILLON GROUP LTD,SN25,09/09/2022,"5,539.96"
42736235,Planned Maintenance Programme,HRA Capital Financing,Kitchens,Capital,Contractor Payments,CANTILLON GROUP LTD,SN25,09/09/2022,"3,053.96"
42736235,Planned Maintenance Programme,HRA Capital Financing,Bathrooms,Capital,Contractor Payments,CANTILLON GROUP LTD,SN25,09/09/2022,"1,809.16"
42736235,Planned Maintenance Programme,HRA Capital Financing,Bathrooms,Capital,Contractor Payments,CANTILLON GROUP LTD,SN25,09/09/2022,"1,060.00"
42736235,Void Repairs,Supervision & Management,Void Property Repairs,3rd Party Payments,Contract Payments,CANTILLON GROUP LTD,SN25,09/09/2022,"8,030.69"
42736235,Void Repairs,Supervision & Management,Void Property Repairs,3rd Party Payments,Contract Payments,CANTILLON GROUP LTD,SN25,09/09/2022,"3,463.98"
42736235,Void Repairs,Supervision & Management,Void Property Repairs,3rd Party Payments,Contract Payments,CANTILLON GROUP LTD,SN25,09/09/2022,"5,297.16"
42736235,Void Repairs,Supervision & Management,Void Property Repairs,3rd Party Payments,Contract Payments,CANTILLON GROUP LTD,SN25,09/09/2022,"7,849.11"
42736235,Void Repairs,Supervision & Management,Void Property Repairs,3rd Party Payments,Contract Payments,CANTILLON GROUP LTD,SN25,09/09/2022,"8,715.90"
42736235,Planned Maintenance Programme,HRA Capital Financing,Kitchens,Capital,Contractor Payments,CANTILLON GROUP LTD,SN25,09/09/2022,"3,399.38"
42736235,Void Repairs,Supervision & Management,Void Property Repairs,3rd Party Payments,Contract Payments,CANTILLON GROUP LTD,SN25,09/09/2022,"2,183.48"
42736235,Void Repairs,Supervision & Management,Void Property Repairs,3rd Party Payments,Contract Payments,CANTILLON GROUP LTD,SN25,09/09/2022,"5,313.62"
42736235,Void Repairs,Supervision & Management,Void Property Repairs,3rd Party Payments,Contract Payments,CANTILLON GROUP LTD,SN25,09/09/2022,"2,433.49"
42736235,Void Repairs,Supervision & Management,Void Property Repairs,3rd Party Payments,Contract Payments,CANTILLON GROUP LTD,SN25,09/09/2022,"4,043.63"
42736235,Planned Maintenance Programme,HRA Capital Financing,Kitchens,Capital,Contractor Payments,CANTILLON GROUP LTD,SN25,09/09/2022,"3,522.56"
42736235,Planned Maintenance Programme,HRA Capital Financing,Bathrooms,Capital,Contractor Payments,CANTILLON GROUP LTD,SN25,09/09/2022,"2,009.40"
42736235,Void Repairs,Supervision & Management,Void Property Repairs,3rd Party Payments,Contract Payments,CANTILLON GROUP LTD,SN25,09/09/2022,"2,147.34"
42736235,Void Repairs,Supervision & Management,Void Property Repairs,3rd Party Payments,Contract Payments,CANTILLON GROUP LTD,SN25,09/09/2022,"8,789.77"
42736235,Planned Maintenance Programme,HRA Capital Financing,Kitchens,Capital,Contractor Payments,CANTILLON GROUP LTD,SN25,09/09/2022,"-10,000.00"
42736235,Planned Maintenance Programme,HRA Capital Financing,Kitchens,Capital,Contractor Payments,CANTILLON GROUP LTD,SN25,09/09/2022,"3,022.79"
42736235,Planned Maintenance Programme,HRA Capital Financing,Kitchens,Capital,Contractor Payments,CANTILLON GROUP LTD,SN25,09/09/2022,"10,000.00"
42736235,Planned Maintenance Programme,HRA Capital Financing,Kitchens,Capital,Contractor Payments,CANTILLON GROUP LTD,SN25,09/09/2022,"2,486.04"
42212233,Digital & Business Change,Digital & Business Change,IT Operations,3rd Party Payments,Capita Strategic Partnership Service Charges,CAPITA BUSINESS SERVICES LTD,DL1 ,07/09/2022,"12,974.81"
42210233,Digital & Business Change,Digital & Business Change,IT Operations,3rd Party Payments,Capita Strategic Partnership Service Charges,CAPITA BUSINESS SERVICES LTD,DL1 ,07/09/2022,"13,000.31"
42209233,Digital & Business Change,Digital & Business Change,IT Operations,3rd Party Payments,Capita Strategic Partnership Service Charges,CAPITA BUSINESS SERVICES LTD,DL1 ,07/09/2022,"13,659.44"
44067233,Revenues & Benefits,Revenues & Benefits,Revenues,3rd Party Payments,Capita Strategic Partnership Service Charges,CAPITA BUSINESS SERVICES LTD,DL1 ,28/09/2022,"12,838.24"
44067233,Revenues & Benefits,Revenues & Benefits,Revenues,3rd Party Payments,Capita Strategic Partnership Service Charges,CAPITA BUSINESS SERVICES LTD,DL1 ,28/09/2022,"110,984.36"
44067233,Revenues & Benefits,Revenues & Benefits,Benefits,3rd Party Payments,Capita Strategic Partnership Service Charges,CAPITA BUSINESS SERVICES LTD,DL1 ,28/09/2022,"196,361.57"
44067233,Revenues & Benefits,Revenues & Benefits,Benefits,3rd Party Payments,Capita Strategic Partnership Service Charges,CAPITA BUSINESS SERVICES LTD,DL1 ,28/09/2022,"2,613.00"
42206233,Digital & Business Change,Digital & Business Change,IT Operations,3rd Party Payments,Capita Strategic Partnership Service Charges,CAPITA BUSINESS SERVICES LTD,DL1 ,07/09/2022,"13,659.44"
42540233,Human Resources and Organisational Development,"People, Culture and Organisational Resilience",HR Systems & Strategy,Supplies and Services,Fees,CAPITA RESOURCING LTD,RG22,07/09/2022,"3,564.00"
42540233,Human Resources and Organisational Development,"People, Culture and Organisational Resilience",HR Systems & Strategy,Supplies and Services,Fees,CAPITA RESOURCING LTD,RG22,07/09/2022,"1,099.72"
43521237,Learning Disabilities,Adults,Learning Disability 26 - 64,3rd Party Payments,Supported Lodgings,CAREFORYOU LTD,N13 ,16/09/2022,"4,882.00"
44247276,Physical Support,Adults,Physical Support 18 - 64,3rd Party Payments,Personal Budget - Domiciliary care,CAREWATCH (SWINDON),BA14,30/09/2022,"2,910.44"
43641260,Social Care,"Children, Families and Community Health Services",Placement - Care Leaver Team,3rd Party Payments,Supported Lodgings,CARING FOR COMMUNITIES AND PEOPLE (CCP),GL50,21/09/2022,"2,630.00"
43641262,Social Care,"Children, Families and Community Health Services",Unaccompanied Asylum Seeking Children (UASC),3rd Party Payments,Supported Lodgings,CARING FOR COMMUNITIES AND PEOPLE (CCP),GL50,21/09/2022,"5,420.00"
43641263,Social Care,"Children, Families and Community Health Services",Unaccompanied Asylum Seeking Children (UASC),3rd Party Payments,Supported Lodgings,CARING FOR COMMUNITIES AND PEOPLE (CCP),GL50,21/09/2022,"5,420.00"
43641256,Social Care,"Children, Families and Community Health Services",Unaccompanied Asylum Seeking Children (UASC),3rd Party Payments,Supported Lodgings,CARING FOR COMMUNITIES AND PEOPLE (CCP),GL50,21/09/2022,"1,130.00"
43641261,Social Care,"Children, Families and Community Health Services",Placement - Care Leaver Team,3rd Party Payments,Supported Lodgings,CARING FOR COMMUNITIES AND PEOPLE (CCP),GL50,21/09/2022,"2,630.00"
43641255,Social Care,"Children, Families and Community Health Services",External Placements,3rd Party Payments,Care Packages,CARING FOR COMMUNITIES AND PEOPLE (CCP),GL50,21/09/2022,"4,850.00"
43641259,Social Care,"Children, Families and Community Health Services",Unaccompanied Asylum Seeking Children (UASC),3rd Party Payments,Supported Lodgings,CARING FOR COMMUNITIES AND PEOPLE (CCP),GL50,21/09/2022,"2,630.00"
43641251,Social Care,"Children, Families and Community Health Services",External Placements,3rd Party Payments,Care Packages,CARING FOR COMMUNITIES AND PEOPLE (CCP),GL50,21/09/2022,"3,150.00"
43641258,Social Care,"Children, Families and Community Health Services",Unaccompanied Asylum Seeking Children (UASC),3rd Party Payments,Supported Lodgings,CARING FOR COMMUNITIES AND PEOPLE (CCP),GL50,21/09/2022,"1,130.00"
43641257,Social Care,"Children, Families and Community Health Services",Unaccompanied Asylum Seeking Children (UASC),3rd Party Payments,Supported Lodgings,CARING FOR COMMUNITIES AND PEOPLE (CCP),GL50,21/09/2022,"2,630.00"
42553270,Physical Support,Adults,Physical Support 18 - 64,3rd Party Payments,Personal Budget - Domiciliary care,CARING HEART CARERS LIMITED,SN25,07/09/2022,"1,196.44"
42553268,Physical Support,Adults,Physical Support 18 - 64,3rd Party Payments,Personal Budget - Domiciliary care,CARING HEART CARERS LIMITED,SN25,07/09/2022,966.72
43694257,Physical Support,Adults,Physical Support 65 and over,3rd Party Payments,Personal Budget - Domiciliary care,CARING HEART CARERS LIMITED,SN25,21/09/2022,"1,210.08"
42553269,Physical Support,Adults,Physical Support 65 and over,3rd Party Payments,Personal Budget - Domiciliary care,CARING HEART CARERS LIMITED,SN25,07/09/2022,"1,084.94"
44260337,Learning Disabilities,Adults,Learning Disability 26 - 64,Transfer Payments,Personal Budget - Direct Payments - Domiciliary Care,REDACTED PERSONAL DATA,SN2 ,30/09/2022,"2,357.21"
44260575,Physical Support,Adults,Physical Support 65 and over,3rd Party Payments,Carers,REDACTED PERSONAL DATA,SP11,30/09/2022,527.66
42649275,Early Years Block,DSG Skills and Attainment,Free Nursery Education Commissioning - three & four  year olds,3rd Party Payments,Contracts - Child Care,REDACTED PERSONAL DATA,SN25,14/09/2022,"2,812.95"
42649274,Early Years Block,DSG Skills and Attainment,Free Nursery Education Commissioning - three & four  year olds,3rd Party Payments,Contracts - Child Care,REDACTED PERSONAL DATA,SN4 ,14/09/2022,"1,643.88"
44260581,Learning Disabilities,Adults,Learning Disability 26 - 64,Transfer Payments,Personal Budget - Direct Payments - Other,REDACTED PERSONAL DATA,SN2 ,30/09/2022,-681.56
44260578,Learning Disabilities,Adults,Learning Disability 26 - 64,Transfer Payments,Personal Budget - Direct Payments - Domiciliary Care,REDACTED PERSONAL DATA,SN2 ,30/09/2022,"1,755.30"
44260579,Learning Disabilities,Adults,Learning Disability 26 - 64,Transfer Payments,Direct Payments - ILF,REDACTED PERSONAL DATA,SN2 ,30/09/2022,"1,869.78"
44260582,Learning Disabilities,Adults,Learning Disability 26 - 64,Transfer Payments,Direct Payments - ILF,REDACTED PERSONAL DATA,SN2 ,30/09/2022,"4,261.34"
42650250,Early Years Block,DSG Skills and Attainment,Free Nursery Education Commissioning - three & four  year olds,3rd Party Payments,Contracts - Child Care,REDACTED PERSONAL DATA,SN3 ,14/09/2022,740.25
42291233,Responsive Repairs,Repairs,Responsive Repairs,3rd Party Payments,Contract Payments,CARPET WAREHOUSE SWINDON LTD,SN2 ,07/09/2022,803.28
43641284,Responsive Repairs,Repairs,Responsive Repairs,3rd Party Payments,Contract Payments,CARPET WAREHOUSE SWINDON LTD,SN2 ,21/09/2022,"1,019.74"
43641278,Responsive Repairs,Repairs,Responsive Repairs,3rd Party Payments,Contract Payments,CARPET WAREHOUSE SWINDON LTD,SN2 ,21/09/2022,803.04
43641268,Responsive Repairs,Repairs,Responsive Repairs,Supplies and Services,Materials,CARPET WAREHOUSE SWINDON LTD,SN2 ,21/09/2022,638.78
43641279,Responsive Repairs,Repairs,Responsive Repairs,3rd Party Payments,Contract Payments,CARPET WAREHOUSE SWINDON LTD,SN2 ,21/09/2022,800.00
43641275,Responsive Repairs,Repairs,Responsive Repairs,Supplies and Services,Materials,CARPET WAREHOUSE SWINDON LTD,SN2 ,21/09/2022,800.00
42290233,Responsive Repairs,Repairs,Responsive Repairs,3rd Party Payments,Contract Payments,CARPET WAREHOUSE SWINDON LTD,SN2 ,07/09/2022,892.19
43641253,Responsive Repairs,Repairs,Responsive Repairs,3rd Party Payments,Contract Payments,CARPET WAREHOUSE SWINDON LTD,SN2 ,21/09/2022,702.50
43641281,Responsive Repairs,Repairs,Responsive Repairs,3rd Party Payments,Contract Payments,CARPET WAREHOUSE SWINDON LTD,SN2 ,21/09/2022,920.00
42675234,Social Care,"Children, Families and Community Health Services",Legal Fees,Supplies and Services,Fees,CARTER BROWN LTD,B15 ,09/09/2022,"1,843.40"
42676233,Social Care,"Children, Families and Community Health Services",Legal Fees,Supplies and Services,Fees,CARTER BROWN LTD,B15 ,09/09/2022,655.20
44260354,Learning Disabilities,Adults,Learning Disability 26 - 64,Transfer Payments,Personal Budget - Direct Payments - Domiciliary Care,REDACTED PERSONAL DATA,SN6 ,30/09/2022,"2,279.00"
44251233,Traded Services,"Education, Inclusion and Skills",Plas Pencelli Outdoor Education Centre,Supplies and Services,Materials,CASTELL HOWELL FOODS LIMITED,SA14,30/09/2022,692.07
42978233,Traded Services,"Education, Inclusion and Skills",Plas Pencelli Outdoor Education Centre,Supplies and Services,Materials,CASTELL HOWELL FOODS LIMITED,SA14,23/09/2022,691.37
43911233,Traded Services,"Education, Inclusion and Skills",Plas Pencelli Outdoor Education Centre,Supplies and Services,Materials,CASTELL HOWELL FOODS LIMITED,SA14,26/09/2022,"1,288.70"
44251233,Traded Services,"Education, Inclusion and Skills",Plas Pencelli Outdoor Education Centre,Supplies and Services,Materials,CASTELL HOWELL FOODS LIMITED,SA14,30/09/2022,249.68
42978233,Traded Services,"Education, Inclusion and Skills",Plas Pencelli Outdoor Education Centre,Supplies and Services,Materials,CASTELL HOWELL FOODS LIMITED,SA14,23/09/2022,"1,955.00"
42976233,Traded Services,"Education, Inclusion and Skills",Plas Pencelli Outdoor Education Centre,Supplies and Services,Materials,CASTELL HOWELL FOODS LIMITED,SA14,23/09/2022,906.86
42976233,Traded Services,"Education, Inclusion and Skills",Plas Pencelli Outdoor Education Centre,Supplies and Services,Materials,CASTELL HOWELL FOODS LIMITED,SA14,23/09/2022,434.59
43911233,Traded Services,"Education, Inclusion and Skills",Plas Pencelli Outdoor Education Centre,Supplies and Services,Materials,CASTELL HOWELL FOODS LIMITED,SA14,26/09/2022,465.68
42394233,Treasury,Corporate Finance,Private Finance Initiatives (PFI),Supplies and Services,Services,CASTLE GATE LEGAL & COMMERCIAL LTD,NG12,07/09/2022,"2,000.00"
43838236,Treasury,Corporate Finance,Private Finance Initiatives (PFI),Supplies and Services,Services,CASTLE GATE LEGAL & COMMERCIAL LTD,NG12,23/09/2022,"2,000.00"
44243233,Treasury,Corporate Finance,Private Finance Initiatives (PFI),Supplies and Services,Services,CASTLE GATE LEGAL & COMMERCIAL LTD,NG12,30/09/2022,"2,000.00"
43468240,Learning Disabilities,Adults,Learning Disability 26 - 64,3rd Party Payments,Residential Care,CATHEDRAL HOMES,GL1 ,16/09/2022,"-8,039.12"
43468240,Learning Disabilities,Adults,Learning Disability 26 - 64,3rd Party Payments,Supported Lodgings,CATHEDRAL HOMES,GL1 ,16/09/2022,"3,252.17"
43468240,Learning Disabilities,Adults,Learning Disability 26 - 64,3rd Party Payments,Supported Lodgings,CATHEDRAL HOMES,GL1 ,16/09/2022,"4,511.07"
43468240,Learning Disabilities,Adults,Learning Disability 26 - 64,3rd Party Payments,Supported Lodgings,CATHEDRAL HOMES,GL1 ,16/09/2022,"4,174.39"
43468240,Learning Disabilities,Adults,Learning Disability 26 - 64,Income,Client Contribution - Residential,CATHEDRAL HOMES,GL1 ,16/09/2022,665.68
43468240,Learning Disabilities,Adults,Learning Disability 26 - 64,Income,Client Contribution - Residential,CATHEDRAL HOMES,GL1 ,16/09/2022,"2,736.68"
43468240,Learning Disabilities,Adults,Learning Disability 26 - 64,3rd Party Payments,Supported Lodgings,CATHEDRAL HOMES,GL1 ,16/09/2022,"19,944.32"
43468240,Learning Disabilities,Adults,Learning Disability 26 - 64,3rd Party Payments,Supported Lodgings,CATHEDRAL HOMES,GL1 ,16/09/2022,"3,018.60"
43468240,Learning Disabilities,Adults,Learning Disability 26 - 64,3rd Party Payments,Residential Care,CATHEDRAL HOMES,GL1 ,16/09/2022,"-39,389.14"
43468240,Learning Disabilities,Adults,Learning Disability 26 - 64,3rd Party Payments,Supported Lodgings,CATHEDRAL HOMES,GL1 ,16/09/2022,"2,176.20"
43468240,Learning Disabilities,Adults,Learning Disability 26 - 64,3rd Party Payments,Supported Lodgings,CATHEDRAL HOMES,GL1 ,16/09/2022,631.80
43468240,Learning Disabilities,Adults,Learning Disability 26 - 64,3rd Party Payments,Supported Lodgings,CATHEDRAL HOMES,GL1 ,16/09/2022,"4,176.92"
43468240,Learning Disabilities,Adults,Learning Disability 26 - 64,3rd Party Payments,Supported Lodgings,CATHEDRAL HOMES,GL1 ,16/09/2022,"14,378.46"
43468240,Learning Disabilities,Adults,Learning Disability 26 - 64,3rd Party Payments,Supported Lodgings,CATHEDRAL HOMES,GL1 ,16/09/2022,"6,242.09"
43468240,Learning Disabilities,Adults,Learning Disability 26 - 64,3rd Party Payments,Supported Lodgings,CATHEDRAL HOMES,GL1 ,16/09/2022,"2,386.69"
43468240,Learning Disabilities,Adults,Learning Disability 26 - 64,Income,Client Contribution - Supported Living,CATHEDRAL HOMES,GL1 ,16/09/2022,"-3,387.56"
43468240,Learning Disabilities,Adults,Learning Disability 26 - 64,3rd Party Payments,Residential Care,CATHEDRAL HOMES,GL1 ,16/09/2022,"-9,111.02"
43468240,Learning Disabilities,Adults,Learning Disability 26 - 64,3rd Party Payments,Residential Care,CATHEDRAL HOMES,GL1 ,16/09/2022,"-34,755.16"
43468240,Learning Disabilities,Adults,Learning Disability 26 - 64,3rd Party Payments,Supported Lodgings,CATHEDRAL HOMES,GL1 ,16/09/2022,944.18
43468240,Learning Disabilities,Adults,Learning Disability 26 - 64,3rd Party Payments,Supported Lodgings,CATHEDRAL HOMES,GL1 ,16/09/2022,"1,597.04"
43468240,Learning Disabilities,Adults,Learning Disability 26 - 64,3rd Party Payments,Supported Lodgings,CATHEDRAL HOMES,GL1 ,16/09/2022,"27,597.51"
43468240,Learning Disabilities,Adults,Learning Disability 26 - 64,3rd Party Payments,Supported Lodgings,CATHEDRAL HOMES,GL1 ,16/09/2022,"10,551.87"
43468240,Learning Disabilities,Adults,Learning Disability 26 - 64,Income,Client Contribution - Supported Living,CATHEDRAL HOMES,GL1 ,16/09/2022,-414.20
42650256,Early Years Block,DSG Skills and Attainment,Free Nursery Education Commissioning - two year olds,3rd Party Payments,Contracts - Child Care,REDACTED PERSONAL DATA,SN5 ,14/09/2022,579.60
43406233,Learning Disabilities,Adults,Learning Disability 26 - 64,3rd Party Payments,Supported Accommodation Scheme,REDACTED PERSONAL DATA,SN6 ,21/09/2022,"3,056.20"
43406233,Learning Disabilities,Adults,Learning Disability 26 - 64,3rd Party Payments,Supported Accommodation Scheme,REDACTED PERSONAL DATA,SN6 ,21/09/2022,"2,088.80"
43406233,Learning Disabilities,Adults,Learning Disability 26 - 64,3rd Party Payments,Supported Accommodation Scheme,REDACTED PERSONAL DATA,SN6 ,21/09/2022,"2,573.70"
42539239,Social Care,"Children, Families and Community Health Services",External Placements,3rd Party Payments,Supported Lodgings,CEDAR HOPE CARE SERVICES LTD,RG1 ,07/09/2022,"4,592.00"
42539240,Social Care,"Children, Families and Community Health Services",External Placements,3rd Party Payments,Supported Lodgings,CEDAR HOPE CARE SERVICES LTD,RG1 ,07/09/2022,"2,296.00"
43565235,Physical Support,Adults,Physical Support 65 and over,3rd Party Payments,Personal Budget - Domiciliary care,CELTIC CARE SERVICES LTD,SN15,16/09/2022,"1,457.00"
43565233,Mental Health,Adults,Mental Health 65 and over,3rd Party Payments,Personal Budget - Domiciliary care,CELTIC CARE SERVICES LTD,SN15,16/09/2022,582.80
43565234,Physical Support,Adults,Physical Support 65 and over,3rd Party Payments,Personal Budget - Domiciliary care,CELTIC CARE SERVICES LTD,SN15,16/09/2022,"1,666.16"
43564233,Physical Support,Adults,Physical Support 65 and over,3rd Party Payments,Personal Budget - Domiciliary care,CELTIC CARE SERVICES LTD,SN15,16/09/2022,"2,622.60"
43656238,Early Years Block,DSG Skills and Attainment,Free Nursery Education Commissioning - three & four  year olds,3rd Party Payments,Contracts - Child Care,CENTRAL PRE-SCHOOL,SN1 ,21/09/2022,"2,280.00"
42649280,Early Years Block,DSG Skills and Attainment,Free Nursery Education Commissioning - two year olds,3rd Party Payments,Contracts - Child Care,CENTRAL PRE-SCHOOL,SN1 ,14/09/2022,"5,042.52"
42649279,Early Years Block,DSG Skills and Attainment,Free Nursery Education Commissioning - three & four  year olds,3rd Party Payments,Contracts - Child Care,CENTRAL PRE-SCHOOL,SN1 ,14/09/2022,"25,486.84"
44088233,Public Health,Public Health,Affordable Warmth,Supplies and Services,Service Charges,CENTRE FOR SUSTAINABLE ENERGY,BS1 ,28/09/2022,"9,075.00"
42691233,Other Repairs,Repairs,Cyclical Maintenance,Premises Costs,Maintenance - Buildings,CERTSURE LLP,LU5 ,09/09/2022,"6,500.00"
42690233,Other Repairs,Repairs,Cyclical Maintenance,Premises Costs,Maintenance - Buildings,CERTSURE LLP,LU5 ,09/09/2022,"6,500.00"
43641248,Social Care,"Children, Families and Community Health Services",External Placements,3rd Party Payments,Residential Care,CFS CARE LIMITED,BL4 ,21/09/2022,"5,434.29"
43641249,Social Care,"Children, Families and Community Health Services",External Placements,3rd Party Payments,Residential Care,CFS CARE LIMITED,BL4 ,21/09/2022,"28,077.14"
42035233,Lydiard Park,Streetsmart,Lydiard : Forest Caf�,Supplies and Services,Food,CHAPPLE & JENKINS LTD,BS15,02/09/2022,9.44
43352233,Lydiard Park,Streetsmart,Lydiard : Forest Caf�,Supplies and Services,Confectionary,CHAPPLE & JENKINS LTD,BS15,16/09/2022,10.92
42907233,Facilities Management,"People, Culture and Organisational Resilience",Waterside Canteen,Supplies and Services,Confectionary,CHAPPLE & JENKINS LTD,BS15,14/09/2022,496.77
43352233,Lydiard Park,Streetsmart,Lydiard : Forest Caf�,Supplies and Services,Confectionary,CHAPPLE & JENKINS LTD,BS15,16/09/2022,726.21
42035233,Lydiard Park,Streetsmart,Lydiard : Forest Caf�,Supplies and Services,Confectionary,CHAPPLE & JENKINS LTD,BS15,02/09/2022,"1,107.54"
42035233,Lydiard Park,Streetsmart,Lydiard : Forest Caf�,Supplies and Services,Confectionary,CHAPPLE & JENKINS LTD,BS15,02/09/2022,54.71
42906233,Lydiard Park,Streetsmart,Lydiard : Forest Caf�,Supplies and Services,Confectionary,CHAPPLE & JENKINS LTD,BS15,14/09/2022,428.25
42377234,Lydiard Park,Streetsmart,Lydiard : Forest Caf�,Supplies and Services,Confectionary,CHAPPLE & JENKINS LTD,BS15,07/09/2022,938.36
42906233,Lydiard Park,Streetsmart,Lydiard : Forest Caf�,Supplies and Services,Confectionary,CHAPPLE & JENKINS LTD,BS15,14/09/2022,57.65
42377234,Lydiard Park,Streetsmart,Lydiard : Forest Caf�,Supplies and Services,Confectionary,CHAPPLE & JENKINS LTD,BS15,07/09/2022,29.52
42819234,Physical Support,Adults,Fessey House,Supplies and Services,Food,CHARLES SAUNDERS LTD,BS37,14/09/2022,937.44
42017233,Lydiard Park,Streetsmart,Lydiard : Forest Caf�,Supplies and Services,Materials,CHARLES SAUNDERS LTD,BS37,02/09/2022,11.32
42606233,Lydiard Park,Streetsmart,Lydiard : Forest Caf�,Supplies and Services,Food,CHARLES SAUNDERS LTD,BS37,09/09/2022,"1,747.54"
43936233,Physical Support,Adults,Fessey House,Supplies and Services,Food,CHARLES SAUNDERS LTD,BS37,28/09/2022,124.46
42092233,Lydiard Park,Streetsmart,Lydiard : Forest Caf�,Supplies and Services,Confectionary,CHARLES SAUNDERS LTD,BS37,07/09/2022,"1,002.41"
43936233,Physical Support,Adults,Fessey House,Supplies and Services,Food,CHARLES SAUNDERS LTD,BS37,28/09/2022,"1,144.24"
42818233,Physical Support,Adults,Fessey House,Supplies and Services,Food,CHARLES SAUNDERS LTD,BS37,14/09/2022,171.59
42092233,Lydiard Park,Streetsmart,Lydiard : Forest Caf�,Supplies and Services,Confectionary,CHARLES SAUNDERS LTD,BS37,07/09/2022,59.15
42899234,Lydiard Park,Streetsmart,Lydiard : Coach House Caf�,Supplies and Services,Food,CHARLES SAUNDERS LTD,BS37,14/09/2022,111.73
41993234,Lydiard Park,Streetsmart,Lydiard : Forest Caf�,Supplies and Services,Confectionary,CHARLES SAUNDERS LTD,BS37,02/09/2022,15.35
42092233,Lydiard Park,Streetsmart,Lydiard : Forest Caf�,Supplies and Services,Food,CHARLES SAUNDERS LTD,BS37,07/09/2022,269.39
42106234,Lydiard Park,Streetsmart,Lydiard : Coach House Caf�,Supplies and Services,Confectionary,CHARLES SAUNDERS LTD,BS37,07/09/2022,370.67
42563234,Lydiard Park,Streetsmart,Lydiard : Hotel Operations,Supplies and Services,Food,CHARLES SAUNDERS LTD,BS37,07/09/2022,63.72
42106234,Lydiard Park,Streetsmart,Lydiard : Coach House Caf�,Supplies and Services,Food,CHARLES SAUNDERS LTD,BS37,07/09/2022,56.97
41991233,Lydiard Park,Streetsmart,Lydiard : Forest Caf�,Supplies and Services,Materials,CHARLES SAUNDERS LTD,BS37,02/09/2022,27.95
41991233,Lydiard Park,Streetsmart,Lydiard : Forest Caf�,Supplies and Services,Food,CHARLES SAUNDERS LTD,BS37,02/09/2022,852.80
42899234,Lydiard Park,Streetsmart,Lydiard : Coach House Caf�,Supplies and Services,Confectionary,CHARLES SAUNDERS LTD,BS37,14/09/2022,414.98
42886233,Lydiard Park,Streetsmart,Lydiard : Hotel Operations,Supplies and Services,Food,CHARLES SAUNDERS LTD,BS37,14/09/2022,639.91
43949233,Physical Support,Adults,Fessey House,Supplies and Services,Food,CHARLES SAUNDERS LTD,BS37,28/09/2022,72.36
43948233,Physical Support,Adults,Fessey House,Supplies and Services,Food,CHARLES SAUNDERS LTD,BS37,28/09/2022,160.84
42819234,Physical Support,Adults,Fessey House,Supplies and Services,Food,CHARLES SAUNDERS LTD,BS37,14/09/2022,112.08
41993234,Lydiard Park,Streetsmart,Lydiard : Forest Caf�,Supplies and Services,Confectionary,CHARLES SAUNDERS LTD,BS37,02/09/2022,408.40
41993234,Lydiard Park,Streetsmart,Lydiard : Forest Caf�,Supplies and Services,Confectionary,CHARLES SAUNDERS LTD,BS37,02/09/2022,"1,917.29"
42017233,Lydiard Park,Streetsmart,Lydiard : Forest Caf�,Supplies and Services,Food,CHARLES SAUNDERS LTD,BS37,02/09/2022,596.08
41993234,Lydiard Park,Streetsmart,Lydiard : Forest Caf�,Supplies and Services,Food,CHARLES SAUNDERS LTD,BS37,02/09/2022,57.91
42106234,Lydiard Park,Streetsmart,Lydiard : Coach House Caf�,Supplies and Services,Food,CHARLES SAUNDERS LTD,BS37,07/09/2022,137.48
42106234,Lydiard Park,Streetsmart,Lydiard : Coach House Caf�,Supplies and Services,Confectionary,CHARLES SAUNDERS LTD,BS37,07/09/2022,261.88
43949233,Physical Support,Adults,Fessey House,Supplies and Services,Food,CHARLES SAUNDERS LTD,BS37,28/09/2022,701.34
42606233,Lydiard Park,Streetsmart,Lydiard : Forest Caf�,Supplies and Services,Confectionary,CHARLES SAUNDERS LTD,BS37,09/09/2022,834.92
41991233,Lydiard Park,Streetsmart,Lydiard : Forest Caf�,Supplies and Services,Confectionary,CHARLES SAUNDERS LTD,BS37,02/09/2022,19.75
42563234,Lydiard Park,Streetsmart,Lydiard : Hotel Operations,Supplies and Services,Food,CHARLES SAUNDERS LTD,BS37,07/09/2022,463.05
43948233,Physical Support,Adults,Fessey House,Supplies and Services,Food,CHARLES SAUNDERS LTD,BS37,28/09/2022,"1,079.02"
42818233,Physical Support,Adults,Fessey House,Supplies and Services,Food,CHARLES SAUNDERS LTD,BS37,14/09/2022,964.51
42852233,Business Development,Supervision & Management,Personnel &Performance,Employees,Training,CHARTERED INSTITUTE OF HOUSING,CV4 ,14/09/2022,"2,160.00"
42649498,Early Years Block,DSG Skills and Attainment,Free Nursery Education Commissioning - two year olds,3rd Party Payments,Contracts - Child Care,CHEEKY CHIMPS,SN2 ,14/09/2022,"3,477.60"
42649497,Early Years Block,DSG Skills and Attainment,Free Nursery Education Commissioning - three & four  year olds,3rd Party Payments,Contracts - Child Care,CHEEKY CHIMPS,SN2 ,14/09/2022,"25,045.13"
43452234,Physical Support,Adults,Physical Support 65 and over,3rd Party Payments,Residential Care,CHERITON (SW CARE) LTD,GL52,16/09/2022,"2,384.04"
43452234,Physical Support,Adults,Physical Support 65 and over,Income,Client Contribution - Residential,CHERITON (SW CARE) LTD,GL52,16/09/2022,-608.80
43452234,Physical Support,Adults,Physical Support 65 and over,3rd Party Payments,Nursing Care,CHERITON (SW CARE) LTD,GL52,16/09/2022,"-5,202.25"
43452234,Physical Support,Adults,Physical Support 65 and over,3rd Party Payments,Nursing Care,CHERITON (SW CARE) LTD,GL52,16/09/2022,"-4,852.69"
43452234,Physical Support,Adults,Physical Support 65 and over,3rd Party Payments,Nursing Care,CHERITON (SW CARE) LTD,GL52,16/09/2022,"3,657.31"
43452234,Physical Support,Adults,Physical Support 65 and over,3rd Party Payments,Residential Care,CHERITON (SW CARE) LTD,GL52,16/09/2022,"2,668.72"
43452234,Physical Support,Adults,Physical Support 18 - 64,3rd Party Payments,Residential Care,CHERITON (SW CARE) LTD,GL52,16/09/2022,"2,384.04"
43452234,Physical Support,Adults,Physical Support 65 and over,3rd Party Payments,Residential Care,CHERITON (SW CARE) LTD,GL52,16/09/2022,"-4,937.37"
43452234,Physical Support,Adults,Physical Support 65 and over,Income,Client Contribution - Nursing,CHERITON (SW CARE) LTD,GL52,16/09/2022,-627.80
43452234,Physical Support,Adults,Physical Support 65 and over,Income,Client Contribution - Residential,CHERITON (SW CARE) LTD,GL52,16/09/2022,-605.40
43452234,Physical Support,Adults,Physical Support 65 and over,3rd Party Payments,Residential Care,CHERITON (SW CARE) LTD,GL52,16/09/2022,"2,560.12"
43452234,Physical Support,Adults,Physical Support 65 and over,Income,Client Contribution - Nursing,CHERITON (SW CARE) LTD,GL52,16/09/2022,"-1,479.52"
43452234,Physical Support,Adults,Physical Support 65 and over,Income,Client Contribution - Residential,CHERITON (SW CARE) LTD,GL52,16/09/2022,-610.00
43452234,Physical Support,Adults,Physical Support 65 and over,3rd Party Payments,Nursing Care,CHERITON (SW CARE) LTD,GL52,16/09/2022,"2,384.04"
43570233,Physical Support,Adults,Physical Support 65 and over,3rd Party Payments,Other Care Packages,CHERITON (SW CARE) LTD,SN1 ,16/09/2022,"12,857.14"
43452234,Physical Support,Adults,Physical Support 65 and over,Income,Client Contribution - Nursing,CHERITON (SW CARE) LTD,GL52,16/09/2022,-968.72
43452234,Physical Support,Adults,Physical Support 65 and over,Income,Client Contribution - Residential,CHERITON (SW CARE) LTD,GL52,16/09/2022,43.57
43452234,Physical Support,Adults,Physical Support 65 and over,3rd Party Payments,Nursing Care,CHERITON (SW CARE) LTD,GL52,16/09/2022,"2,560.12"
43452234,Physical Support,Adults,Physical Support 65 and over,3rd Party Payments,Nursing Care,CHERITON (SW CARE) LTD,GL52,16/09/2022,"-3,795.94"
43452234,Physical Support,Adults,Physical Support 65 and over,Income,Client Contribution - Residential,CHERITON (SW CARE) LTD,GL52,16/09/2022,"1,176.43"
43452234,Physical Support,Adults,Physical Support 65 and over,Income,Client Contribution - Residential,CHERITON (SW CARE) LTD,GL52,16/09/2022,-572.20
42229233,Physical Support,Adults,Physical Support 65 and over,3rd Party Payments,Residential Care,CHERITON (SW CARE) LTD,SN1 ,07/09/2022,"2,699.44"
43452234,Physical Support,Adults,Physical Support 65 and over,Income,Client Contribution - Nursing,CHERITON (SW CARE) LTD,GL52,16/09/2022,-678.48
42649530,Early Years Block,DSG Skills and Attainment,Free Nursery Education Commissioning - three & four  year olds,3rd Party Payments,Contracts - Child Care,CHILD BASE NURSERIES,MK16,14/09/2022,"40,196.46"
42649531,Early Years Block,DSG Skills and Attainment,Free Nursery Education Commissioning - two year olds,3rd Party Payments,Contracts - Child Care,CHILD BASE NURSERIES,MK16,14/09/2022,"2,245.95"
42182233,Responsive Repairs,Repairs,Responsive Repairs,3rd Party Payments,Contract Payments,CHILD SCAFFOLDING LTD,SN1 ,07/09/2022,65.00
42181233,Responsive Repairs,Repairs,Responsive Repairs,3rd Party Payments,Contract Payments,CHILD SCAFFOLDING LTD,SN1 ,07/09/2022,480.00
42180233,Responsive Repairs,Repairs,Responsive Repairs,3rd Party Payments,Contract Payments,CHILD SCAFFOLDING LTD,SN1 ,07/09/2022,620.00
42179233,Responsive Repairs,Repairs,Responsive Repairs,3rd Party Payments,Contract Payments,CHILD SCAFFOLDING LTD,SN1 ,07/09/2022,660.00
42176233,Responsive Repairs,Repairs,Responsive Repairs,3rd Party Payments,Contract Payments,CHILD SCAFFOLDING LTD,SN1 ,07/09/2022,176.00
42175233,Responsive Repairs,Repairs,Responsive Repairs,3rd Party Payments,Contract Payments,CHILD SCAFFOLDING LTD,SN1 ,07/09/2022,"1,590.00"
42174233,Responsive Repairs,Repairs,Responsive Repairs,3rd Party Payments,Contract Payments,CHILD SCAFFOLDING LTD,SN1 ,07/09/2022,460.00
42177233,Responsive Repairs,Repairs,Responsive Repairs,3rd Party Payments,Contract Payments,CHILD SCAFFOLDING LTD,SN1 ,07/09/2022,621.00
42182233,Responsive Repairs,Repairs,Responsive Repairs,3rd Party Payments,Contract Payments,CHILD SCAFFOLDING LTD,SN1 ,07/09/2022,130.00
42182233,Responsive Repairs,Repairs,Responsive Repairs,3rd Party Payments,Contract Payments,CHILD SCAFFOLDING LTD,SN1 ,07/09/2022,195.00
44223234,Responsive Repairs,Repairs,Responsive Repairs,3rd Party Payments,Contract Payments,CHILD SCAFFOLDING LTD,SN1 ,30/09/2022,480.00
42176233,Responsive Repairs,Repairs,Responsive Repairs,3rd Party Payments,Contract Payments,CHILD SCAFFOLDING LTD,SN1 ,07/09/2022,98.40
42182233,Responsive Repairs,Repairs,Responsive Repairs,3rd Party Payments,Contract Payments,CHILD SCAFFOLDING LTD,SN1 ,07/09/2022,260.00
42176233,Responsive Repairs,Repairs,Responsive Repairs,3rd Party Payments,Contract Payments,CHILD SCAFFOLDING LTD,SN1 ,07/09/2022,229.60
42176233,Responsive Repairs,Repairs,Responsive Repairs,3rd Party Payments,Contract Payments,CHILD SCAFFOLDING LTD,SN1 ,07/09/2022,"1,338.40"
42176233,Responsive Repairs,Repairs,Responsive Repairs,3rd Party Payments,Contract Payments,CHILD SCAFFOLDING LTD,SN1 ,07/09/2022,435.20
42176233,Responsive Repairs,Repairs,Responsive Repairs,3rd Party Payments,Contract Payments,CHILD SCAFFOLDING LTD,SN1 ,07/09/2022,172.00
42176233,Responsive Repairs,Repairs,Responsive Repairs,3rd Party Payments,Contract Payments,CHILD SCAFFOLDING LTD,SN1 ,07/09/2022,123.20
42176233,Responsive Repairs,Repairs,Responsive Repairs,3rd Party Payments,Contract Payments,CHILD SCAFFOLDING LTD,SN1 ,07/09/2022,60.80
42178233,Responsive Repairs,Repairs,Responsive Repairs,3rd Party Payments,Contract Payments,CHILD SCAFFOLDING LTD,SN1 ,07/09/2022,"1,350.00"
42626234,Social Care,"Children, Families and Community Health Services",CP & CIN Social Work - South,3rd Party Payments,Personal Needs,CHILDREN'S CONTACT SERVICES LTD,BS9 ,09/09/2022,"1,830.00"
43836234,Parking & Bus lanes,Highway Operations and Car Parking,Street Parking,Supplies and Services,Materials,CHIPSIDE LTD,SN15,23/09/2022,588.24
43836234,Parking & Bus lanes,Highway Operations and Car Parking,Bus Lane Enforcement,Supplies and Services,Materials,CHIPSIDE LTD,SN15,23/09/2022,"2,220.72"
43836234,Parking & Bus lanes,Highway Operations and Car Parking,Bus Lane Enforcement,Supplies and Services,Materials,CHIPSIDE LTD,SN15,23/09/2022,387.45
43836234,Parking & Bus lanes,Highway Operations and Car Parking,Street Parking,Supplies and Services,Materials,CHIPSIDE LTD,SN15,23/09/2022,491.40
42783233,Parking & Bus lanes,Highway Operations and Car Parking,Car Parking,Supplies and Services,Fees,CHIPSIDE LTD,SN15,12/09/2022,554.68
43606241,DSG Other Funding,DSG Skills and Attainment,DFE Additional Grants,3rd Party Payments,Payment of Pupil Premium to school,CHISELDON PRIMARY SCHOOL,SN4 ,16/09/2022,"3,679.00"
42650257,Early Years Block,DSG Skills and Attainment,Free Nursery Education Commissioning - three & four  year olds,3rd Party Payments,Contracts - Child Care,CHISELDON PRIMARY SCHOOL,SN4 ,14/09/2022,"2,163.00"
43606262,Schools - Primary,DSG Skills and Attainment,Primary School Budgets,3rd Party Payments,Mainstream Delegated Funding,CHISELDON PRIMARY SCHOOL,SN4 ,16/09/2022,"62,191.00"
41869235,DSG Other Funding,DSG Skills and Attainment,DFE Additional Grants,Supplies and Services,Payments to Educational Bodies,CHISELDON PRIMARY SCHOOL,SN4 ,07/09/2022,"1,200.00"
43475235,Learning Disabilities,Adults,Learning Disability 65 and over,Income,Client Contribution - Residential,CHOSEN CARE LTD,GL3 ,16/09/2022,-605.80
43475235,Learning Disabilities,Adults,Learning Disability 26 - 64,3rd Party Payments,Residential Care,CHOSEN CARE LTD,GL3 ,16/09/2022,"11,209.16"
43475235,Learning Disabilities,Adults,Learning Disability 26 - 64,3rd Party Payments,Residential Care,CHOSEN CARE LTD,GL3 ,16/09/2022,"7,137.76"
43475235,Learning Disabilities,Adults,Learning Disability 26 - 64,3rd Party Payments,Residential Care,CHOSEN CARE LTD,GL3 ,16/09/2022,"7,145.08"
43475235,Learning Disabilities,Adults,Learning Disability 26 - 64,Income,Client Contribution - Residential,CHOSEN CARE LTD,GL3 ,16/09/2022,-359.00
43475235,Learning Disabilities,Adults,Learning Disability 65 and over,3rd Party Payments,Residential Care,CHOSEN CARE LTD,GL3 ,16/09/2022,"7,297.20"
43475235,Learning Disabilities,Adults,Learning Disability 26 - 64,Income,Client Contribution - Residential,CHOSEN CARE LTD,GL3 ,16/09/2022,-319.00
44260440,Physical Support,Adults,Physical Support 18 - 64,Transfer Payments,Personal Budget - Direct Payments - Domiciliary Care,REDACTED PERSONAL DATA,SN25,30/09/2022,763.29
42780367,Social Care,"Children, Families and Community Health Services",Placement Adoption Service,3rd Party Payments,Adoption Allowances,REDACTED PERSONAL DATA,SN6 ,12/09/2022,"1,055.64"
43924363,Social Care,"Children, Families and Community Health Services",Placement Adoption Service,3rd Party Payments,Adoption Allowances,REDACTED PERSONAL DATA,SN6 ,26/09/2022,"1,055.64"
43924362,Social Care,"Children, Families and Community Health Services",Placement Adoption Service,3rd Party Payments,Adoption Allowances,REDACTED PERSONAL DATA,SN6 ,26/09/2022,699.84
42780366,Social Care,"Children, Families and Community Health Services",Placement Adoption Service,3rd Party Payments,Adoption Allowances,REDACTED PERSONAL DATA,SN6 ,12/09/2022,699.84
44259233,Supported Employment,Housing Services,EW - Assembly,Employees,SBC Staff Terms - Basic,REDACTED PERSONAL DATA,SN5 ,30/09/2022,500.00
43525233,Disabled Children,"Children, Families and Community Health Services",DCT Daytime Short Breaks,3rd Party Payments,Respite Care,REDACTED PERSONAL DATA,CV1 ,16/09/2022,780.00
43894248,Other Repairs,Repairs,Cyclical Maintenance,Premises Costs,Permanent Fixtures and Fittings,CHUBB FIRE & SECURITY T/A CHUBB COMMUNITY CARE,BB1 ,26/09/2022,"3,958.84"
43894247,Planned Maintenance Programme,HRA Capital Financing,Electrics,Capital,Contractor Payments,CHUBB FIRE & SECURITY T/A CHUBB COMMUNITY CARE,BB1 ,26/09/2022,"8,988.51"
43492241,Physical Support,Adults,Physical Support 65 and over,3rd Party Payments,Nursing Care,CHURCH VIEW,SN3 ,16/09/2022,"4,200.00"
43492241,Physical Support,Adults,Physical Support 65 and over,Income,Client Contribution - Nursing,CHURCH VIEW,SN3 ,16/09/2022,-763.24
43492241,Physical Support,Adults,Physical Support 65 and over,3rd Party Payments,Nursing Care,CHURCH VIEW,SN3 ,16/09/2022,"7,950.00"
43492241,Physical Support,Adults,Physical Support 65 and over,3rd Party Payments,Nursing Care,CHURCH VIEW,SN3 ,16/09/2022,"5,823.22"
43492241,Physical Support,Adults,Physical Support 65 and over,Income,Client Contribution - Nursing,CHURCH VIEW,SN3 ,16/09/2022,-911.16
43492241,Physical Support,Adults,Physical Support 65 and over,Income,Client Contribution - Nursing,CHURCH VIEW,SN3 ,16/09/2022,-535.88
43492241,Physical Support,Adults,Physical Support 65 and over,Income,Client Contribution - Nursing,CHURCH VIEW,SN3 ,16/09/2022,-606.52
43492241,Physical Support,Adults,Physical Support 65 and over,Income,Client Contribution - Nursing,CHURCH VIEW,SN3 ,16/09/2022,-620.28
43492241,Physical Support,Adults,Physical Support 65 and over,Income,Client Contribution - Nursing,CHURCH VIEW,SN3 ,16/09/2022,"-1,288.96"
43492241,Physical Support,Adults,Physical Support 65 and over,3rd Party Payments,Nursing Care,CHURCH VIEW,SN3 ,16/09/2022,"5,235.68"
43492241,Physical Support,Adults,Physical Support 65 and over,3rd Party Payments,Nursing Care,CHURCH VIEW,SN3 ,16/09/2022,"2,668.72"
43492241,Physical Support,Adults,Physical Support 65 and over,Income,Client Contribution - Nursing,CHURCH VIEW,SN3 ,16/09/2022,"-1,802.48"
43492241,Physical Support,Adults,Physical Support 65 and over,Income,Client Contribution - Nursing,CHURCH VIEW,SN3 ,16/09/2022,-833.52
43492241,Physical Support,Adults,Physical Support 65 and over,3rd Party Payments,Nursing Care,CHURCH VIEW,SN3 ,16/09/2022,"4,610.05"
43492241,Physical Support,Adults,Physical Support 65 and over,Income,Client Contribution - Nursing,CHURCH VIEW,SN3 ,16/09/2022,"-1,496.90"
43492241,Physical Support,Adults,Physical Support 65 and over,Income,Client Contribution - Nursing,CHURCH VIEW,SN3 ,16/09/2022,-910.56
43492241,Physical Support,Adults,Physical Support 65 and over,3rd Party Payments,Nursing Care,CHURCH VIEW,SN3 ,16/09/2022,"8,601.47"
43492241,Physical Support,Adults,Physical Support 65 and over,3rd Party Payments,Nursing Care,CHURCH VIEW,SN3 ,16/09/2022,"5,236.76"
43492241,Physical Support,Adults,Physical Support 65 and over,3rd Party Payments,Nursing Care,CHURCH VIEW,SN3 ,16/09/2022,"3,396.88"
43492241,Physical Support,Adults,Physical Support 65 and over,Income,Client Contribution - Nursing,CHURCH VIEW,SN3 ,16/09/2022,-999.64
43492241,Physical Support,Adults,Physical Support 65 and over,Income,Client Contribution - Nursing,CHURCH VIEW,SN3 ,16/09/2022,-610.00
43492241,Physical Support,Adults,Physical Support 65 and over,Income,Client Contribution - Nursing,CHURCH VIEW,SN3 ,16/09/2022,-351.16
43492241,Physical Support,Adults,Physical Support 65 and over,Income,Client Contribution - Nursing,CHURCH VIEW,SN3 ,16/09/2022,-741.88
43492241,Physical Support,Adults,Physical Support 65 and over,3rd Party Payments,Nursing Care,CHURCH VIEW,SN3 ,16/09/2022,"2,560.12"
43506233,Learning Disabilities,Adults,Learning Disability 26 - 64,Income,Client Contribution - Residential,CIDERSTONE HOUSE,SN25,16/09/2022,-423.00
43506233,Learning Disabilities,Adults,Learning Disability 26 - 64,3rd Party Payments,Residential Care,CIDERSTONE HOUSE,SN25,16/09/2022,"11,049.40"
43506233,Learning Disabilities,Adults,Learning Disability 26 - 64,Income,Client Contribution - Residential,CIDERSTONE HOUSE,SN25,16/09/2022,-438.80
43506233,Learning Disabilities,Adults,Learning Disability 26 - 64,3rd Party Payments,Residential Care,CIDERSTONE HOUSE,SN25,16/09/2022,"9,895.88"
43506233,Learning Disabilities,Adults,Learning Disability 26 - 64,Income,Client Contribution - Residential,CIDERSTONE HOUSE,SN25,16/09/2022,-677.60
43506233,Learning Disabilities,Adults,Learning Disability 26 - 64,Income,Client Contribution - Residential,CIDERSTONE HOUSE,SN25,16/09/2022,-425.60
43506233,Learning Disabilities,Adults,Learning Disability 26 - 64,3rd Party Payments,Residential Care,CIDERSTONE HOUSE,SN25,16/09/2022,"10,495.76"
43506233,Learning Disabilities,Adults,Learning Disability 26 - 64,3rd Party Payments,Residential Care,CIDERSTONE HOUSE,SN25,16/09/2022,"9,703.96"
43506233,Learning Disabilities,Adults,Learning Disability 26 - 64,3rd Party Payments,Residential Care,CIDERSTONE HOUSE,SN25,16/09/2022,"10,018.48"
43506233,Learning Disabilities,Adults,Learning Disability 26 - 64,Income,Client Contribution - Residential,CIDERSTONE HOUSE,SN25,16/09/2022,-414.20
43819233,Highways & Transport,Highways & Transport,Highways Management,Supplies and Services,Subscriptions,CIPFA BUSINESS LIMITED,E1 8,23/09/2022,"1,495.00"
43432248,High Needs Block,DSG Skills and Attainment,Post 16 - New Responsibilties,3rd Party Payments,FE Colleges,CIRENCESTER COLLEGE,GL7 ,16/09/2022,"3,283.67"
43432237,High Needs Block,DSG Skills and Attainment,Out of Borough School Fees,3rd Party Payments,Other Local Authority Mainstream Schools- Pre 16,CIRENCESTER KINGSHILL SCHOOL,GL7 ,16/09/2022,582.00
43432240,High Needs Block,DSG Skills and Attainment,Out of Borough School Fees,3rd Party Payments,Other Local Authority Mainstream Schools- Pre 16,CIRENCESTER KINGSHILL SCHOOL,GL7 ,16/09/2022,582.00
43827243,Homelessness and Travellers,Housing Services,Leased Private Managed Accommodation,Transfer Payments,Payment of Costs,REDACTED PERSONAL DATA,SN5 ,23/09/2022,575.00
Corporate Card Transaction,Community Health & Wellbeing,Public Health,Community Health and Wellbeing Management,Supplies and Services,Materials,Citrix Systems Inc.,,09/09/2022,574.42
43828235,Planned Maintenance Programme,HRA Capital Financing,Exceptional Extensive,Capital,Contractor Payments,CITY ENERGY NETWORK LTD,CF10,23/09/2022,"1,924.00"
41771233,Planned Maintenance Programme,HRA Capital Financing,Exceptional Extensive,Capital,Contractor Payments,CITY ENERGY NETWORK LTD,CF10,02/09/2022,"1,924.00"
42396233,Planned Maintenance Programme,HRA Capital Financing,Exceptional Extensive,Capital,Contractor Payments,CITY ENERGY NETWORK LTD,CF10,07/09/2022,586.40
41760233,Elections & Democracy,Elections and Democracy,Register of Electors,Supplies and Services,Post,CIVICA ELECTION SERVICES LIMITED,N8 0,02/09/2022,475.50
44199234,Elections & Democracy,Elections and Democracy,Local Elections,Supplies and Services,Materials,CIVICA ELECTION SERVICES LIMITED,N8 0,30/09/2022,742.76
44199234,Elections & Democracy,Elections and Democracy,Local Elections,Supplies and Services,Materials,CIVICA ELECTION SERVICES LIMITED,N8 0,30/09/2022,"1,787.89"
44199234,Elections & Democracy,Elections and Democracy,Local Elections,Supplies and Services,Post,CIVICA ELECTION SERVICES LIMITED,N8 0,30/09/2022,160.00
44199234,Elections & Democracy,Elections and Democracy,Local Elections,Supplies and Services,Post,CIVICA ELECTION SERVICES LIMITED,N8 0,30/09/2022,"1,559.42"
41760233,Elections & Democracy,Elections and Democracy,Register of Electors,Supplies and Services,Materials,CIVICA ELECTION SERVICES LIMITED,N8 0,02/09/2022,543.26
44032235,Human Resources and Organisational Development,"People, Culture and Organisational Resilience",HR Systems & Strategy,Supplies and Services,License Costs,CIVICA UK LTD,DY1 ,28/09/2022,"40,148.20"
42020233,Planning & Regulatory,Strategic Planning,Economy & Development Management,Employees,Temporary / Agency - by Accounts Payable,REDACTED PERSONAL DATA,BS37,02/09/2022,"8,457.60"
42650260,Early Years Block,DSG Skills and Attainment,Free Nursery Education Commissioning - three & four  year olds,3rd Party Payments,Contracts - Child Care,REDACTED PERSONAL DATA,SN2 ,14/09/2022,682.68
42773233,NEV,"Economy, Growth and Place",Southern Connector Road,Capital,Professional Fees,CLARKE WILLMOTT LLP,SO30,12/09/2022,780.50
42061240,Early Years Block,DSG Skills and Attainment,Free Nursery Education Commissioning - three & four  year olds,3rd Party Payments,Contracts - Child Care,CLIFTON ST PRE-SCHOOL,SN1 ,07/09/2022,741.60
43656237,Early Years Block,DSG Skills and Attainment,Free Nursery Education Commissioning - three & four  year olds,3rd Party Payments,Contracts - Child Care,CLIFTON ST PRE-SCHOOL,SN1 ,21/09/2022,750.00
42649285,Early Years Block,DSG Skills and Attainment,Free Nursery Education Commissioning - three & four  year olds,3rd Party Payments,Contracts - Child Care,CLIFTON ST PRE-SCHOOL,SN1 ,14/09/2022,"8,695.26"
43656236,Early Years Block,DSG Skills and Attainment,Free Nursery Education Commissioning - three & four  year olds,3rd Party Payments,Contracts - Child Care,CLIFTON ST PRE-SCHOOL,SN1 ,21/09/2022,"1,500.00"
43491233,Physical Support,Adults,Physical Support 65 and over,Income,Client Contribution - Residential,COATE WATER CARE CO LTD,SN3 ,16/09/2022,-539.40
43491233,Physical Support,Adults,Physical Support 18 - 64,3rd Party Payments,Residential Care,COATE WATER CARE CO LTD,SN3 ,16/09/2022,"2,668.72"
43491233,Physical Support,Adults,Physical Support 18 - 64,3rd Party Payments,Residential Care,COATE WATER CARE CO LTD,SN3 ,16/09/2022,"2,560.12"
43491233,Physical Support,Adults,Physical Support 65 and over,Income,Client Contribution - Residential,COATE WATER CARE CO LTD,SN3 ,16/09/2022,-506.20
43491233,Physical Support,Adults,Physical Support 65 and over,3rd Party Payments,Residential Care,COATE WATER CARE CO LTD,SN3 ,16/09/2022,"-6,290.55"
43491233,Physical Support,Adults,Physical Support 65 and over,Income,Client Contribution - Residential,COATE WATER CARE CO LTD,SN3 ,16/09/2022,-893.72
43491233,Physical Support,Adults,Physical Support 18 - 64,Income,Client Contribution - Residential,COATE WATER CARE CO LTD,SN3 ,16/09/2022,-359.00
43491233,Physical Support,Adults,Physical Support 65 and over,3rd Party Payments,Residential Care,COATE WATER CARE CO LTD,SN3 ,16/09/2022,"-38,235.43"
43491233,Physical Support,Adults,Physical Support 65 and over,Income,Client Contribution - Residential,COATE WATER CARE CO LTD,SN3 ,16/09/2022,-732.00
43491233,Physical Support,Adults,Physical Support 65 and over,Income,Client Contribution - Residential,COATE WATER CARE CO LTD,SN3 ,16/09/2022,-954.00
43491233,Physical Support,Adults,Physical Support 65 and over,Income,Client Contribution - Residential,COATE WATER CARE CO LTD,SN3 ,16/09/2022,-622.80
43491233,Physical Support,Adults,Physical Support 65 and over,Income,Client Contribution - Residential,COATE WATER CARE CO LTD,SN3 ,16/09/2022,"6,974.69"
43491233,Physical Support,Adults,Physical Support 65 and over,Income,Client Contribution - Residential,COATE WATER CARE CO LTD,SN3 ,16/09/2022,"-1,201.84"
43491233,Physical Support,Adults,Physical Support 65 and over,Income,Client Contribution - Residential,COATE WATER CARE CO LTD,SN3 ,16/09/2022,-727.20
43491233,Physical Support,Adults,Physical Support 65 and over,Income,Client Contribution - Residential,COATE WATER CARE CO LTD,SN3 ,16/09/2022,"-1,135.44"
43491233,Physical Support,Adults,Physical Support 65 and over,3rd Party Payments,Residential Care,COATE WATER CARE CO LTD,SN3 ,16/09/2022,"3,328.00"
43491233,Physical Support,Adults,Physical Support 65 and over,3rd Party Payments,Residential Care,COATE WATER CARE CO LTD,SN3 ,16/09/2022,"2,560.12"
43491233,Physical Support,Adults,Physical Support 65 and over,3rd Party Payments,Residential Care,COATE WATER CARE CO LTD,SN3 ,16/09/2022,"2,668.72"
43491233,Physical Support,Adults,Physical Support 65 and over,Income,Client Contribution - Residential,COATE WATER CARE CO LTD,SN3 ,16/09/2022,-955.48
43491233,Mental Health,Adults,Mental Health 65 and over,3rd Party Payments,Residential Care,COATE WATER CARE CO LTD,SN3 ,16/09/2022,"2,800.00"
43491233,Physical Support,Adults,Physical Support 65 and over,Income,Client Contribution - Residential,COATE WATER CARE CO LTD,SN3 ,16/09/2022,-630.56
43491233,Physical Support,Adults,Physical Support 65 and over,Income,Client Contribution - Residential,COATE WATER CARE CO LTD,SN3 ,16/09/2022,-510.92
43491233,Physical Support,Adults,Physical Support 65 and over,Income,Client Contribution - Residential,COATE WATER CARE CO LTD,SN3 ,16/09/2022,-597.40
43491233,Physical Support,Adults,Physical Support 65 and over,Income,Client Contribution - Residential,COATE WATER CARE CO LTD,SN3 ,16/09/2022,-559.40
43491233,Physical Support,Adults,Physical Support 65 and over,Income,Client Contribution - Residential,COATE WATER CARE CO LTD,SN3 ,16/09/2022,"-1,434.76"
43468238,Learning Disabilities,Adults,Learning Disability 26 - 64,3rd Party Payments,Residential Care,COCKLEBURY FARMHOUSE,SN15,16/09/2022,"8,288.00"
43468238,Learning Disabilities,Adults,Learning Disability 26 - 64,Income,Client Contribution - Residential,COCKLEBURY FARMHOUSE,SN15,16/09/2022,-425.60
44028234,Museums & Heritage,Culture & Heritage,Steam:Income Generation,Supplies and Services,Publicity,COGNICA LTD,SN5 ,28/09/2022,"1,290.00"
43723234,Town Centre,"Economy, Growth and Place",Fleming Way Bus Boulevard,Capital,Contractor Payments,COLAS LTD,B37 ,21/09/2022,"297,825.94"
42649286,Early Years Block,DSG Skills and Attainment,Free Nursery Education Commissioning - three & four  year olds,3rd Party Payments,Contracts - Child Care,COLEVIEW PRE-SCHOOL,SN3 ,14/09/2022,"19,553.52"
43569233,Disabled Children,"Children, Families and Community Health Services",DCT Daytime Short Breaks,3rd Party Payments,Respite Care,COLLABORATIVE CARE SERVICES LTD,SN2 ,16/09/2022,"26,921.95"
42649289,Early Years Block,DSG Skills and Attainment,Free Nursery Education Commissioning - three & four  year olds,3rd Party Payments,Contracts - Child Care,COLOURFUL TIME DAY NURSERY LTD,SN5 ,14/09/2022,"26,362.77"
42649290,Early Years Block,DSG Skills and Attainment,Free Nursery Education Commissioning - two year olds,3rd Party Payments,Contracts - Child Care,COLOURFUL TIME DAY NURSERY LTD,SN5 ,14/09/2022,"1,738.80"
43464233,Learning Disabilities,Adults,Learning Disability 26 - 64,3rd Party Payments,Supported Lodgings,COMMUNITY ACCESS NETWORK LTD,SN25,16/09/2022,497.28
43464233,Learning Disabilities,Adults,Learning Disability 26 - 64,Income,Client Contribution - Supported Living,COMMUNITY ACCESS NETWORK LTD,SN25,16/09/2022,-142.80
43463234,Learning Disabilities,Adults,Learning Disability 65 and over,Income,Client Contribution - Residential,COMMUNITY ACCESS NETWORK LTD,SN25,16/09/2022,-578.20
43464233,Learning Disabilities,Adults,Learning Disability 26 - 64,3rd Party Payments,Supported Lodgings,COMMUNITY ACCESS NETWORK LTD,SN25,16/09/2022,"1,342.76"
43464233,Learning Disabilities,Adults,Learning Disability 26 - 64,3rd Party Payments,Supported Lodgings,COMMUNITY ACCESS NETWORK LTD,SN25,16/09/2022,"3,683.08"
43463234,Learning Disabilities,Adults,Learning Disability 65 and over,3rd Party Payments,Residential Care,COMMUNITY ACCESS NETWORK LTD,SN25,16/09/2022,"4,817.08"
43464233,Learning Disabilities,Adults,Learning Disability 26 - 64,3rd Party Payments,Supported Lodgings,COMMUNITY ACCESS NETWORK LTD,SN25,16/09/2022,"1,207.68"
43463234,Learning Disabilities,Adults,Learning Disability 26 - 64,Income,Client Contribution - Residential,COMMUNITY ACCESS NETWORK LTD,SN25,16/09/2022,-293.60
43463234,Learning Disabilities,Adults,Learning Disability 26 - 64,3rd Party Payments,Residential Care,COMMUNITY ACCESS NETWORK LTD,SN25,16/09/2022,"4,820.08"
43464233,Learning Disabilities,Adults,Learning Disability 26 - 64,3rd Party Payments,Supported Lodgings,COMMUNITY ACCESS NETWORK LTD,SN25,16/09/2022,24.00
43864233,Property Management,Property,Corporate Repairs & Maintenance Programme,Premises Costs,Repairs - Buildings,COMMUNITY EQUIPMENT SOLUTIONS,SN12,23/09/2022,548.00
43641267,Social Care,"Children, Families and Community Health Services",External Placements,3rd Party Payments,Independent Fostering Agency Placements,COMMUNITY FOSTER CARE,GL1 ,21/09/2022,"3,953.43"
43641265,Social Care,"Children, Families and Community Health Services",External Placements,3rd Party Payments,Independent Fostering Agency Placements,COMMUNITY FOSTER CARE,GL1 ,21/09/2022,"4,058.21"
43641266,Social Care,"Children, Families and Community Health Services",External Placements,3rd Party Payments,Independent Fostering Agency Placements,COMMUNITY FOSTER CARE,GL1 ,21/09/2022,"5,139.80"
43492233,Learning Disabilities,Adults,Learning Disability 26 - 64,3rd Party Payments,Residential Care,COMMUNITY THERAPEUTIC SERVICES LTD,BS22,16/09/2022,"11,398.08"
42872234,Highways Inspections & Maintenance,Highway Operations and Car Parking,Highway Maintenance,Supplies and Services,Materials,COMPASS MINERALS UK LTD,CW7 ,14/09/2022,"4,546.01"
43972233,Highways Inspections & Maintenance,Highway Operations and Car Parking,Highway Maintenance,Supplies and Services,Materials,COMPASS MINERALS UK LTD,CW7 ,28/09/2022,"28,828.47"
42874233,Highways Inspections & Maintenance,Highway Operations and Car Parking,Highway Maintenance,Supplies and Services,Materials,COMPASS MINERALS UK LTD,CW7 ,14/09/2022,"3,010.96"
42873233,Highways Inspections & Maintenance,Highway Operations and Car Parking,Highway Maintenance,Supplies and Services,Materials,COMPASS MINERALS UK LTD,CW7 ,14/09/2022,"6,083.37"
44064234,Human Resources and Organisational Development,"People, Culture and Organisational Resilience",Pay & Reward,Employees,Temporary / Agency - by Accounts Payable,COMPAWISE LIMITED,WA14,28/09/2022,"3,000.00"
44064233,Human Resources and Organisational Development,"People, Culture and Organisational Resilience",Pay & Reward,Employees,Temporary / Agency - by Accounts Payable,COMPAWISE LIMITED,WA14,28/09/2022,"3,000.00"
44065233,Human Resources and Organisational Development,"People, Culture and Organisational Resilience",Pay & Reward,Employees,Temporary / Agency - by Accounts Payable,COMPAWISE LIMITED,WA14,28/09/2022,"1,200.00"
43033233,Planned Maintenance Programme,HRA Capital Financing,Central Heating,Capital,"Equipment, Fixtures & Fittings",COMPLETE FLUE SOLUTIONS LIMITED,GL53,14/09/2022,"3,560.00"
42944233,Property & Assets,Property & Assets,General Enhancement Works Corporate Buildings,Capital,Contractor Payments,CONCRETE REPAIRS LTD,CR4 ,14/09/2022,"51,101.01"
43129233,Property & Assets,Property & Assets,General Enhancement Works Corporate Buildings,Capital,Contractor Payments,CONCRETE REPAIRS LTD,CR4 ,16/09/2022,"13,706.94"
42051233,Social Care,"Children, Families and Community Health Services",External Placements,3rd Party Payments,Supported Lodgings,CONNECTIONS 2 INDEPENDENCE LTD,GL2 ,05/09/2022,"4,767.86"
42343233,Highways Schemes,Strategic Planning and Highways,Footway Upgrade Wroughton,Capital,Contractor Payments,CONNOR CONSTRUCTION (SOUTH WEST) LTD,BA11,07/09/2022,"28,156.51"
44260334,Learning Disabilities,Adults,Learning Disability 26 - 64,Transfer Payments,Personal Budget - Direct Payments - Domiciliary Care,REDACTED PERSONAL DATA,GL2 ,30/09/2022,"4,199.53"
44188233,Property Management,Property,Corporate Repairs & Maintenance Programme,Premises Costs,Maintenance - Buildings,COOLINK LTD,SN11,30/09/2022,"2,465.00"
44188234,Property Management,Property,Corporate Repairs & Maintenance Programme,Premises Costs,Maintenance - Buildings,COOLINK LTD,SN11,30/09/2022,195.00
44188233,Property Management,Property,Corporate Repairs & Maintenance Programme,Premises Costs,Maintenance - Buildings,COOLINK LTD,SN11,30/09/2022,243.60
44150241,Property Management,Property,Corporate Repairs & Maintenance Programme,Premises Costs,Maintenance - Buildings,COOLINK LTD,SN11,30/09/2022,"1,937.00"
44188233,Other Repairs,Repairs,Unallocated job costs from OPEN system,Premises Costs,Maintenance - Buildings,COOLINK LTD,SN11,30/09/2022,226.10
44188234,Property Management,Property,Corporate Repairs & Maintenance Programme,Premises Costs,Maintenance - Buildings,COOLINK LTD,SN11,30/09/2022,70.00
44188234,Property Management,Property,Corporate Repairs & Maintenance Programme,Premises Costs,Maintenance - Buildings,COOLINK LTD,SN11,30/09/2022,240.00
44188233,DMJ Tower,Housing Services,DMJ Apartments,Premises Costs,Maintenance - Buildings,COOLINK LTD,SN11,30/09/2022,274.00
43726233,Social Care,"Children, Families and Community Health Services",Fostering Service Team,Supplies and Services,Subscriptions,CORAM ACADEMY LTD T/A CORAMBAAF,WC1N,21/09/2022,"1,748.00"
43924277,Social Care,"Children, Families and Community Health Services",Placement Adoption Service,3rd Party Payments,Adoption Allowances,REDACTED PERSONAL DATA,BA15,26/09/2022,860.00
42780279,Social Care,"Children, Families and Community Health Services",Placement Adoption Service,3rd Party Payments,Adoption Allowances,REDACTED PERSONAL DATA,BA15,12/09/2022,860.00
43477233,Learning Disabilities,Adults,Learning Disability 26 - 64,3rd Party Payments,Residential Care,CORNERSTONES UK LTD,SN9 ,16/09/2022,"4,178.84"
43477233,Learning Disabilities,Adults,Learning Disability 26 - 64,Income,Client Contribution - Residential,CORNERSTONES UK LTD,SN9 ,16/09/2022,-410.20
43477233,Learning Disabilities,Adults,Learning Disability 26 - 64,3rd Party Payments,Residential Care,CORNERSTONES UK LTD,SN9 ,16/09/2022,"6,922.20"
43477233,Learning Disabilities,Adults,Learning Disability 26 - 64,3rd Party Payments,Residential Care,CORNERSTONES UK LTD,SN9 ,16/09/2022,"7,986.12"
43477233,Learning Disabilities,Adults,Learning Disability 26 - 64,3rd Party Payments,Residential Care,CORNERSTONES UK LTD,SN9 ,16/09/2022,"8,160.76"
43477233,Learning Disabilities,Adults,Learning Disability 26 - 64,Income,Client Contribution - Residential,CORNERSTONES UK LTD,SN9 ,16/09/2022,-423.00
43477233,Learning Disabilities,Adults,Learning Disability 26 - 64,Income,Client Contribution - Residential,CORNERSTONES UK LTD,SN9 ,16/09/2022,-414.20
43477233,Learning Disabilities,Adults,Learning Disability 26 - 64,Income,Client Contribution - Residential,CORNERSTONES UK LTD,SN9 ,16/09/2022,-361.00
43477233,Learning Disabilities,Adults,Learning Disability 26 - 64,3rd Party Payments,Residential Care,CORNERSTONES UK LTD,SN9 ,16/09/2022,"6,251.16"
43477233,Learning Disabilities,Adults,Learning Disability 26 - 64,3rd Party Payments,Residential Care,CORNERSTONES UK LTD,SN9 ,16/09/2022,"5,322.56"
43582272,Social Care,"Children, Families and Community Health Services",External Placements,3rd Party Payments,Residential Care,COTSWOLD CHINE SCHOOL,GL5 ,16/09/2022,"-12,500.00"
43582274,Social Care,"Children, Families and Community Health Services",External Placements,3rd Party Payments,Residential Care,COTSWOLD CHINE SCHOOL,GL5 ,16/09/2022,"75,053.33"
43582273,Social Care,"Children, Families and Community Health Services",External Placements,3rd Party Payments,Residential Care,COTSWOLD CHINE SCHOOL,GL5 ,16/09/2022,"5,567.14"
43582271,Social Care,"Children, Families and Community Health Services",External Placements,3rd Party Payments,Residential Care,COTSWOLD CHINE SCHOOL,GL5 ,16/09/2022,"21,160.00"
42876233,Landscaping & Open Space,Culture & Heritage & Art,Landscape Improvements at Greengridge & Blagrove,Capital,Contractor Payments,COTSWOLD ESTATES & GARDEN LTD,GL7 ,14/09/2022,"1,450.00"
44260602,Learning Disabilities,Adults,Learning Disability 26 - 64,Transfer Payments,Personal Budget - Direct Payments - Domiciliary Care,REDACTED PERSONAL DATA,SP11,30/09/2022,"1,604.83"
42649291,Early Years Block,DSG Skills and Attainment,Free Nursery Education Commissioning - three & four  year olds,3rd Party Payments,Contracts - Child Care,COVINGHAM KINGFISHER PRE-SCHOOL,SN3 ,14/09/2022,"9,993.06"
42649292,Early Years Block,DSG Skills and Attainment,Free Nursery Education Commissioning - two year olds,3rd Party Payments,Contracts - Child Care,COVINGHAM KINGFISHER PRE-SCHOOL,SN3 ,14/09/2022,869.40
43606263,Schools - Primary,DSG Skills and Attainment,Primary School Budgets,3rd Party Payments,Mainstream Delegated Funding,COVINGHAM PARK PRIMARY SCHOOL,SN3 ,16/09/2022,"130,175.00"
43420239,High Needs Block,DSG Skills and Attainment,SEN Resourcing Assessment Panel,3rd Party Payments,Top up funding - Maintained providers Pre 16,COVINGHAM PARK PRIMARY SCHOOL,SN3 ,16/09/2022,"1,591.25"
41869236,DSG Other Funding,DSG Skills and Attainment,DFE Additional Grants,Supplies and Services,Payments to Educational Bodies,COVINGHAM PARK PRIMARY SCHOOL,SN3 ,07/09/2022,"1,200.00"
43606242,DSG Other Funding,DSG Skills and Attainment,DFE Additional Grants,3rd Party Payments,Payment of Pupil Premium to school,COVINGHAM PARK PRIMARY SCHOOL,SN3 ,16/09/2022,"7,353.00"
42649296,Early Years Block,DSG Skills and Attainment,Free Nursery Education Commissioning - two year olds,3rd Party Payments,Contracts - Child Care,COVINGHAM ROUNDABOUT PLAYGROUP,SN3 ,14/09/2022,"2,608.20"
42649295,Early Years Block,DSG Skills and Attainment,Free Nursery Education Commissioning - three & four  year olds,3rd Party Payments,Contracts - Child Care,COVINGHAM ROUNDABOUT PLAYGROUP,SN3 ,14/09/2022,"18,320.61"
43515233,Memory & Cognition,Adults,Support for Memory and Cognition 65 and over,3rd Party Payments,Residential Care,COXWELL HALL AND MEWS NURSING HOME,TW20,16/09/2022,"5,968.24"
42620234,Planned Maintenance Programme,HRA Capital Financing,Contingent Major Repairs,Capital,Contractor Payments,CPS CONSTRUCTION LTD,BS15,09/09/2022,"4,085.87"
43467234,Learning Disabilities,Adults,Learning Disability 26 - 64,Income,Client Contribution - Residential,CRAEGMOOR HEALTHCARE,BA14,16/09/2022,-414.20
43467234,Learning Disabilities,Adults,Learning Disability 26 - 64,3rd Party Payments,Residential Care,CRAEGMOOR HEALTHCARE,BA14,16/09/2022,"8,267.84"
43684236,Early Help,"Children, Families and Community Health Services","Holiday, Activities & Food Grant",3rd Party Payments,Contracts - Child Care,CRAFTING TREASURES - TANYA MEDCROFT,SN5 ,21/09/2022,"1,800.00"
42649299,Early Years Block,DSG Skills and Attainment,Free Nursery Education Commissioning - three & four  year olds,3rd Party Payments,Contracts - Child Care,CROFT PLAYGROUP,SN3 ,14/09/2022,"43,597.09"
42649300,Early Years Block,DSG Skills and Attainment,Free Nursery Education Commissioning - two year olds,3rd Party Payments,Contracts - Child Care,CROFT PLAYGROUP,SN3 ,14/09/2022,869.40
41817233,DSG Other Funding,DSG Skills and Attainment,DFE Additional Grants,Supplies and Services,Payments to Educational Bodies,CROWDYS HILL SCHOOL,SN2 ,07/09/2022,"1,576.10"
43421241,High Needs Block,DSG Skills and Attainment,SEN Resourcing Assessment Panel,3rd Party Payments,Top up funding - Maintained providers Pre 16,CROWDYS HILL SCHOOL,SN2 ,16/09/2022,"44,820.25"
43606273,High Needs Block,DSG Skills and Attainment,Special School Place,3rd Party Payments,HNB- Place Funding post 16,CROWDYS HILL SCHOOL,SN2 ,16/09/2022,"38,334.00"
43421242,High Needs Block,DSG Skills and Attainment,SEN Resourcing Assessment Panel,3rd Party Payments,Top up funding - Maintained providers Pre 16,CROWDYS HILL SCHOOL,SN2 ,16/09/2022,"134,642.51"
43606274,High Needs Block,DSG Skills and Attainment,Special School Place,3rd Party Payments,HNB- Place Funding pre 16,CROWDYS HILL SCHOOL,SN2 ,16/09/2022,"170,000.00"
43421246,High Needs Block,DSG Skills and Attainment,SEN Resourcing Assessment Panel,3rd Party Payments,Top up funding - Maintained providers Post 16,CROWDYS HILL SCHOOL,SN2 ,16/09/2022,"37,983.00"
43606252,DSG Other Funding,DSG Skills and Attainment,DFE Additional Grants,3rd Party Payments,Payment of Pupil Premium to school,CROWDYS HILL SCHOOL,SN2 ,16/09/2022,"9,077.00"
42261233,Physical Support,Adults,Physical Support 65 and over,3rd Party Payments,Personal Budget - Domiciliary care,CRYSTAL CARING LIMITED,SN2 ,07/09/2022,"1,696.80"
42260233,Physical Support,Adults,Physical Support 65 and over,3rd Party Payments,Personal Budget - Domiciliary care,CRYSTAL CARING LIMITED,SN2 ,07/09/2022,"2,900.16"
42262233,Physical Support,Adults,Physical Support 18 - 64,3rd Party Payments,Personal Budget - Domiciliary care,CRYSTAL CARING LIMITED,SN2 ,07/09/2022,"3,997.36"
42259233,Physical Support,Adults,Physical Support 65 and over,3rd Party Payments,Personal Budget - Domiciliary care,CRYSTAL CARING LIMITED,SN2 ,07/09/2022,"1,470.64"
42288233,Responsive Repairs,Repairs,Responsive Repairs,3rd Party Payments,Contract Payments,CRYSTAL ELECTRONICS LTD,NN6 ,07/09/2022,484.00
42454233,Other Repairs,Repairs,Unallocated job costs from OPEN system,Premises Costs,Repairs - Buildings,CRYSTAL ELECTRONICS LTD,NN6 ,07/09/2022,"17,932.50"
42069235,Other Repairs,Repairs,Unallocated job costs from OPEN system,Premises Costs,Repairs - Buildings,CRYSTAL ELECTRONICS LTD,NN6 ,07/09/2022,"7,366.44"
Corporate Card Transaction,Community Health & Wellbeing,Public Health,Swindon Circles,Supplies and Services,Food,Cs* Tesco Stores Gc,,02/09/2022,"1,000.00"
43767233,Housing & Supported Living,Adults,ASC & Health Community Equipment Store IT,Capital,Contractor Payments,CURRYS GROUP LIMITED,W3 6,23/09/2022,8.32
43767233,Housing & Supported Living,Adults,ASC & Health Community Equipment Store IT,Capital,Contractor Payments,CURRYS GROUP LIMITED,W3 6,23/09/2022,"1,482.50"
Corporate Card Transaction,ASC Finance Services Teams,ASC Finance Services,ASC Money Management Team,Supplies and Services,Services,Currys Online,,08/09/2022,769.00
44260369,Physical Support,Adults,Physical Support 18 - 64,Transfer Payments,Personal Budget - Direct Payments - Domiciliary Care,REDACTED PERSONAL DATA,SN25,30/09/2022,"3,076.26"
44260673,Physical Support,Adults,Physical Support 18 - 64,Transfer Payments,Personal Budget - Direct Payments - Domiciliary Care,REDACTED PERSONAL DATA,SP11,30/09/2022,"4,690.60"
44260325,Physical Support,Adults,Physical Support 18 - 64,Transfer Payments,Personal Budget - Direct Payments - Domiciliary Care,REDACTED PERSONAL DATA,SN3 ,30/09/2022,"2,686.43"
44260503,Learning Disabilities,Adults,Learning Disability 26 - 64,Transfer Payments,Personal Budget - Direct Payments - Domiciliary Care,REDACTED PERSONAL DATA,SN2 ,30/09/2022,"1,445.84"
44260541,Learning Disabilities,Adults,Learning Disability 26 - 64,Transfer Payments,Personal Budget - Direct Payments - Domiciliary Care,REDACTED PERSONAL DATA,SN2 ,30/09/2022,"9,937.71"
42649303,Early Years Block,DSG Skills and Attainment,Free Nursery Education Commissioning - three & four  year olds,3rd Party Payments,Contracts - Child Care,REDACTED PERSONAL DATA,SN1 ,14/09/2022,"1,480.50"
43844233,Landscaping & Open Space,Culture & Heritage & Art,Moredon Recreation - Multi Sports Hub,Capital,Professional Fees,DARNTONB3 ARCHITECTURE,LS1 ,23/09/2022,"3,883.00"
41762233,Corporate,Corporate Finance,Chief Executive's Office,Employees,Training,REDACTED PERSONAL DATA,SE1 ,02/09/2022,"2,500.00"
44260415,Physical Support,Adults,Physical Support 18 - 64,Transfer Payments,Personal Budget - Direct Payments - Domiciliary Care,REDACTED PERSONAL DATA,SN2 ,30/09/2022,599.56
43283233,Landscaping & Open Space,Culture & Heritage & Art,Moredon Recreation - Multi Sports Hub,Capital,Contractor Payments,DAVID JARVIS ASSOCIATES LTD,SN1 ,16/09/2022,"1,500.00"
44260487,Learning Disabilities,Adults,Learning Disability 26 - 64,Transfer Payments,Personal Budget - Direct Payments - Domiciliary Care,REDACTED PERSONAL DATA,SP11,30/09/2022,698.07
44260488,Learning Disabilities,Adults,Learning Disability 26 - 64,Transfer Payments,Personal Budget - Direct Payments - Domiciliary Care,REDACTED PERSONAL DATA,SP11,30/09/2022,698.07
44260489,Learning Disabilities,Adults,Learning Disability 26 - 64,Transfer Payments,Personal Budget - Direct Payments - Domiciliary Care,REDACTED PERSONAL DATA,SP11,30/09/2022,698.07
42780459,Social Care,"Children, Families and Community Health Services",Placement Adoption Service,3rd Party Payments,Special Guardianship Orders,REDACTED PERSONAL DATA,B35 ,12/09/2022,676.96
43924455,Social Care,"Children, Families and Community Health Services",Placement Adoption Service,3rd Party Payments,Special Guardianship Orders,REDACTED PERSONAL DATA,B35 ,26/09/2022,676.96
42564236,Streetsmart,Streetsmart,Waterside Fleet Hires,Transport Costs,Vehicle Hire / Contract,DAWSONRENTLES SWEEPERS,HD6 ,07/09/2022,"3,215.48"
42564238,Streetsmart,Streetsmart,Waterside Fleet Hires,Transport Costs,Vehicle Hire / Contract,DAWSONRENTLES SWEEPERS,HD6 ,07/09/2022,"2,954.77"
42564239,Streetsmart,Streetsmart,Waterside Fleet Hires,Transport Costs,Vehicle Hire / Contract,DAWSONRENTLES SWEEPERS,HD6 ,07/09/2022,"2,954.77"
42564237,Streetsmart,Streetsmart,Waterside Fleet Hires,Transport Costs,Vehicle Hire / Contract,DAWSONRENTLES SWEEPERS,HD6 ,07/09/2022,"2,150.90"
42564235,Streetsmart,Streetsmart,Waterside Fleet Hires,Transport Costs,Vehicle Hire / Contract,DAWSONRENTLES SWEEPERS,HD6 ,07/09/2022,"2,867.86"
43898253,Social Care,"Children, Families and Community Health Services",Placement Fostering Service,3rd Party Payments,Foster Care Additional Allowance,REDACTED PERSONAL DATA,SN5 ,26/09/2022,100.00
43898253,Social Care,"Children, Families and Community Health Services",Placement Fostering Service,3rd Party Payments,Foster Care Basic Payments,REDACTED PERSONAL DATA,SN5 ,26/09/2022,520.20
42796254,Social Care,"Children, Families and Community Health Services",Placement Fostering Service,3rd Party Payments,Foster Care Additional Allowance,REDACTED PERSONAL DATA,SN5 ,12/09/2022,100.00
42796254,Social Care,"Children, Families and Community Health Services",Placement Fostering Service,3rd Party Payments,Foster Care Basic Payments,REDACTED PERSONAL DATA,SN5 ,12/09/2022,520.20
42796254,Social Care,"Children, Families and Community Health Services",Placement Fostering Service,3rd Party Payments,Carers Skills Payments - Advanced,REDACTED PERSONAL DATA,SN5 ,12/09/2022,270.00
43898253,Social Care,"Children, Families and Community Health Services",Placement Fostering Service,3rd Party Payments,Carers Skills Payments - Advanced,REDACTED PERSONAL DATA,SN5 ,26/09/2022,270.00
42649306,Early Years Block,DSG Skills and Attainment,Free Nursery Education Commissioning - three & four  year olds,3rd Party Payments,Contracts - Child Care,REDACTED PERSONAL DATA,SN5 ,14/09/2022,"2,961.00"
43409233,Learning Disabilities,Adults,Learning Disability 26 - 64,3rd Party Payments,Supported Accommodation Scheme,REDACTED PERSONAL DATA,SN2 ,21/09/2022,"1,651.70"
43409233,Learning Disabilities,Adults,Learning Disability 26 - 64,3rd Party Payments,Supported Accommodation Scheme,REDACTED PERSONAL DATA,SN2 ,21/09/2022,"2,505.90"
43409233,Learning Disabilities,Adults,Learning Disability 26 - 64,3rd Party Payments,Supported Accommodation Scheme,REDACTED PERSONAL DATA,SN2 ,21/09/2022,"2,094.20"
44226235,Highways Inspections & Maintenance,Highway Operations and Car Parking,Streetlighting,3rd Party Payments,Contract Payments,DESIGNS FOR LIGHTING LTD,SO23,30/09/2022,"3,446.00"
42120233,Street Furniture & Lighting,Strategic Planning and Highways,LED Street Lighting,Capital,Professional Fees,DESIGNS FOR LIGHTING LTD,SO23,07/09/2022,720.00
41826233,Human Resources and Organisational Development,"People, Culture and Organisational Resilience",Organisational Development,Employees,Training,DEVELOP TRAINING LTD,DE24,02/09/2022,"1,500.00"
42780239,Social Care,"Children, Families and Community Health Services",Placement Adoption Service,3rd Party Payments,Adoption Allowances,REDACTED PERSONAL DATA,CF44,12/09/2022,500.34
43924237,Social Care,"Children, Families and Community Health Services",Placement Adoption Service,3rd Party Payments,Adoption Allowances,REDACTED PERSONAL DATA,CF44,26/09/2022,500.34
41800233,Libraries,"Education, Inclusion and Skills",Library Delivery,Supplies and Services,Equipment,DIGITAL HEARING CARE SOLUTIONS LIMITED,BD20,02/09/2022,"2,945.00"
43507234,Physical Support,Adults,Physical Support 65 and over,3rd Party Payments,Residential Care,DIVA CARE LIMITED,GL7 ,16/09/2022,"5,040.00"
43507234,Physical Support,Adults,Physical Support 65 and over,Income,Client Contribution - Residential,DIVA CARE LIMITED,GL7 ,16/09/2022,-627.80
43507234,Physical Support,Adults,Physical Support 65 and over,Income,Client Contribution - Nursing,DIVA CARE LIMITED,GL7 ,16/09/2022,-268.72
43507234,Physical Support,Adults,Physical Support 65 and over,3rd Party Payments,Nursing Care,DIVA CARE LIMITED,GL7 ,16/09/2022,"3,246.44"
42052262,Social Care,"Children, Families and Community Health Services",External Placements,3rd Party Payments,Independent Fostering Agency Placements,DIVERSE CARE UK LTD,ME4 ,05/09/2022,"4,039.44"
42052263,Social Care,"Children, Families and Community Health Services",External Placements,3rd Party Payments,Independent Fostering Agency Placements,DIVERSE CARE UK LTD,ME4 ,05/09/2022,"4,039.44"
42627233,Social Care,"Children, Families and Community Health Services",CP & CIN Social Work - South,3rd Party Payments,Personal Needs,DMR SERVICES,B74 ,09/09/2022,"1,044.20"
43527233,Social Care,"Children, Families and Community Health Services",Legal Fees,Supplies and Services,Fees,DNA WORLDWIDE GROUP,BA11,16/09/2022,572.00
43534233,Social Care,"Children, Families and Community Health Services",Legal Fees,Supplies and Services,Fees,DNA WORLDWIDE GROUP,BA11,16/09/2022,572.00
43571233,Social Care,"Children, Families and Community Health Services",Legal Fees,Supplies and Services,Fees,DNA WORLDWIDE GROUP,BA11,16/09/2022,426.00
43792234,Town Centre,"Economy, Growth and Place","No 7, 9 & 11 Carriage works @ Railway Village",Capital,Consultants,DONALD INSALL ASSOCIATES LIMITED,W1G ,23/09/2022,"3,850.00"
44260338,Physical Support,Adults,Physical Support 18 - 64,Transfer Payments,Personal Budget - Direct Payments - Domiciliary Care,REDACTED PERSONAL DATA,SP11,30/09/2022,"4,756.08"
44245234,High Needs Block,DSG Skills and Attainment,Hearing Support Team,Supplies and Services,Equipment,DORCAN ACADEMY,SN3 ,30/09/2022,"1,115.74"
44246233,Mainstream Schools Extension,Skills & Attainment,Dorcan Academy PAN,Capital,Contractor Payments,DORCAN ACADEMY,SN3 ,30/09/2022,"16,570.25"
43557233,Human Resources and Organisational Development,"People, Culture and Organisational Resilience",Organisational Development,Supplies and Services,Hospitality,DORSET COUNTY COUNCIL,DT1 ,16/09/2022,108.75
43557233,Human Resources and Organisational Development,"People, Culture and Organisational Resilience",Organisational Development,Supplies and Services,Subsistence,DORSET COUNTY COUNCIL,DT1 ,16/09/2022,15.00
43557233,Human Resources and Organisational Development,"People, Culture and Organisational Resilience",Organisational Development,Employees,Temporary / Agency - by Accounts Payable,DORSET COUNTY COUNCIL,DT1 ,16/09/2022,"22,745.94"
43557233,Human Resources and Organisational Development,"People, Culture and Organisational Resilience",Organisational Development,Transport Costs,Travel,DORSET COUNTY COUNCIL,DT1 ,16/09/2022,283.80
42630233,Museums & Heritage,Culture & Heritage,Steam:Income Generation,Supplies and Services,Discretionary Costs,DOUBLETREE BY HILTON SWINDON,SN5 ,09/09/2022,"4,800.00"
44211234,High Needs Block,DSG Skills and Attainment,Out of Borough School Fees,3rd Party Payments,OLA Special schools- Pre 16,DOWNLAND SCHOOL WCC FUND A/C,SN10,30/09/2022,"20,519.17"
44211234,High Needs Block,DSG Skills and Attainment,Out of Borough School Fees,3rd Party Payments,OLA Special schools- Pre 16,DOWNLAND SCHOOL WCC FUND A/C,SN10,30/09/2022,"22,602.50"
43827393,Homelessness and Travellers,Housing Services,Leased Private Managed Accommodation,Transfer Payments,Payment of Costs,REDACTED PERSONAL DATA,SN6 ,23/09/2022,700.00
42953237,Social Care,"Children, Families and Community Health Services",Legal Fees,Supplies and Services,Fees,DR GRANGE AND ASSOCIATES LIMITED,N12 ,14/09/2022,"2,649.80"
43684237,Early Help,"Children, Families and Community Health Services","Holiday, Activities & Food Grant",3rd Party Payments,Contracts - Child Care,DRAYCOTT SPORTS CAMP,SN25,21/09/2022,"1,062.00"
43308233,Sheltered Accomodation,Special Services,Sheltered Housing Management General,Supplies and Services,Equipment,DRPK CONTRACTS LTD,BT30,16/09/2022,"3,566.02"
43308233,Sheltered Accomodation,Special Services,Sheltered Housing Management General,Supplies and Services,Equipment,DRPK CONTRACTS LTD,BT30,16/09/2022,"8,320.73"
43506234,Physical Support,Adults,Physical Support 18 - 64,3rd Party Payments,Nursing Care,DRUMMOND GRANGE NURSING HOME,EH18,16/09/2022,"6,603.00"
43388233,Learning Disabilities,Adults,Learning Disability 26 - 64,3rd Party Payments,Supported Accommodation Scheme,REDACTED PERSONAL DATA,SN25,21/09/2022,"2,573.70"
42979234,Traded Services,"Education, Inclusion and Skills",Plas Pencelli Outdoor Education Centre,Premises Costs,Water,DWR CYMRU WELSH WATER,CF3 ,14/09/2022,"1,962.41"
43504233,Mental Health,Adults,Mental Health 18-64,3rd Party Payments,Supported Lodgings,DYNAMIC SUPPORT LTD,SN25,16/09/2022,"1,491.84"
43504233,Mental Health,Adults,Mental Health 18-64,3rd Party Payments,Supported Lodgings,DYNAMIC SUPPORT LTD,SN25,16/09/2022,"4,475.52"
43504233,Physical Support,Adults,Physical Support 65 and over,3rd Party Payments,Supported Lodgings,DYNAMIC SUPPORT LTD,SN25,16/09/2022,"7,459.20"
43504233,Learning Disabilities,Adults,Learning Disability 26 - 64,Income,Client Contribution - Supported Living,DYNAMIC SUPPORT LTD,SN25,16/09/2022,-82.50
43504233,Learning Disabilities,Adults,Learning Disability 26 - 64,Income,Client Contribution - Supported Living,DYNAMIC SUPPORT LTD,SN25,16/09/2022,-440.60
43504233,Learning Disabilities,Adults,Learning Disability 26 - 64,3rd Party Payments,Supported Lodgings,DYNAMIC SUPPORT LTD,SN25,16/09/2022,"-8,845.10"
43504233,Learning Disabilities,Adults,Learning Disability 26 - 64,3rd Party Payments,Supported Lodgings,DYNAMIC SUPPORT LTD,SN25,16/09/2022,"1,562.88"
43504233,Learning Disabilities,Adults,Learning Disability 26 - 64,3rd Party Payments,Supported Lodgings,DYNAMIC SUPPORT LTD,SN25,16/09/2022,"2,486.40"
43504233,Learning Disabilities,Adults,Learning Disability 26 - 64,3rd Party Payments,Supported Lodgings,DYNAMIC SUPPORT LTD,SN25,16/09/2022,"2,770.56"
43504233,Learning Disabilities,Adults,Learning Disability 26 - 64,3rd Party Payments,Supported Lodgings,DYNAMIC SUPPORT LTD,SN25,16/09/2022,"3,765.12"
43504233,Learning Disabilities,Adults,Learning Disability 26 - 64,3rd Party Payments,Supported Lodgings,DYNAMIC SUPPORT LTD,SN25,16/09/2022,"7,175.04"
43504233,Learning Disabilities,Adults,Learning Disability 26 - 64,3rd Party Payments,Supported Lodgings,DYNAMIC SUPPORT LTD,SN25,16/09/2022,142.08
43504233,Mental Health,Adults,Mental Health 18-64,3rd Party Payments,Supported Lodgings,DYNAMIC SUPPORT LTD,SN25,16/09/2022,"5,434.56"
43504233,Learning Disabilities,Adults,Learning Disability 26 - 64,Income,Client Contribution - Supported Living,DYNAMIC SUPPORT LTD,SN25,16/09/2022,-77.00
43504233,Learning Disabilities,Adults,Learning Disability 26 - 64,Income,Client Contribution - Supported Living,DYNAMIC SUPPORT LTD,SN25,16/09/2022,-112.00
43504233,Learning Disabilities,Adults,Learning Disability 26 - 64,Income,Client Contribution - Personal Budget � Fairer Charging,DYNAMIC SUPPORT LTD,SN25,16/09/2022,-135.60
43504233,Learning Disabilities,Adults,Learning Disability 26 - 64,3rd Party Payments,Supported Lodgings,DYNAMIC SUPPORT LTD,SN25,16/09/2022,"-5,040.52"
43504233,Learning Disabilities,Adults,Learning Disability 26 - 64,3rd Party Payments,Supported Lodgings,DYNAMIC SUPPORT LTD,SN25,16/09/2022,"1,438.67"
43504233,Learning Disabilities,Adults,Learning Disability 26 - 64,3rd Party Payments,Supported Lodgings,DYNAMIC SUPPORT LTD,SN25,16/09/2022,"1,636.46"
43504233,Learning Disabilities,Adults,Learning Disability 26 - 64,3rd Party Payments,Supported Lodgings,DYNAMIC SUPPORT LTD,SN25,16/09/2022,"1,390.40"
43504233,Learning Disabilities,Adults,Learning Disability 26 - 64,3rd Party Payments,Supported Lodgings,DYNAMIC SUPPORT LTD,SN25,16/09/2022,532.80
43504233,Learning Disabilities,Adults,Learning Disability 26 - 64,3rd Party Payments,Supported Lodgings,DYNAMIC SUPPORT LTD,SN25,16/09/2022,"3,132.76"
43504233,Mental Health,Adults,Mental Health 18-64,3rd Party Payments,Supported Lodgings,DYNAMIC SUPPORT LTD,SN25,16/09/2022,"1,342.76"
43504233,Learning Disabilities,Adults,Learning Disability 65 and over,3rd Party Payments,Supported Lodgings,DYNAMIC SUPPORT LTD,SN25,16/09/2022,"2,685.48"
43504233,Learning Disabilities,Adults,Learning Disability 26 - 64,3rd Party Payments,Supported Lodgings,DYNAMIC SUPPORT LTD,SN25,16/09/2022,"2,244.00"
43504233,Learning Disabilities,Adults,Learning Disability 26 - 64,3rd Party Payments,Supported Lodgings,DYNAMIC SUPPORT LTD,SN25,16/09/2022,903.32
43504233,Learning Disabilities,Adults,Learning Disability 26 - 64,3rd Party Payments,Supported Lodgings,DYNAMIC SUPPORT LTD,SN25,16/09/2022,"1,527.36"
43504233,Learning Disabilities,Adults,Learning Disability 26 - 64,3rd Party Payments,Supported Lodgings,DYNAMIC SUPPORT LTD,SN25,16/09/2022,"6,819.92"
43504233,Learning Disabilities,Adults,Learning Disability 26 - 64,3rd Party Payments,Supported Lodgings,DYNAMIC SUPPORT LTD,SN25,16/09/2022,"5,612.16"
43504233,Learning Disabilities,Adults,Learning Disability 26 - 64,3rd Party Payments,Supported Lodgings,DYNAMIC SUPPORT LTD,SN25,16/09/2022,"13,019.76"
43951262,Learning Disabilities,Adults,Learning Disability 26 - 64,3rd Party Payments,Personal Budget - Domiciliary care,DYNAMIC SUPPORT LTD,SN25,28/09/2022,"1,265.92"
43504233,Mental Health,Adults,Mental Health 18-64,3rd Party Payments,Supported Lodgings,DYNAMIC SUPPORT LTD,SN25,16/09/2022,"7,459.20"
43504233,Physical Support,Adults,Physical Support 65 and over,3rd Party Payments,Supported Lodgings,DYNAMIC SUPPORT LTD,SN25,16/09/2022,"4,475.52"
43504233,Learning Disabilities,Adults,Learning Disability 26 - 64,Income,Client Contribution - Supported Living,DYNAMIC SUPPORT LTD,SN25,16/09/2022,-925.32
43504233,Learning Disabilities,Adults,Learning Disability 26 - 64,Income,Client Contribution - Supported Living,DYNAMIC SUPPORT LTD,SN25,16/09/2022,-322.65
43504233,Learning Disabilities,Adults,Learning Disability 26 - 64,3rd Party Payments,Supported Lodgings,DYNAMIC SUPPORT LTD,SN25,16/09/2022,"4,984.56"
43504233,Learning Disabilities,Adults,Learning Disability 26 - 64,3rd Party Payments,Supported Lodgings,DYNAMIC SUPPORT LTD,SN25,16/09/2022,-405.62
43504233,Learning Disabilities,Adults,Learning Disability 26 - 64,3rd Party Payments,Supported Lodgings,DYNAMIC SUPPORT LTD,SN25,16/09/2022,"1,342.76"
43504233,Learning Disabilities,Adults,Learning Disability 26 - 64,3rd Party Payments,Supported Lodgings,DYNAMIC SUPPORT LTD,SN25,16/09/2022,"4,688.64"
43504233,Learning Disabilities,Adults,Learning Disability 26 - 64,3rd Party Payments,Supported Lodgings,DYNAMIC SUPPORT LTD,SN25,16/09/2022,"7,459.20"
43504233,Learning Disabilities,Adults,Learning Disability 26 - 64,3rd Party Payments,Supported Lodgings,DYNAMIC SUPPORT LTD,SN25,16/09/2022,861.76
43504233,Learning Disabilities,Adults,Learning Disability 26 - 64,3rd Party Payments,Supported Lodgings,DYNAMIC SUPPORT LTD,SN25,16/09/2022,"1,847.04"
43504233,Learning Disabilities,Adults,Learning Disability 26 - 64,3rd Party Payments,Supported Lodgings,DYNAMIC SUPPORT LTD,SN25,16/09/2022,"1,072.00"
43504233,Learning Disabilities,Adults,Learning Disability 26 - 64,3rd Party Payments,Supported Lodgings,DYNAMIC SUPPORT LTD,SN25,16/09/2022,"4,475.52"
43504233,Mental Health,Adults,Mental Health 18-64,3rd Party Payments,Supported Lodgings,DYNAMIC SUPPORT LTD,SN25,16/09/2022,"9,057.60"
43504233,Learning Disabilities,Adults,Learning Disability 65 and over,3rd Party Payments,Supported Lodgings,DYNAMIC SUPPORT LTD,SN25,16/09/2022,"3,480.96"
43504233,Learning Disabilities,Adults,Learning Disability 26 - 64,Income,Client Contribution - Supported Living,DYNAMIC SUPPORT LTD,SN25,16/09/2022,"1,613.25"
43504233,Learning Disabilities,Adults,Learning Disability 26 - 64,Income,Client Contribution - Supported Living,DYNAMIC SUPPORT LTD,SN25,16/09/2022,-18.12
43504233,Learning Disabilities,Adults,Learning Disability 26 - 64,Income,Client Contribution - Supported Living,DYNAMIC SUPPORT LTD,SN25,16/09/2022,-258.12
43504233,Learning Disabilities,Adults,Learning Disability 26 - 64,3rd Party Payments,Supported Lodgings,DYNAMIC SUPPORT LTD,SN25,16/09/2022,122.64
43504233,Learning Disabilities,Adults,Learning Disability 26 - 64,3rd Party Payments,Supported Lodgings,DYNAMIC SUPPORT LTD,SN25,16/09/2022,"3,349.03"
43504233,Learning Disabilities,Adults,Learning Disability 26 - 64,3rd Party Payments,Supported Lodgings,DYNAMIC SUPPORT LTD,SN25,16/09/2022,"6,393.60"
43504233,Learning Disabilities,Adults,Learning Disability 26 - 64,Income,Client Contribution - Supported Living,DYNAMIC SUPPORT LTD,SN25,16/09/2022,-336.48
43504233,Learning Disabilities,Adults,Learning Disability 26 - 64,3rd Party Payments,Supported Lodgings,DYNAMIC SUPPORT LTD,SN25,16/09/2022,"3,125.76"
43504233,Learning Disabilities,Adults,Learning Disability 26 - 64,3rd Party Payments,Supported Lodgings,DYNAMIC SUPPORT LTD,SN25,16/09/2022,671.36
43504233,Learning Disabilities,Adults,Learning Disability 26 - 64,3rd Party Payments,Supported Lodgings,DYNAMIC SUPPORT LTD,SN25,16/09/2022,"2,344.32"
43504233,Learning Disabilities,Adults,Learning Disability 26 - 64,3rd Party Payments,Supported Lodgings,DYNAMIC SUPPORT LTD,SN25,16/09/2022,"6,464.64"
43504233,Learning Disabilities,Adults,Learning Disability 26 - 64,3rd Party Payments,Supported Lodgings,DYNAMIC SUPPORT LTD,SN25,16/09/2022,"2,685.48"
43504233,Learning Disabilities,Adults,Learning Disability 26 - 64,3rd Party Payments,Supported Lodgings,DYNAMIC SUPPORT LTD,SN25,16/09/2022,426.24
43839236,Social Care,"Children, Families and Community Health Services",CP & CIN Social Work - North,Supplies and Services,Equipment,DYSLEXIA BOX LIMITED,CB4 ,23/09/2022,"2,567.00"
43794233,Town Centre,"Economy, Growth and Place","No 7, 9 & 11 Carriage works @ Railway Village",Capital,Contractor Payments,E W BEARD LTD,SN3 ,23/09/2022,"381,256.31"
43605233,Property Service Charged Properties,Property,Service Charged - Dorcan Industrial Estate,Premises Costs,Electricity,E.ON NEXT,NG1 ,16/09/2022,"1,102.17"
43415233,Property Service Charged Properties,Property,Service Charged - Dorcan Industrial Estate,Premises Costs,Electricity,E.ON NEXT,NG1 ,16/09/2022,"1,773.20"
43604233,Property Service Charged Properties,Property,Service Charged - Dorcan Industrial Estate,Premises Costs,Electricity,E.ON NEXT,NG1 ,16/09/2022,"4,108.71"
43455234,Property Service Charged Properties,Property,Service Charged - Dorcan Industrial Estate,Premises Costs,Electricity,E.ON NEXT,NG1 ,16/09/2022,"1,436.59"
43500238,Property Service Charged Properties,Property,Service Charged - Dorcan Industrial Estate,Premises Costs,Electricity,E.ON NEXT,NG1 ,16/09/2022,"1,217.60"
43443233,Property Service Charged Properties,Property,Service Charged - Dorcan Industrial Estate,Premises Costs,Electricity,E.ON NEXT,NG1 ,16/09/2022,"1,572.44"
43530233,Social Care,"Children, Families and Community Health Services",CP & CIN Social Work - North,Premises Costs,Electricity,E.ON NEXT,NG1 ,16/09/2022,"1,603.28"
43632233,Property Service Charged Properties,Property,Service Charged - Dorcan Industrial Estate,Premises Costs,Electricity,E.ON NEXT,NG1 ,21/09/2022,974.09
43487233,Property Service Charged Properties,Property,Service Charged - Dorcan Industrial Estate,Premises Costs,Electricity,E.ON NEXT,NG1 ,16/09/2022,"1,131.67"
43414233,Property Service Charged Properties,Property,Service Charged - Dorcan Industrial Estate,Premises Costs,Electricity,E.ON NEXT,NG1 ,16/09/2022,"1,158.68"
43412233,Property Service Charged Properties,Property,Service Charged - Dorcan Industrial Estate,Premises Costs,Electricity,E.ON NEXT,NG1 ,16/09/2022,"1,444.65"
43470240,Property Service Charged Properties,Property,Service Charged - Dorcan Industrial Estate,Premises Costs,Electricity,E.ON NEXT,NG1 ,16/09/2022,"1,577.97"
43444233,Property Service Charged Properties,Property,Service Charged - Dorcan Industrial Estate,Premises Costs,Electricity,E.ON NEXT,NG1 ,16/09/2022,"2,939.19"
43516236,Property Service Charged Properties,Property,Service Charged - Dorcan Industrial Estate,Premises Costs,Electricity,E.ON NEXT,NG1 ,16/09/2022,"1,129.25"
43413233,Property Service Charged Properties,Property,Service Charged - Dorcan Industrial Estate,Premises Costs,Electricity,E.ON NEXT,NG1 ,16/09/2022,"1,146.19"
43532233,Social Care,"Children, Families and Community Health Services",CP & CIN Social Work - North,Premises Costs,Electricity,E.ON NEXT,NG1 ,16/09/2022,"1,142.29"
43455234,Property Service Charged Properties,Property,Service Charged - Dorcan Industrial Estate,Premises Costs,Electricity,E.ON NEXT,NG1 ,16/09/2022,40.00
43445233,Property Service Charged Properties,Property,Service Charged - Dorcan Industrial Estate,Premises Costs,Electricity,E.ON NEXT,NG1 ,16/09/2022,"3,398.06"
43533233,Social Care,"Children, Families and Community Health Services",CP & CIN Social Work - North,Premises Costs,Electricity,E.ON NEXT,NG1 ,16/09/2022,955.71
42649308,Early Years Block,DSG Skills and Attainment,Free Nursery Education Commissioning - two year olds,3rd Party Payments,Contracts - Child Care,EAST WICHEL COMMUNITY PRIMARY SCHOOL,SN1 ,14/09/2022,869.40
43420240,High Needs Block,DSG Skills and Attainment,SEN Resourcing Assessment Panel,3rd Party Payments,Top up funding - Maintained providers Pre 16,EAST WICHEL COMMUNITY PRIMARY SCHOOL,SN1 ,16/09/2022,"3,483.34"
42649307,Early Years Block,DSG Skills and Attainment,Free Nursery Education Commissioning - three & four  year olds,3rd Party Payments,Contracts - Child Care,EAST WICHEL COMMUNITY PRIMARY SCHOOL,SN1 ,14/09/2022,"26,537.36"
43606243,DSG Other Funding,DSG Skills and Attainment,DFE Additional Grants,3rd Party Payments,Payment of Pupil Premium to school,EAST WICHEL COMMUNITY PRIMARY SCHOOL,SN1 ,16/09/2022,"7,112.00"
43606264,Schools - Primary,DSG Skills and Attainment,Primary School Budgets,3rd Party Payments,Mainstream Delegated Funding,EAST WICHEL COMMUNITY PRIMARY SCHOOL,SN1 ,16/09/2022,"133,266.00"
43488233,Learning Disabilities,Adults,Learning Disability 26 - 64,3rd Party Payments,Residential Care,EASTERBROOK FARM LTD,EX20,16/09/2022,"4,494.52"
43488233,Learning Disabilities,Adults,Learning Disability 26 - 64,Income,Client Contribution - Residential,EASTERBROOK FARM LTD,EX20,16/09/2022,-347.00
41949233,DSG Other Funding,DSG Skills and Attainment,LAC pupil premium,3rd Party Payments,Education / Training,EB EDUCATION SERVICES LTD,SK4 ,02/09/2022,"4,905.00"
43796233,Planning & Regulatory,Strategic Planning,Local Development Frameworks,Supplies and Services,Consultation / Evaluation,ECOLOGICAL PLANNING AND RESEARCH LIMITED,SO21,23/09/2022,"18,052.00"
43494236,Physical Support,Adults,Physical Support 65 and over,Income,Client Contribution - Residential,EDGE HILL,DT5 ,16/09/2022,-729.60
43494236,Physical Support,Adults,Physical Support 65 and over,3rd Party Payments,Residential Care,EDGE HILL,DT5 ,16/09/2022,"2,668.72"
43494236,Physical Support,Adults,Physical Support 65 and over,Income,Client Contribution - Residential,EDGE HILL,DT5 ,16/09/2022,-567.28
43494236,Physical Support,Adults,Physical Support 65 and over,3rd Party Payments,Residential Care,EDGE HILL,DT5 ,16/09/2022,"3,328.00"
43494236,Mental Health,Adults,Mental Health 65 and over,Income,Client Contribution - Residential,EDGE HILL,DT5 ,16/09/2022,718.93
43494236,Mental Health,Adults,Mental Health 65 and over,Income,Client Contribution - Residential,EDGE HILL,DT5 ,16/09/2022,-441.48
43494236,Mental Health,Adults,Mental Health 65 and over,3rd Party Payments,Residential Care,EDGE HILL,DT5 ,16/09/2022,"2,560.12"
43494236,Physical Support,Adults,Physical Support 65 and over,Income,Client Contribution - Residential,EDGE HILL,DT5 ,16/09/2022,-862.80
43494236,Physical Support,Adults,Physical Support 65 and over,Income,Client Contribution - Residential,EDGE HILL,DT5 ,16/09/2022,-818.56
43494236,Physical Support,Adults,Physical Support 65 and over,Income,Client Contribution - Residential,EDGE HILL,DT5 ,16/09/2022,-984.52
43494236,Physical Support,Adults,Physical Support 65 and over,Income,Client Contribution - Residential,EDGE HILL,DT5 ,16/09/2022,-745.80
43494236,Physical Support,Adults,Physical Support 65 and over,Income,Client Contribution - Residential,EDGE HILL,DT5 ,16/09/2022,-871.20
43494236,Physical Support,Adults,Physical Support 65 and over,Income,Client Contribution - Residential,EDGE HILL,DT5 ,16/09/2022,-576.92
43494236,Physical Support,Adults,Physical Support 65 and over,Income,Client Contribution - Residential,EDGE HILL,DT5 ,16/09/2022,-343.72
43494236,Physical Support,Adults,Physical Support 65 and over,Income,Client Contribution - Residential,EDGE HILL,DT5 ,16/09/2022,"1,522.16"
43494236,Physical Support,Adults,Physical Support 65 and over,Income,Client Contribution - Residential,EDGE HILL,DT5 ,16/09/2022,-879.52
43494236,Physical Support,Adults,Physical Support 65 and over,Income,Client Contribution - Residential,EDGE HILL,DT5 ,16/09/2022,-726.24
43494236,Physical Support,Adults,Physical Support 65 and over,Income,Client Contribution - Residential,EDGE HILL,DT5 ,16/09/2022,-569.40
43494236,Physical Support,Adults,Physical Support 65 and over,Income,Client Contribution - Residential,EDGE HILL,DT5 ,16/09/2022,"-1,378.16"
43494236,Physical Support,Adults,Physical Support 65 and over,Income,Client Contribution - Residential,EDGE HILL,DT5 ,16/09/2022,"-1,431.36"
43494236,Physical Support,Adults,Physical Support 65 and over,Income,Client Contribution - Residential,EDGE HILL,DT5 ,16/09/2022,"-1,302.04"
43494236,Physical Support,Adults,Physical Support 65 and over,Income,Client Contribution - Residential,EDGE HILL,DT5 ,16/09/2022,-657.56
43494236,Physical Support,Adults,Physical Support 65 and over,3rd Party Payments,Residential Care,EDGE HILL,DT5 ,16/09/2022,"2,560.12"
43494236,Mental Health,Adults,Mental Health 65 and over,3rd Party Payments,Residential Care,EDGE HILL,DT5 ,16/09/2022,"-4,478.57"
43494236,Physical Support,Adults,Physical Support 65 and over,Income,Client Contribution - Residential,EDGE HILL,DT5 ,16/09/2022,-649.04
43494236,Physical Support,Adults,Physical Support 65 and over,3rd Party Payments,Residential Care,EDGE HILL,DT5 ,16/09/2022,"3,400.00"
43494236,Physical Support,Adults,Physical Support 65 and over,Income,Client Contribution - Residential,EDGE HILL,DT5 ,16/09/2022,"-1,127.84"
43494236,Physical Support,Adults,Physical Support 65 and over,Income,Client Contribution - Residential,EDGE HILL,DT5 ,16/09/2022,"-1,163.52"
43494236,Physical Support,Adults,Physical Support 65 and over,3rd Party Payments,Residential Care,EDGE HILL,DT5 ,16/09/2022,"-4,114.48"
43494236,Physical Support,Adults,Physical Support 65 and over,3rd Party Payments,Residential Care,EDGE HILL,DT5 ,16/09/2022,"2,844.24"
43494236,Mental Health,Adults,Mental Health 65 and over,Income,Client Contribution - Residential,EDGE HILL,DT5 ,16/09/2022,-667.44
43494236,Physical Support,Adults,Physical Support 65 and over,Income,Client Contribution - Residential,EDGE HILL,DT5 ,16/09/2022,"-1,368.48"
43494236,Physical Support,Adults,Physical Support 65 and over,Income,Client Contribution - Residential,EDGE HILL,DT5 ,16/09/2022,-729.44
43494236,Physical Support,Adults,Physical Support 65 and over,Income,Client Contribution - Residential,EDGE HILL,DT5 ,16/09/2022,-655.84
43494236,Physical Support,Adults,Physical Support 65 and over,Income,Client Contribution - Residential,EDGE HILL,DT5 ,16/09/2022,-608.80
43494236,Physical Support,Adults,Physical Support 65 and over,Income,Client Contribution - Residential,EDGE HILL,DT5 ,16/09/2022,-595.40
43494236,Physical Support,Adults,Physical Support 65 and over,Income,Client Contribution - Residential,EDGE HILL,DT5 ,16/09/2022,-747.52
43494236,Physical Support,Adults,Physical Support 65 and over,Income,Client Contribution - Residential,EDGE HILL,DT5 ,16/09/2022,-627.80
43494236,Physical Support,Adults,Physical Support 65 and over,3rd Party Payments,Residential Care,EDGE HILL,DT5 ,16/09/2022,"2,384.04"
43494236,Mental Health,Adults,Mental Health 65 and over,3rd Party Payments,Residential Care,EDGE HILL,DT5 ,16/09/2022,"3,680.00"
43494236,Physical Support,Adults,Physical Support 18 - 64,3rd Party Payments,Residential Care,EDGE HILL,DT5 ,16/09/2022,"2,560.12"
43494236,Physical Support,Adults,Physical Support 65 and over,Income,Client Contribution - Residential,EDGE HILL,DT5 ,16/09/2022,"-1,906.76"
42809233,Treasury,Corporate Finance,Private Finance Initiatives (PFI),Income,Settlements,EDUCATION SUPPORT (SWINDON) LTD,BR8 ,12/09/2022,-913.54
42809233,Treasury,Corporate Finance,Private Finance Initiatives (PFI),3rd Party Payments,Contract Payments,EDUCATION SUPPORT (SWINDON) LTD,BR8 ,12/09/2022,"951,418.51"
42809233,Treasury,Corporate Finance,Private Finance Initiatives (PFI),Supplies and Services,Service Charges,EDUCATION SUPPORT (SWINDON) LTD,BR8 ,12/09/2022,"2,911.60"
42725233,,,Balance Sheet,Balance Sheet & Recharge,Mobile phone invoices,EE (EVERYTHING EVERYWHERE),S98 ,09/09/2022,"7,602.97"
43309233,Planning & Regulatory,Strategic Planning,Planning Development,Employees,Temporary / Agency - by Accounts Payable,EGGLETON PLANNING AND DESIGN LTD,HG4 ,16/09/2022,960.00
43637235,Planning & Regulatory,Strategic Planning,Planning Development,Employees,Temporary / Agency - by Accounts Payable,EGGLETON PLANNING AND DESIGN LTD,HG4 ,21/09/2022,"1,272.00"
41746233,Planning & Regulatory,Strategic Planning,Planning Development,Employees,Temporary / Agency - by Accounts Payable,EGGLETON PLANNING AND DESIGN LTD,HG4 ,02/09/2022,"1,464.00"
43898249,Social Care,"Children, Families and Community Health Services",Placement Fostering Service,3rd Party Payments,Carers Skills Payments - Advanced,REDACTED PERSONAL DATA,SN5 ,26/09/2022,270.00
42796250,Social Care,"Children, Families and Community Health Services",Placement Fostering Service,3rd Party Payments,Foster Care Basic Payments,REDACTED PERSONAL DATA,SN5 ,12/09/2022,491.52
43898249,Social Care,"Children, Families and Community Health Services",Placement Fostering Service,3rd Party Payments,Foster Care Basic Payments,REDACTED PERSONAL DATA,SN5 ,26/09/2022,491.52
42796250,Social Care,"Children, Families and Community Health Services",Placement Fostering Service,3rd Party Payments,Carers Skills Payments - Advanced,REDACTED PERSONAL DATA,SN5 ,12/09/2022,270.00
43410233,Learning Disabilities,Adults,Learning Disability 26 - 64,3rd Party Payments,Supported Accommodation Scheme,REDACTED PERSONAL DATA,SN25,21/09/2022,"2,088.80"
42649313,Early Years Block,DSG Skills and Attainment,Free Nursery Education Commissioning - two year olds,3rd Party Payments,Contracts - Child Care,ELDENE PRE-SCHOOL,SN3 ,14/09/2022,"11,302.20"
42649312,Early Years Block,DSG Skills and Attainment,Free Nursery Education Commissioning - three & four  year olds,3rd Party Payments,Contracts - Child Care,ELDENE PRE-SCHOOL,SN3 ,14/09/2022,"33,223.13"
43577233,High Needs Block,DSG Skills and Attainment,SRP (Special Resource Provision) Place,3rd Party Payments,HNB- Place Funding pre 16,ELDENE PRIMARY SCHOOL,SN3 ,16/09/2022,"5,000.00"
43606233,DSG Other Funding,DSG Skills and Attainment,DFE Additional Grants,3rd Party Payments,Payment of Pupil Premium to school,ELDENE PRIMARY SCHOOL,SN3 ,16/09/2022,"14,972.00"
43419233,High Needs Block,DSG Skills and Attainment,SEN Resourcing Assessment Panel,3rd Party Payments,Top up funding - Maintained providers Pre 16,ELDENE PRIMARY SCHOOL,SN3 ,16/09/2022,"5,885.01"
43606254,Schools - Primary,DSG Skills and Attainment,Primary School Budgets,3rd Party Payments,Mainstream Delegated Funding,ELDENE PRIMARY SCHOOL,SN3 ,16/09/2022,"128,238.00"
42649309,Early Years Block,DSG Skills and Attainment,Free Nursery Education Commissioning - three & four  year olds,3rd Party Payments,Contracts - Child Care,ELDENE PRIMARY SCHOOL,SN3 ,14/09/2022,"10,382.40"
43421244,High Needs Block,DSG Skills and Attainment,SEN Resourcing Assessment Panel,3rd Party Payments,Top up funding - Maintained providers Pre 16,ELDENE PRIMARY SCHOOL,SN3 ,16/09/2022,"10,756.00"
41811234,DSG Other Funding,DSG Skills and Attainment,DFE Additional Grants,Supplies and Services,Payments to Educational Bodies,ELDENE PRIMARY SCHOOL,SN3 ,07/09/2022,788.05
43865307,Social Care,"Children, Families and Community Health Services",External Placements,3rd Party Payments,Care Packages,ELEVENTH HOUR GROUP,EC2M,23/09/2022,"1,413.90"
43865301,Social Care,"Children, Families and Community Health Services",External Placements,3rd Party Payments,Care Packages,ELEVENTH HOUR GROUP,EC2M,23/09/2022,"5,861.76"
43865295,Social Care,"Children, Families and Community Health Services",External Placements,3rd Party Payments,Care Packages,ELEVENTH HOUR GROUP,EC2M,23/09/2022,"5,886.03"
43865274,Social Care,"Children, Families and Community Health Services",External Placements,3rd Party Payments,Care Packages,ELEVENTH HOUR GROUP,EC2M,23/09/2022,"2,868.00"
43865268,Social Care,"Children, Families and Community Health Services",External Placements,3rd Party Payments,Care Packages,ELEVENTH HOUR GROUP,EC2M,23/09/2022,"2,052.00"
43582254,Social Care,"Children, Families and Community Health Services",External Placements,3rd Party Payments,Care Packages,ELEVENTH HOUR GROUP,EC2M,16/09/2022,"1,764.00"
43582240,Social Care,"Children, Families and Community Health Services",External Placements,3rd Party Payments,Care Packages,ELEVENTH HOUR GROUP,EC2M,16/09/2022,"5,076.07"
43865293,Social Care,"Children, Families and Community Health Services",External Placements,3rd Party Payments,Care Packages,ELEVENTH HOUR GROUP,EC2M,23/09/2022,750.00
43582261,Social Care,"Children, Families and Community Health Services",External Placements,3rd Party Payments,Care Packages,ELEVENTH HOUR GROUP,EC2M,16/09/2022,"2,439.00"
43582257,Social Care,"Children, Families and Community Health Services",External Placements,3rd Party Payments,Care Packages,ELEVENTH HOUR GROUP,EC2M,16/09/2022,"1,512.00"
43582256,Social Care,"Children, Families and Community Health Services",External Placements,3rd Party Payments,Care Packages,ELEVENTH HOUR GROUP,EC2M,16/09/2022,504.00
43582255,Social Care,"Children, Families and Community Health Services",External Placements,3rd Party Payments,Care Packages,ELEVENTH HOUR GROUP,EC2M,16/09/2022,534.00
43582246,Social Care,"Children, Families and Community Health Services",External Placements,3rd Party Payments,Care Packages,ELEVENTH HOUR GROUP,EC2M,16/09/2022,"4,773.96"
43582238,Social Care,"Children, Families and Community Health Services",External Placements,3rd Party Payments,Care Packages,ELEVENTH HOUR GROUP,EC2M,16/09/2022,"5,582.63"
43865315,Social Care,"Children, Families and Community Health Services",External Placements,3rd Party Payments,Care Packages,ELEVENTH HOUR GROUP,EC2M,23/09/2022,"1,053.60"
43865312,Social Care,"Children, Families and Community Health Services",External Placements,3rd Party Payments,Care Packages,ELEVENTH HOUR GROUP,EC2M,23/09/2022,"1,884.00"
43865297,Social Care,"Children, Families and Community Health Services",External Placements,3rd Party Payments,Care Packages,ELEVENTH HOUR GROUP,EC2M,23/09/2022,"1,068.00"
43865286,Social Care,"Children, Families and Community Health Services",External Placements,3rd Party Payments,Care Packages,ELEVENTH HOUR GROUP,EC2M,23/09/2022,971.00
43865269,Social Care,"Children, Families and Community Health Services",External Placements,3rd Party Payments,Care Packages,ELEVENTH HOUR GROUP,EC2M,23/09/2022,"1,518.01"
43582264,Social Care,"Children, Families and Community Health Services",External Placements,3rd Party Payments,Care Packages,ELEVENTH HOUR GROUP,EC2M,16/09/2022,"2,418.00"
43582253,Social Care,"Children, Families and Community Health Services",External Placements,3rd Party Payments,Care Packages,ELEVENTH HOUR GROUP,EC2M,16/09/2022,"1,968.01"
43582252,Social Care,"Children, Families and Community Health Services",External Placements,3rd Party Payments,Care Packages,ELEVENTH HOUR GROUP,EC2M,16/09/2022,"1,496.40"
43582249,Social Care,"Children, Families and Community Health Services",External Placements,3rd Party Payments,Care Packages,ELEVENTH HOUR GROUP,EC2M,16/09/2022,"4,670.88"
43582239,Social Care,"Children, Families and Community Health Services",External Placements,3rd Party Payments,Care Packages,ELEVENTH HOUR GROUP,EC2M,16/09/2022,"2,952.00"
43865291,Social Care,"Children, Families and Community Health Services",External Placements,3rd Party Payments,Care Packages,ELEVENTH HOUR GROUP,EC2M,23/09/2022,"-2,809.20"
43865285,Social Care,"Children, Families and Community Health Services",External Placements,3rd Party Payments,Care Packages,ELEVENTH HOUR GROUP,EC2M,23/09/2022,"2,614.85"
43865277,Social Care,"Children, Families and Community Health Services",External Placements,3rd Party Payments,Care Packages,ELEVENTH HOUR GROUP,EC2M,23/09/2022,"3,346.80"
43582243,Social Care,"Children, Families and Community Health Services",External Placements,3rd Party Payments,Care Packages,ELEVENTH HOUR GROUP,EC2M,16/09/2022,"2,962.71"
43582236,Social Care,"Children, Families and Community Health Services",External Placements,3rd Party Payments,Care Packages,ELEVENTH HOUR GROUP,EC2M,16/09/2022,"2,952.00"
43865323,Social Care,"Children, Families and Community Health Services",External Placements,3rd Party Payments,Care Packages,ELEVENTH HOUR GROUP,EC2M,23/09/2022,840.00
43865319,Social Care,"Children, Families and Community Health Services",External Placements,3rd Party Payments,Care Packages,ELEVENTH HOUR GROUP,EC2M,23/09/2022,"1,851.50"
43865316,Social Care,"Children, Families and Community Health Services",External Placements,3rd Party Payments,Care Packages,ELEVENTH HOUR GROUP,EC2M,23/09/2022,"1,570.50"
43865300,Social Care,"Children, Families and Community Health Services",External Placements,3rd Party Payments,Care Packages,ELEVENTH HOUR GROUP,EC2M,23/09/2022,534.00
43865299,Social Care,"Children, Families and Community Health Services",External Placements,3rd Party Payments,Care Packages,ELEVENTH HOUR GROUP,EC2M,23/09/2022,"5,477.64"
43865296,Social Care,"Children, Families and Community Health Services",External Placements,3rd Party Payments,Care Packages,ELEVENTH HOUR GROUP,EC2M,23/09/2022,"1,260.00"
43865282,Social Care,"Children, Families and Community Health Services",External Placements,3rd Party Payments,Care Packages,ELEVENTH HOUR GROUP,EC2M,23/09/2022,"3,010.55"
43582235,Social Care,"Children, Families and Community Health Services",External Placements,3rd Party Payments,Care Packages,ELEVENTH HOUR GROUP,EC2M,16/09/2022,"1,350.00"
43582263,Social Care,"Children, Families and Community Health Services",External Placements,3rd Party Payments,Care Packages,ELEVENTH HOUR GROUP,EC2M,16/09/2022,"1,800.00"
43582260,Social Care,"Children, Families and Community Health Services",External Placements,3rd Party Payments,Care Packages,ELEVENTH HOUR GROUP,EC2M,16/09/2022,"1,470.00"
43582258,Social Care,"Children, Families and Community Health Services",External Placements,3rd Party Payments,Care Packages,ELEVENTH HOUR GROUP,EC2M,16/09/2022,"5,648.76"
43582241,Social Care,"Children, Families and Community Health Services",External Placements,3rd Party Payments,Care Packages,ELEVENTH HOUR GROUP,EC2M,16/09/2022,"1,518.00"
43865317,Social Care,"Children, Families and Community Health Services",External Placements,3rd Party Payments,Care Packages,ELEVENTH HOUR GROUP,EC2M,23/09/2022,"5,809.64"
43865309,Social Care,"Children, Families and Community Health Services",External Placements,3rd Party Payments,Care Packages,ELEVENTH HOUR GROUP,EC2M,23/09/2022,"1,800.00"
43865305,Social Care,"Children, Families and Community Health Services",External Placements,3rd Party Payments,Care Packages,ELEVENTH HOUR GROUP,EC2M,23/09/2022,"3,877.70"
43865304,Social Care,"Children, Families and Community Health Services",External Placements,3rd Party Payments,Care Packages,ELEVENTH HOUR GROUP,EC2M,23/09/2022,570.96
43865290,Social Care,"Children, Families and Community Health Services",External Placements,3rd Party Payments,Care Packages,ELEVENTH HOUR GROUP,EC2M,23/09/2022,"1,110.00"
43865281,Social Care,"Children, Families and Community Health Services",External Placements,3rd Party Payments,Care Packages,ELEVENTH HOUR GROUP,EC2M,23/09/2022,"3,036.00"
43865275,Social Care,"Children, Families and Community Health Services",External Placements,3rd Party Payments,Care Packages,ELEVENTH HOUR GROUP,EC2M,23/09/2022,984.00
43865270,Social Care,"Children, Families and Community Health Services",External Placements,3rd Party Payments,Care Packages,ELEVENTH HOUR GROUP,EC2M,23/09/2022,"1,518.00"
43582259,Social Care,"Children, Families and Community Health Services",External Placements,3rd Party Payments,Care Packages,ELEVENTH HOUR GROUP,EC2M,16/09/2022,"1,328.40"
43582251,Social Care,"Children, Families and Community Health Services",External Placements,3rd Party Payments,Care Packages,ELEVENTH HOUR GROUP,EC2M,16/09/2022,"3,463.26"
43582247,Social Care,"Children, Families and Community Health Services",External Placements,3rd Party Payments,Care Packages,ELEVENTH HOUR GROUP,EC2M,16/09/2022,"1,691.76"
43582245,Social Care,"Children, Families and Community Health Services",External Placements,3rd Party Payments,Care Packages,ELEVENTH HOUR GROUP,EC2M,16/09/2022,810.00
43582244,Social Care,"Children, Families and Community Health Services",External Placements,3rd Party Payments,Care Packages,ELEVENTH HOUR GROUP,EC2M,16/09/2022,"1,385.00"
43582242,Social Care,"Children, Families and Community Health Services",External Placements,3rd Party Payments,Care Packages,ELEVENTH HOUR GROUP,EC2M,16/09/2022,885.60
43865314,Social Care,"Children, Families and Community Health Services",External Placements,3rd Party Payments,Care Packages,ELEVENTH HOUR GROUP,EC2M,23/09/2022,"2,052.00"
43865313,Social Care,"Children, Families and Community Health Services",External Placements,3rd Party Payments,Care Packages,ELEVENTH HOUR GROUP,EC2M,23/09/2022,577.30
43865303,Social Care,"Children, Families and Community Health Services",External Placements,3rd Party Payments,Care Packages,ELEVENTH HOUR GROUP,EC2M,23/09/2022,900.00
43865294,Social Care,"Children, Families and Community Health Services",External Placements,3rd Party Payments,Care Packages,ELEVENTH HOUR GROUP,EC2M,23/09/2022,"4,743.62"
43865287,Social Care,"Children, Families and Community Health Services",External Placements,3rd Party Payments,Care Packages,ELEVENTH HOUR GROUP,EC2M,23/09/2022,900.00
43865283,Social Care,"Children, Families and Community Health Services",External Placements,3rd Party Payments,Care Packages,ELEVENTH HOUR GROUP,EC2M,23/09/2022,"1,800.00"
43865276,Social Care,"Children, Families and Community Health Services",External Placements,3rd Party Payments,Care Packages,ELEVENTH HOUR GROUP,EC2M,23/09/2022,"3,813.00"
43865273,Social Care,"Children, Families and Community Health Services",External Placements,3rd Party Payments,Care Packages,ELEVENTH HOUR GROUP,EC2M,23/09/2022,"2,418.00"
43865267,Social Care,"Children, Families and Community Health Services",External Placements,3rd Party Payments,Care Packages,ELEVENTH HOUR GROUP,EC2M,23/09/2022,"2,182.57"
43582267,Social Care,"Children, Families and Community Health Services",External Placements,3rd Party Payments,Care Packages,ELEVENTH HOUR GROUP,EC2M,16/09/2022,"5,537.64"
43865321,Social Care,"Children, Families and Community Health Services",External Placements,3rd Party Payments,Care Packages,ELEVENTH HOUR GROUP,EC2M,23/09/2022,"1,525.00"
43865320,Social Care,"Children, Families and Community Health Services",External Placements,3rd Party Payments,Care Packages,ELEVENTH HOUR GROUP,EC2M,23/09/2022,"5,494.01"
43865289,Social Care,"Children, Families and Community Health Services",External Placements,3rd Party Payments,Care Packages,ELEVENTH HOUR GROUP,EC2M,23/09/2022,"1,779.22"
43582265,Social Care,"Children, Families and Community Health Services",External Placements,3rd Party Payments,Care Packages,ELEVENTH HOUR GROUP,EC2M,16/09/2022,"1,434.00"
43582262,Social Care,"Children, Families and Community Health Services",External Placements,3rd Party Payments,Care Packages,ELEVENTH HOUR GROUP,EC2M,16/09/2022,"2,052.00"
43582250,Social Care,"Children, Families and Community Health Services",External Placements,3rd Party Payments,Care Packages,ELEVENTH HOUR GROUP,EC2M,16/09/2022,"3,437.00"
43582248,Social Care,"Children, Families and Community Health Services",External Placements,3rd Party Payments,Care Packages,ELEVENTH HOUR GROUP,EC2M,16/09/2022,840.00
43865324,Social Care,"Children, Families and Community Health Services",External Placements,3rd Party Payments,Care Packages,ELEVENTH HOUR GROUP,EC2M,23/09/2022,"2,136.00"
44260367,Learning Disabilities,Adults,Learning Disability 26 - 64,Transfer Payments,Personal Budget - Direct Payments - Other,REDACTED PERSONAL DATA,SP11,30/09/2022,548.46
42617233,Social Care,"Children, Families and Community Health Services",Placement - Care Leaver Team,3rd Party Payments,Education / Training,REDACTED PERSONAL DATA,SN1 ,09/09/2022,666.67
43521240,Physical Support,Adults,Physical Support 65 and over,3rd Party Payments,Residential Care,ELM GROVE CARE HOME,GL7 ,16/09/2022,"8,030.72"
44189233,Sheltered Accomodation,Special Services,Elizabeth House,Supplies and Services,Equipment,EMERGENCY SECURITY SERVICES LTD,SN2 ,30/09/2022,551.70
44223238,Responsive Repairs,Repairs,Responsive Repairs,3rd Party Payments,Contract Payments,EMERGENCY SECURITY SERVICES LTD,SN2 ,30/09/2022,"1,252.07"
44223233,Responsive Repairs,Repairs,Responsive Repairs,Supplies and Services,Materials,EMERGENCY SECURITY SERVICES LTD,SN2 ,30/09/2022,"1,614.45"
42649316,Early Years Block,DSG Skills and Attainment,Free Nursery Education Commissioning - three & four  year olds,3rd Party Payments,Contracts - Child Care,REDACTED PERSONAL DATA,SN25,14/09/2022,"3,503.85"
42649317,Early Years Block,DSG Skills and Attainment,Free Nursery Education Commissioning - two year olds,3rd Party Payments,Contracts - Child Care,REDACTED PERSONAL DATA,SN25,14/09/2022,869.40
42650272,Early Years Block,DSG Skills and Attainment,Free Nursery Education Commissioning - three & four  year olds,3rd Party Payments,Contracts - Child Care,REDACTED PERSONAL DATA,SN4 ,14/09/2022,"1,004.86"
42649318,Early Years Block,DSG Skills and Attainment,Free Nursery Education Commissioning - three & four  year olds,3rd Party Payments,Contracts - Child Care,REDACTED PERSONAL DATA,SN4 ,14/09/2022,"1,480.50"
44260456,Learning Disabilities,Adults,Learning Disability 26 - 64,3rd Party Payments,Carers,REDACTED PERSONAL DATA,SP11,30/09/2022,648.32
42649319,Early Years Block,DSG Skills and Attainment,Free Nursery Education Commissioning - three & four  year olds,3rd Party Payments,Contracts - Child Care,REDACTED PERSONAL DATA,SN3 ,14/09/2022,"1,297.80"
41765233,"Volutary Sector, Equipment and Carers",Adults,Voluntary Sector Adults,3rd Party Payments,Contracts - Social Care,ENHAM TRUST,SP11,02/09/2022,"13,455.00"
